Workbook

Sheet Zał.1_WPF_bazowy
B2: WIELOLETNIA PROGNOZA FINANSOWA GMINY MIASTO BRZEZINY NA LATA 2013-2023 | E2: Wykonanie | G2: Plan 3 kw. | H2: Wykonanie | I2: =RT_WstawParametr_tytul() ->  | J2: Załącznik nr 1 do Uchwały Nr XLIII/203/2013 Rady Miasta Brzeziny z 31 października 2013 r.
A3: X | B3: Lp. | D3: Wyszczególnienie | E3: =+F3-1 -> 2010 | F3: =+G3-1 -> 2011 | G3: =DaneZrodlowe!$A$4-1 -> 2012 | H3: =+DaneZrodlowe!$A$4-1 -> 2012 | I3: =+DaneZrodlowe!$N$1 -> 2013 | J3: =+I3+1 -> 2014 | K3: =+J3+1 -> 2015 | L3: 2016 | M3: 2017 | N3: 2018 | O3: 2019 | P3: 2020 | Q3: 2021 | R3: 2022 | S3: 2023
A4: x | B4: 1 | C4: Dochody ogółem | D4: Dochody ogółem | E4: =31484876.01 -> 31484876.01 | F4: =31063442.33 -> 31063442.33 | G4: =35624119.93 -> 35624119.93 | H4: =34438420.27 -> 34438420.27 | I4: =37144207.17 -> 37144207.17 | J4: =31500000.71 -> 31500000.71 | K4: =31500000 -> 31500000 | L4: =31500000 -> 31500000 | M4: =32000000 -> 32000000 | N4: =32500000 -> 32500000 | O4: =33000000 -> 33000000 | P4: =33500000 -> 33500000 | Q4: =34000000 -> 34000000 | R4: =34500000 -> 34500000 | S4: =35000000 -> 35000000
A5: x | B5: 1.1 | C5: Dochody bieżące | D5: Dochody bieżące, w tym: | E5: =25893786.18 -> 25893786.18 | F5: =28412491.19 -> 28412491.19 | G5: =29915724.45 -> 29915724.45 | H5: =29417886.46 -> 29417886.46 | I5: =32469863.81 -> 32469863.81 | J5: =31500000.71 -> 31500000.71 | K5: =31500000 -> 31500000 | L5: =31500000 -> 31500000 | M5: =32000000 -> 32000000 | N5: =32500000 -> 32500000 | O5: =33000000 -> 33000000 | P5: =33500000 -> 33500000 | Q5: =34000000 -> 34000000 | R5: =34500000 -> 34500000 | S5: =35000000 -> 35000000
B6: 1.1.1 | C6: dochody z tytułu udziału we wpływach z podatku dochodowego od osób fizycznych | D6: dochody z tytułu udziału we wpływach z podatku dochodowego od osób fizycznych | E6: =0 -> 0 | F6: =0 -> 0 | G6: =0 -> 0 | H6: =0 -> 0 | I6: =6700000 -> 6700000 | J6: =7000000 -> 7000000 | K6: =7300000 -> 7300000 | L6: =7600000 -> 7600000 | M6: =7900000 -> 7900000 | N6: =8200000 -> 8200000 | O6: =8500000 -> 8500000 | P6: =8800000 -> 8800000 | Q6: =9100000 -> 9100000 | R6: =9400000 -> 9400000 | S6: =9700000 -> 9700000
B7: 1.1.2 | C7: dochody z tytułu udziału we wpływach z podatku dochodowego od osób prawnych | D7: dochody z tytułu udziału we wpływach z podatku dochodowego od osób prawnych | E7: =0 -> 0 | F7: =0 -> 0 | G7: =0 -> 0 | H7: =0 -> 0 | I7: =120000 -> 120000 | J7: =120000 -> 120000 | K7: =125000 -> 125000 | L7: =130000 -> 130000 | M7: =140000 -> 140000 | N7: =150000 -> 150000 | O7: =160000 -> 160000 | P7: =170000 -> 170000 | Q7: =180000 -> 180000 | R7: =190000 -> 190000 | S7: =200000 -> 200000
B8: 1.1.3 | C8: podatki i opłaty, w tym: | D8: podatki i opłaty, w tym: | E8: =0 -> 0 | F8: =0 -> 0 | G8: =0 -> 0 | H8: =0 -> 0 | I8: =5853743.3 -> 5853743.3 | J8: =6300000 -> 6300000 | K8: =6450000 -> 6450000 | L8: =6600000 -> 6600000 | M8: =6750000 -> 6750000 | N8: =6900000 -> 6900000 | O8: =7050000 -> 7050000 | P8: =7200000 -> 7200000 | Q8: =7350000 -> 7350000 | R8: =7500000 -> 7500000 | S8: =7650000 -> 7650000
B9: 1.1.3.1 | C9: z podatku od nieruchomości | D9: z podatku od nieruchomości | E9: =0 -> 0 | F9: =0 -> 0 | G9: =0 -> 0 | H9: =0 -> 0 | I9: =3722743.3 -> 3722743.3 | J9: =3900000 -> 3900000 | K9: =4100000 -> 4100000 | L9: =4300000 -> 4300000 | M9: =4500000 -> 4500000 | N9: =4700000 -> 4700000 | O9: =4900000 -> 4900000 | P9: =5100000 -> 5100000 | Q9: =5300000 -> 5300000 | R9: =5500000 -> 5500000 | S9: =5700000 -> 5700000
B10: 1.1.4 | C10: z subwencji ogólnej | D10: z subwencji ogólnej | E10: =0 -> 0 | F10: =0 -> 0 | G10: =0 -> 0 | H10: =0 -> 0 | I10: =7466452 -> 7466452 | J10: =8000000 -> 8000000 | K10: =7750000 -> 7750000 | L10: =7900000 -> 7900000 | M10: =8050000 -> 8050000 | N10: =8200000 -> 8200000 | O10: =8350000 -> 8350000 | P10: =8500000 -> 8500000 | Q10: =8700000 -> 8700000 | R10: =8900000 -> 8900000 | S10: =9100000 -> 9100000
B11: 1.1.5 | C11: z tytułu dotacji i środków przeznaczonych na cele bieżące | D11: z tytułu dotacji i środków przeznaczonych na cele bieżące | E11: =0 -> 0 | F11: =0 -> 0 | G11: =0 -> 0 | H11: =0 -> 0 | I11: =8401953.51 -> 8401953.51 | J11: =6000000 -> 6000000 | K11: =6100000 -> 6100000 | L11: =6200000 -> 6200000 | M11: =6300000 -> 6300000 | N11: =6400000 -> 6400000 | O11: =6500000 -> 6500000 | P11: =6600000 -> 6600000 | Q11: =6700000 -> 6700000 | R11: =6800000 -> 6800000 | S11: =6900000 -> 6900000
A12: x | B12: 1.2 | C12: Dochody majątkowe | D12: Dochody majątkowe, w tym: | E12: =5591089.83 -> 5591089.83 | F12: =2650951.14 -> 2650951.14 | G12: =5708395.48 -> 5708395.48 | H12: =5020533.81 -> 5020533.81 | I12: =4674343.36 -> 4674343.36 | J12: =0 -> 0 | K12: =0 -> 0 | L12: =0 -> 0 | M12: =0 -> 0 | N12: =0 -> 0 | O12: =0 -> 0 | P12: =0 -> 0 | Q12: =0 -> 0 | R12: =0 -> 0 | S12: =0 -> 0
A13: x | B13: 1.2.1 | C13: Dochody ze sprzedaży majątku | D13: ze sprzedaży majątku | E13: =1337141.05 -> 1337141.05 | F13: =26005.76 -> 26005.76 | G13: =100000 -> 100000 | H13: =159888.32 -> 159888.32 | I13: =125000 -> 125000 | J13: =0 -> 0 | K13: =0 -> 0 | L13: =0 -> 0 | M13: =0 -> 0 | N13: =0 -> 0 | O13: =0 -> 0 | P13: =0 -> 0 | Q13: =0 -> 0 | R13: =0 -> 0 | S13: =0 -> 0
B14: 1.2.2 | C14: z tytułu dotacji oraz środków przeznaczonych na inwestycje | D14: z tytułu dotacji oraz środków przeznaczonych na inwestycje | E14: =0 -> 0 | F14: =0 -> 0 | G14: =0 -> 0 | H14: =0 -> 0 | I14: =4381623.36 -> 4381623.36 | J14: =0 -> 0 | K14: =0 -> 0 | L14: =0 -> 0 | M14: =0 -> 0 | N14: =0 -> 0 | O14: =0 -> 0 | P14: =0 -> 0 | Q14: =0 -> 0 | R14: =0 -> 0 | S14: =0 -> 0
A15: x | B15: 2 | C15: Wydatki ogółem | D15: Wydatki ogółem | E15: =34609335.7 -> 34609335.7 | F15: =31037203.93 -> 31037203.93 | G15: =40495660.86 -> 40495660.86 | H15: =36384626.19 -> 36384626.19 | I15: =39751618.39 -> 39751618.39 | J15: =30561940.55 -> 30561940.55 | K15: =30284308 -> 30284308 | L15: =29934304 -> 29934304 | M15: =30084300 -> 30084300 | N15: =30821796 -> 30821796 | O15: =31389996 -> 31389996 | P15: =31889996 -> 31889996 | Q15: =32389996 -> 32389996 | R15: =32849996 -> 32849996 | S15: =33290000 -> 33290000
A16: x | B16: 2.1 | C16: Wydatki bieżące | D16: Wydatki bieżące, w tym: | E16: =25207681.97 -> 25207681.97 | F16: =26129253.64 -> 26129253.64 | G16: =29218500.44 -> 29218500.44 | H16: =26785030.3 -> 26785030.3 | I16: =31342902.25 -> 31342902.25 | J16: =26878935.15 -> 26878935.15 | K16: =27150000 -> 27150000 | L16: =27420000 -> 27420000 | M16: =27790000 -> 27790000 | N16: =28230000 -> 28230000 | O16: =28670000 -> 28670000 | P16: =29140000 -> 29140000 | Q16: =29610000 -> 29610000 | R16: =30060000 -> 30060000 | S16: =30560000 -> 30560000
A17: x | B17: 2.1.1 | C17: z tytułu poręczeń i gwarancji | D17: z tytułu poręczeń i gwarancji, w tym: | E17: =0 -> 0 | F17: =0 -> 0 | G17: =0 -> 0 | H17: =0 -> 0 | I17: =0 -> 0 | J17: =110000 -> 110000 | K17: 110000 | L17: 110000 | M17: 110000 | N17: 110000 | O17: 110000 | P17: 110000 | Q17: =101000 -> 101000 | R17: =59000 -> 59000 | S17: =59000 -> 59000
A18: x | B18: 2.1.1.1 | C18: gwarancje i poręczenia podlegające wyłączeniu z limitów spłaty zobowiązań określonych w art. 243 ust. 3 pkt 2 ustawy z dnia 27 sierpnia 2009 r. o finansach publicznych (Dz. U. Nr 157, poz. 1240, z późn. zm.) lub art. 169 ust. 3 pkt 2 ustawy z dnia 30 czerwca 2005 r. o finansach publicznych (Dz. U. Nr 249, poz. 2104, z późn. zm) | D18: gwarancje i poręczenia podlegające wyłączeniu z limitów spłaty zobowiązań określonych w art. 243 ust. 3 pkt 2 ustawy z dnia 27 sierpnia 2009 r. o finansach publicznych (Dz. U. Nr 157, poz. 1240, z późn. zm.) lub art. 169 ust. 3 pkt 2 ustawy z dnia 30 czerwca 2005 r. o finansach publicznych (Dz. U. Nr 249, poz. 2104, z późn. zm) | E18: =0 -> 0 | F18: =0 -> 0 | G18: =0 -> 0 | H18: =0 -> 0 | I18: =0 -> 0 | J18: =0 -> 0 | K18: =0 -> 0 | L18: =0 -> 0 | M18: =0 -> 0 | N18: =0 -> 0 | O18: =0 -> 0 | P18: =0 -> 0 | Q18: =0 -> 0 | R18: =0 -> 0 | S18: =0 -> 0
B19: 2.1.2 | C19: na spłatę przejętych zobowiązań samodzielnego publicznego zakładu opieki zdrowotnej przekształconego na zasadach określonych w przepisach o działalności leczniczej, w wysokości w jakiej nie podlegają sfinansowaniu dotacją z budżetu państwa) | D19: na spłatę przejętych zobowiązań samodzielnego publicznego zakładu opieki zdrowotnej przekształconego na zasadach określonych w przepisach o działalności leczniczej, w wysokości w jakiej nie podlegają sfinansowaniu dotacją z budżetu państwa) | E19: x | F19: x | G19: x | H19: x | I19: =0 -> 0 | J19: =0 -> 0 | K19: =0 -> 0 | L19: =0 -> 0 | M19: =0 -> 0 | N19: =0 -> 0 | O19: =0 -> 0 | P19: =0 -> 0 | Q19: =0 -> 0 | R19: =0 -> 0 | S19: =0 -> 0
A20: x | B20: 2.1.3 | C20: Wydatki na obsługę długu | D20: wydatki na obsługę długu, w tym: | E20: =464051.55 -> 464051.55 | F20: =755389.64 -> 755389.64 | G20: =884400 -> 884400 | H20: =791159.57 -> 791159.57 | I20: =700000 -> 700000 | J20: =602000 -> 602000 | K20: =559000 -> 559000 | L20: =503000 -> 503000 | M20: =434000 -> 434000 | N20: =366000 -> 366000 | O20: =302000 -> 302000 | P20: =237000 -> 237000 | Q20: =185000 -> 185000 | R20: =128000 -> 128000 | S20: =69000 -> 69000
A21: x | B21: 2.1.3.1 | C21: odsetki i dyskonto określone w art. 243 ust. 1 ustawy lub art. 169 ust. 1 ufp z 2005 r.. | D21: odsetki i dyskonto określone w art. 243 ust. 1 ustawy lub art. 169 ust. 1 ufp z 2005 r.. | E21: =464051.55 -> 464051.55 | F21: =755389.64 -> 755389.64 | G21: =884400 -> 884400 | H21: =791159.57 -> 791159.57 | I21: =700000 -> 700000 | J21: =602000 -> 602000 | K21: =559000 -> 559000 | L21: =503000 -> 503000 | M21: =434000 -> 434000 | N21: =366000 -> 366000 | O21: =302000 -> 302000 | P21: =237000 -> 237000 | Q21: =185000 -> 185000 | R21: =128000 -> 128000 | S21: =69000 -> 69000
A22: x | B22: 2.2 | C22: Wydatki majątkowe | D22: Wydatki majątkowe | E22: =9401653.73 -> 9401653.73 | F22: =4907950.29 -> 4907950.29 | G22: =11277160.42 -> 11277160.42 | H22: =9599595.89 -> 9599595.89 | I22: =8408716.14 -> 8408716.14 | J22: =3683005.4 -> 3683005.4 | K22: =3134308 -> 3134308 | L22: =2514304 -> 2514304 | M22: =2294300 -> 2294300 | N22: =2591796 -> 2591796 | O22: =2719996 -> 2719996 | P22: =2749996 -> 2749996 | Q22: =2779996 -> 2779996 | R22: =2789996 -> 2789996 | S22: =2730000 -> 2730000
A23: x | B23: 3 | C23: Wynik budżetu | D23: Wynik budżetu | E23: =-3124459.69 -> -3124459.69 | F23: =26238.4 -> 26238.4 | G23: =-4871540.93 -> -4871540.93 | H23: =-1946205.92 -> -1946205.92 | I23: =-2607411.22 -> -2607411.22 | J23: =938060.16 -> 938060.16 | K23: =1215692 -> 1215692 | L23: =1565696 -> 1565696 | M23: =1915700 -> 1915700 | N23: =1678204 -> 1678204 | O23: =1610004 -> 1610004 | P23: =1610004 -> 1610004 | Q23: =1610004 -> 1610004 | R23: =1650004 -> 1650004 | S23: =1710000 -> 1710000
A24: x | B24: 4 | C24: Przychody budżetu | D24: Przychody budżetu | E24: =6000000 -> 6000000 | F24: =3600000 -> 3600000 | G24: =6775540.93 -> 6775540.93 | H24: =6456793.84 -> 6456793.84 | I24: =7317411.22 -> 7317411.22 | J24: =0 -> 0 | K24: =0 -> 0 | L24: =0 -> 0 | M24: =0 -> 0 | N24: =0 -> 0 | O24: =0 -> 0 | P24: =0 -> 0 | Q24: =0 -> 0 | R24: =0 -> 0 | S24: =0 -> 0
A25: x | B25: 4.1 | C25: Nadwyżka budżetowa z lat ubiegłych, w tym: | D25: Nadwyżka budżetowa z lat ubiegłych, w tym: | E25: =0 -> 0 | F25: =0 -> 0 | G25: =0 -> 0 | H25: =0 -> 0 | I25: =0 -> 0 | J25: =0 -> 0 | K25: =0 -> 0 | L25: =0 -> 0 | M25: =0 -> 0 | N25: =0 -> 0 | O25: =0 -> 0 | P25: =0 -> 0 | Q25: =0 -> 0 | R25: =0 -> 0 | S25: =0 -> 0
A26: x | B26: 4.1.1 | C26: na pokrycie deficytu budżetu | D26: na pokrycie deficytu budżetu | E26: =0 -> 0 | F26: =0 -> 0 | G26: =0 -> 0 | H26: =0 -> 0 | I26: =0 -> 0 | J26: =0 -> 0 | K26: =0 -> 0 | L26: =0 -> 0 | M26: =0 -> 0 | N26: =0 -> 0 | O26: =0 -> 0 | P26: =0 -> 0 | Q26: =0 -> 0 | R26: =0 -> 0 | S26: =0 -> 0
A27: x | B27: 4.2 | C27: Wolne środki, o których mowa w art. 217 ust.2 pkt 6 ustawy, w tym: | D27: Wolne środki, o których mowa w art. 217 ust.2 pkt 6 ustawy, w tym: | E27: =0 -> 0 | F27: =0 -> 0 | G27: =2956793.84 -> 2956793.84 | H27: =2956793.84 -> 2956793.84 | I27: =2607411.22 -> 2607411.22 | J27: =0 -> 0 | K27: =0 -> 0 | L27: =0 -> 0 | M27: =0 -> 0 | N27: =0 -> 0 | O27: =0 -> 0 | P27: =0 -> 0 | Q27: =0 -> 0 | R27: =0 -> 0 | S27: =0 -> 0
A28: x | B28: 4.2.1 | C28: na pokrycie deficytu budżetu | D28: na pokrycie deficytu budżetu | E28: =0 -> 0 | F28: =0 -> 0 | G28: =1052793.84 -> 1052793.84 | H28: =1052793.84 -> 1052793.84 | I28: =2607411.22 -> 2607411.22 | J28: =0 -> 0 | K28: =0 -> 0 | L28: =0 -> 0 | M28: =0 -> 0 | N28: =0 -> 0 | O28: =0 -> 0 | P28: =0 -> 0 | Q28: =0 -> 0 | R28: =0 -> 0 | S28: =0 -> 0
A29: x | B29: 4.3 | C29: Kredyty, pożyczki, emisja papierów wartościowych, w tym: | D29: Kredyty, pożyczki, emisja papierów wartościowych, w tym: | E29: =6000000 -> 6000000 | F29: =3600000 -> 3600000 | G29: =3818747.09 -> 3818747.09 | H29: =3500000 -> 3500000 | I29: =4710000 -> 4710000 | J29: =0 -> 0 | K29: =0 -> 0 | L29: =0 -> 0 | M29: =0 -> 0 | N29: =0 -> 0 | O29: =0 -> 0 | P29: =0 -> 0 | Q29: =0 -> 0 | R29: =0 -> 0 | S29: =0 -> 0
A30: x | B30: 4.3.1 | C30: na pokrycie deficytu budżetu | D30: na pokrycie deficytu budżetu | E30: =0 -> 0 | F30: =0 -> 0 | G30: =0 -> 0 | H30: =0 -> 0 | I30: =0 -> 0 | J30: =0 -> 0 | K30: =0 -> 0 | L30: =0 -> 0 | M30: =0 -> 0 | N30: =0 -> 0 | O30: =0 -> 0 | P30: =0 -> 0 | Q30: =0 -> 0 | R30: =0 -> 0 | S30: =0 -> 0
A31: x | B31: 4.4 | C31: Inne przychody niezwiązane z zaciągnięciem długu, w tym: | D31: Inne przychody niezwiązane z zaciągnięciem długu, w tym: | E31: =0 -> 0 | F31: =0 -> 0 | G31: =0 -> 0 | H31: =0 -> 0 | I31: =0 -> 0 | J31: =0 -> 0 | K31: =0 -> 0 | L31: =0 -> 0 | M31: =0 -> 0 | N31: =0 -> 0 | O31: =0 -> 0 | P31: =0 -> 0 | Q31: =0 -> 0 | R31: =0 -> 0 | S31: =0 -> 0
A32: x | B32: 4.4.1 | C32: na pokrycie deficytu budżetu | D32: na pokrycie deficytu budżetu | E32: =0 -> 0 | F32: =0 -> 0 | G32: =0 -> 0 | H32: =0 -> 0 | I32: =0 -> 0 | J32: =0 -> 0 | K32: =0 -> 0 | L32: =0 -> 0 | M32: =0 -> 0 | N32: =0 -> 0 | O32: =0 -> 0 | P32: =0 -> 0 | Q32: =0 -> 0 | R32: =0 -> 0 | S32: =0 -> 0
A33: x | B33: 5 | C33: Rozchody budżetu | D33: Rozchody budżetu | E33: =1916539.28 -> 1916539.28 | F33: =2541577.28 -> 2541577.28 | G33: =1904000 -> 1904000 | H33: =1903176.7 -> 1903176.7 | I33: =4710000 -> 4710000 | J33: =938060.16 -> 938060.16 | K33: =1215692 -> 1215692 | L33: =1565696 -> 1565696 | M33: =1915700 -> 1915700 | N33: =1678204 -> 1678204 | O33: =1610004 -> 1610004 | P33: 1610004 | Q33: 1610004 | R33: =1650004 -> 1650004 | S33: =1710000 -> 1710000
A34: x | B34: 5.1 | C34: Spłaty rat kapitałowych kredytów i pożyczek oraz wykup papierów wartościowych | D34: Spłaty rat kapitałowych kredytów i pożyczek oraz wykup papierów wartościowych, w tym: | E34: =1916539.28 -> 1916539.28 | F34: =2541577.28 -> 2541577.28 | G34: =1904000 -> 1904000 | H34: =1903176.7 -> 1903176.7 | I34: =4710000 -> 4710000 | J34: =938060.16 -> 938060.16 | K34: =1215692 -> 1215692 | L34: =1565696 -> 1565696 | M34: =1915700 -> 1915700 | N34: =1678204 -> 1678204 | O34: 1610004 | P34: 1610004 | Q34: 1610004 | R34: =1650004 -> 1650004 | S34: =1710000 -> 1710000
A35: x | B35: 5.1.1 | C35: łączna kwota przypadających na dany rok kwot wyłączeń określonych w: art. 243 ust. 3 pkt 1 ustawy (lub art. 169 ust. 3 pkt 1 ufp z 2005 r.), art. 121a ustawy z dnia 27 sierpnia 2009 r. – Przepisy wprowadzające ustawę o finansach publicznych (Dz. U. Nr 157, poz. 1241, z późn. zm.) oraz art. 36 ustawy z dnia 7 grudnia 2012 r. o zmianie niektórych ustaw związanych z realizacją ustawy budżetowej (Dz.U. poz. 1456), w tym: | D35: łączna kwota przypadających na dany rok kwot wyłączeń określonych w: art. 243 ust. 3 pkt 1 ustawy (lub art. 169 ust. 3 pkt 1 ufp z 2005 r.), art. 121a ustawy z dnia 27 sierpnia 2009 r. – Przepisy wprowadzające ustawę o finansach publicznych (Dz. U. Nr 157, poz. 1241, z późn. zm.) oraz art. 36 ustawy z dnia 7 grudnia 2012 r. o zmianie niektórych ustaw związanych z realizacją ustawy budżetowej (Dz.U. poz. 1456), w tym: | E35: =0 -> 0 | F35: =0 -> 0 | G35: =0 -> 0 | H35: =0 -> 0 | I35: =0 -> 0 | J35: =0 -> 0 | K35: =0 -> 0 | L35: =0 -> 0 | M35: =0 -> 0 | N35: =0 -> 0 | O35: =0 -> 0 | P35: =0 -> 0 | Q35: =0 -> 0 | R35: =0 -> 0 | S35: =0 -> 0
A36: x | B36: 5.1.1.1 | C36: kwota przypadających na dany rok kwot wyłączeń określonych w art. 243 ust. 3 pkt 1 ustawy lub art. 169 ust. 3 pkt 1 ufp z 2005 r. | D36: kwota przypadających na dany rok kwot wyłączeń określonych w art. 243 ust. 3 pkt 1 ustawy lub art. 169 ust. 3 pkt 1 ufp z 2005 r. | E36: =0 -> 0 | F36: =0 -> 0 | G36: =0 -> 0 | H36: =0 -> 0 | I36: =0 -> 0 | J36: =0 -> 0 | K36: =0 -> 0 | L36: =0 -> 0 | M36: =0 -> 0 | N36: =0 -> 0 | O36: =0 -> 0 | P36: =0 -> 0 | Q36: =0 -> 0 | R36: =0 -> 0 | S36: =0 -> 0
B37: 5.2 | C37: Inne rozchody niezwiązane ze spłatą długu | D37: Inne rozchody niezwiązane ze spłatą długu | E37: =0 -> 0 | F37: =0 -> 0 | G37: =0 -> 0 | H37: =0 -> 0 | I37: =0 -> 0 | J37: =0 -> 0 | K37: =0 -> 0 | L37: =0 -> 0 | M37: =0 -> 0 | N37: =0 -> 0 | O37: =0 -> 0 | P37: =0 -> 0 | Q37: =0 -> 0 | R37: =0 -> 0 | S37: =0 -> 0
A38: x | B38: 6 | C38: Kwota długu | D38: Kwota długu | E38: =12848122.14 -> 12848122.14 | F38: =13906544.86 -> 13906544.86 | G38: =15821291.95 -> 15821291.95 | H38: =15503368.16 -> 15503368.16 | I38: =15503368.16 -> 15503368.16 | J38: =14565308 -> 14565308 | K38: =13349616 -> 13349616 | L38: =11783920 -> 11783920 | M38: =9868220 -> 9868220 | N38: =8190016 -> 8190016 | O38: =6580012 -> 6580012 | P38: =4970008 -> 4970008 | Q38: =3360004 -> 3360004 | R38: =1710000 -> 1710000 | S38: =0 -> 0
B39: 6.1 | C39: Łączna kwota wyłączeń z ograniczeń długu określonych w art. 170 ust. 3 ufp z 2005 r. oraz w art. 36 ustawy o zmianie niektórych ustaw związanych z realizacją ustawy budżetowej, w tym: | D39: Łączna kwota wyłączeń z ograniczeń długu określonych w art. 170 ust. 3 ufp z 2005 r. oraz w art. 36 ustawy o zmianie niektórych ustaw związanych z realizacją ustawy budżetowej, w tym: | E39: =0 -> 0 | F39: =0 -> 0 | G39: =0 -> 0 | H39: =0 -> 0 | I39: =0 -> 0 | J39: =0 -> 0 | K39: =0 -> 0 | L39: =0 -> 0 | M39: =0 -> 0 | N39: =0 -> 0 | O39: =0 -> 0 | P39: =0 -> 0 | Q39: =0 -> 0 | R39: =0 -> 0 | S39: =0 -> 0
B40: 6.1.1 | C40: kwota wyłączeń z ograniczeń długu określonych w art. 170 ust. 3 ufp z 2005 r. | D40: kwota wyłączeń z ograniczeń długu określonych w art. 170 ust. 3 ufp z 2005 r. | E40: =0 -> 0 | F40: =0 -> 0 | G40: =0 -> 0 | H40: =0 -> 0 | I40: =0 -> 0 | J40: =0 -> 0 | K40: =0 -> 0 | L40: =0 -> 0 | M40: =0 -> 0 | N40: =0 -> 0 | O40: =0 -> 0 | P40: =0 -> 0 | Q40: =0 -> 0 | R40: =0 -> 0 | S40: =0 -> 0
B41: 6.2 | C41: Wskaźnik z art. 170 ufp z 2005 r., bez uwzględniania wyłączeń | D41: Wskaźnik zadłużenia do dochodów ogółem określony w art. 170 ufp z 2005 r., bez uwzględniania wyłączeń określonych w pkt 6.1. | E41: =0.4081 -> 0.4081 | F41: =0.4477 -> 0.4477 | G41: =0.4441 -> 0.4441 | H41: =0.4502 -> 0.4502 | I41: =0.4174 -> 0.4174 | J41: =0.4624 -> 0.4624 | K41: =0.4238 -> 0.4238 | L41: =0.3741 -> 0.3741 | M41: =0.3084 -> 0.3084 | N41: =0.252 -> 0.252 | O41: =0.1994 -> 0.1994 | P41: =0.1484 -> 0.1484 | Q41: =0.0988 -> 0.0988 | R41: =0.0496 -> 0.0496 | S41: =0 -> 0
B42: 6.3 | C42: Wskaźnik z art. 170 ufp z 2005 r. po uwzględnieniu wyłączeń | D42: Wskaźnik zadłużenia do dochodów ogółem, o którym mowa w art. 170 ufp z 2005 r., po uwzględnieniu wyłączeń określonych w pkt 6.1. | E42: =0.4081 -> 0.4081 | F42: =0.4477 -> 0.4477 | G42: =0.4441 -> 0.4441 | H42: =0.4502 -> 0.4502 | I42: =0.4174 -> 0.4174 | J42: =0.4624 -> 0.4624 | K42: =0.4238 -> 0.4238 | L42: =0.3741 -> 0.3741 | M42: =0.3084 -> 0.3084 | N42: =0.252 -> 0.252 | O42: =0.1994 -> 0.1994 | P42: =0.1484 -> 0.1484 | Q42: =0.0988 -> 0.0988 | R42: =0.0496 -> 0.0496 | S42: =0 -> 0
B43: 7 | C43: Kwota zobowiązań wynikających z przejęcia przez jednostkę samorządu terytorialnego zobowiązań po likwidowanych i przekształcanych jednostkach zaliczanych do sektora finansów publicznych | D43: Kwota zobowiązań wynikających z przejęcia przez jednostkę samorządu terytorialnego zobowiązań po likwidowanych i przekształcanych jednostkach zaliczanych do sektora finansów publicznych | E43: =0 -> 0 | F43: =0 -> 0 | G43: =0 -> 0 | H43: =0 -> 0 | I43: =0 -> 0 | J43: =0 -> 0 | K43: =0 -> 0 | L43: =0 -> 0 | M43: =0 -> 0 | N43: =0 -> 0 | O43: =0 -> 0 | P43: =0 -> 0 | Q43: =0 -> 0 | R43: =0 -> 0 | S43: =0 -> 0
B44: 8 | C44: Relacja zrównoważenia wydatków bieżących, o której mowa w art. 242 ustawy | D44: Relacja zrównoważenia wydatków bieżących, o której mowa w art. 242 ustawy | E44: x | F44: x | G44: x | H44: x | I44: x | J44: x | K44: x | L44: x | M44: x | N44: x | O44: x | P44: x | Q44: x | R44: x | S44: x
B45: 8.1 | C45: Różnica między dochodami bieżącymi a wydatkami bieżącymi | D45: Różnica między dochodami bieżącymi a wydatkami bieżącymi | E45: =686104.21 -> 686104.21 | F45: =2283237.55 -> 2283237.55 | G45: =697224.01 -> 697224.01 | H45: =2632856.16 -> 2632856.16 | I45: =1126961.56 -> 1126961.56 | J45: =4621065.56 -> 4621065.56 | K45: =4350000 -> 4350000 | L45: =4080000 -> 4080000 | M45: =4210000 -> 4210000 | N45: =4270000 -> 4270000 | O45: =4330000 -> 4330000 | P45: =4360000 -> 4360000 | Q45: =4390000 -> 4390000 | R45: =4440000 -> 4440000 | S45: =4440000 -> 4440000
B46: 8.2 | C46: Różnica między dochodami bieżącymi, powiększonymi o nadwyżkę budżetową określoną w pkt 4.1. i wolne środki określone w pkt 4.2. a wydatkami bieżącymi, pomniejszonym o wydatki określone w pkt 2.1.2. | D46: Różnica między dochodami bieżącymi, powiększonymi o nadwyżkę budżetową określoną w pkt 4.1. i wolne środki określone w pkt 4.2. a wydatkami bieżącymi, pomniejszonym o wydatki określone w pkt 2.1.2. | E46: =686104.21 -> 686104.21 | F46: =2283237.55 -> 2283237.55 | G46: =3654017.85 -> 3654017.85 | H46: =5589650 -> 5589650 | I46: =3734372.78 -> 3734372.78 | J46: =4621065.56 -> 4621065.56 | K46: =4350000 -> 4350000 | L46: =4080000 -> 4080000 | M46: =4210000 -> 4210000 | N46: =4270000 -> 4270000 | O46: =4330000 -> 4330000 | P46: =4360000 -> 4360000 | Q46: =4390000 -> 4390000 | R46: =4440000 -> 4440000 | S46: =4440000 -> 4440000
A47: x | B47: 9 | C47: Wskaźnik spłaty zobowiązań | D47: Wskaźnik spłaty zobowiązań | E47: x | F47: x | G47: x | H47: x | I47: x | J47: x | K47: x | L47: x | M47: x | N47: x | O47: x | P47: x | Q47: x | R47: x | S47: x
B48: 9.1 | C48: Wskaźnik z art. 169 ust. 1 ufp z 2005 r. bez uwzględnienia wyłączeń | D48: Wskaźnik planowanej łącznej kwoty spłaty zobowiązań, o której mowa w art. 169 ust. 1 ufp z 2005 r. do dochodów ogółem, bez uwzględnienia wyłączeń określonych w pkt 5.1.1. | E48: =0.0756 -> 0.0756 | F48: =0.1061 -> 0.1061 | G48: =0.0797 -> 0.0797 | H48: =0.0782 -> 0.0782 | I48: =0.1456 -> 0.1456 | J48: =0.0524 -> 0.0524 | K48: =0.0598 -> 0.0598 | L48: =0.0692 -> 0.0692 | M48: =0.0769 -> 0.0769 | N48: =0.0663 -> 0.0663 | O48: =0.0613 -> 0.0613 | P48: =0.0584 -> 0.0584 | Q48: =0.0558 -> 0.0558 | R48: =0.0532 -> 0.0532 | S48: =0.0525 -> 0.0525
B49: 9.2 | C49: Wskaźnik z art. 169 ust. 1 ufp z 2005 r. po uwzględnieniu wyłączeń | D49: Wskaźnik planowanej łącznej kwoty spłaty zobowiązań, o której mowa w art. 169 ust. 1 ufp z 2005 r. do dochodów ogółem, po uwzględnieniu wyłączeń przypadających na dany rok określonych w pkt 5.1.1. | E49: =0.0756 -> 0.0756 | F49: =0.1061 -> 0.1061 | G49: =0.0797 -> 0.0797 | H49: =0.0782 -> 0.0782 | I49: =0.1456 -> 0.1456 | J49: =0.0524 -> 0.0524 | K49: =0.0598 -> 0.0598 | L49: =0.0692 -> 0.0692 | M49: =0.0769 -> 0.0769 | N49: =0.0663 -> 0.0663 | O49: =0.0613 -> 0.0613 | P49: =0.0584 -> 0.0584 | Q49: =0.0558 -> 0.0558 | R49: =0.0532 -> 0.0532 | S49: =0.0525 -> 0.0525
A50: x | B50: 9.3 | C50: Relacja [R+O]/D , bez uwzględnienia zobowiązań związku JST i bez uwzględniania wyłączeń | D50: Wskaźnik planowanej łącznej kwoty spłaty zobowiązań, o której mowa w art. 243 ust. 1 ustawy do dochodów ogółem, bez uwzględnienia zobowiązań związku współtworzonego przez jednostkę samorządu terytorialnego i bez uwzględniania wyłączeń przypadających na dany rok określonych w pkt 5.1.1. | E50: =0.0756 -> 0.0756 | F50: =0.1061 -> 0.1061 | G50: =0.0797 -> 0.0797 | H50: =0.0782 -> 0.0782 | I50: =0.1456 -> 0.1456 | J50: =0.0524 -> 0.0524 | K50: =0.0598 -> 0.0598 | L50: =0.0692 -> 0.0692 | M50: =0.0769 -> 0.0769 | N50: =0.0663 -> 0.0663 | O50: =0.0613 -> 0.0613 | P50: =0.0584 -> 0.0584 | Q50: =0.0558 -> 0.0558 | R50: =0.0532 -> 0.0532 | S50: =0.0525 -> 0.0525
A51: x | B51: 9.4 | C51: Wskaźnik planowanej łącznej kwoty spłaty zobowiązań, o której mowa w art. 243 ust. 1 ustawy do dochodów ogółem, bez uwzględnienia zobowiązań związku współtworzonego przez jednostkę samorządu terytorialnego, po uwzględnieniu wyłączeń przypadających na dany rok określonych w pkt 5.1.1. | D51: Wskaźnik planowanej łącznej kwoty spłaty zobowiązań, o której mowa w art. 243 ust. 1 ustawy do dochodów ogółem, bez uwzględnienia zobowiązań związku współtworzonego przez jednostkę samorządu terytorialnego, po uwzględnieniu wyłączeń przypadających na dany rok określonych w pkt 5.1.1. | E51: =0.0756 -> 0.0756 | F51: =0.1061 -> 0.1061 | G51: =0.0797 -> 0.0797 | H51: =0.0782 -> 0.0782 | I51: =0.1456 -> 0.1456 | J51: =0.0524 -> 0.0524 | K51: =0.0598 -> 0.0598 | L51: =0.0692 -> 0.0692 | M51: =0.0769 -> 0.0769 | N51: =0.0663 -> 0.0663 | O51: =0.0613 -> 0.0613 | P51: =0.0584 -> 0.0584 | Q51: =0.0558 -> 0.0558 | R51: =0.0532 -> 0.0532 | S51: =0.0525 -> 0.0525
A52: x | B52: 9.5 | C52: Kwota zobowiązań związku współtworzonego przez jednostkę samorządu terytorialnego przypadających do spłaty w danym roku budżetowym, podlegająca doliczeniu zgodnie z art. 244 ustawy | D52: Kwota zobowiązań związku współtworzonego przez jednostkę samorządu terytorialnego przypadających do spłaty w danym roku budżetowym, podlegająca doliczeniu zgodnie z art. 244 ustawy | E52: =0 -> 0 | F52: =0 -> 0 | G52: =0 -> 0 | H52: =0 -> 0 | I52: =0 -> 0 | J52: =0 -> 0 | K52: =0 -> 0 | L52: =0 -> 0 | M52: =0 -> 0 | N52: =0 -> 0 | O52: =0 -> 0 | P52: =0 -> 0 | Q52: =0 -> 0 | R52: =0 -> 0 | S52: =0 -> 0
A53: x | B53: 9.6 | C53: Relacja [R+O]/D , z uwzględnieniem zobowiązań związku JST i po uwzględnianiu wyłączeń | D53: Wskaźnik planowanej łącznej kwoty spłaty zobowiązań, o której mowa w art. 243 ust. 1 ustawy do dochodów ogółem, po uwzględnieniu zobowiązań związku współtworzonego przez jednostkę samorządu terytorialnego oraz po uwzględnieniu wyłączeń przypadających na dany rok określonych w pkt 5.1.1. | E53: =0.0756 -> 0.0756 | F53: =0.1061 -> 0.1061 | G53: =0.0797 -> 0.0797 | H53: =0.0782 -> 0.0782 | I53: =0.1456 -> 0.1456 | J53: =0.0524 -> 0.0524 | K53: =0.0598 -> 0.0598 | L53: =0.0692 -> 0.0692 | M53: =0.0769 -> 0.0769 | N53: =0.0663 -> 0.0663 | O53: =0.0613 -> 0.0613 | P53: =0.0584 -> 0.0584 | Q53: =0.0558 -> 0.0558 | R53: =0.0532 -> 0.0532 | S53: =0.0525 -> 0.0525
A54: x | B54: 9.6.1 | C54: Wskaźnik jednoroczny (prawa strona wzoru z art. 243) | D54: Wskaźnik jednoroczny (prawa strona wzoru z art. 243) | E54: =+IF(E4<>0,(E5+E13-E16)/E4,0) -> 0.06426086161 | F54: =+IF(F4<>0,(F5+F13-F16)/F4,0) -> 0.07433958173 | G54: =+IF(G4<>0,(G5+G13-G16)/G4,0) -> 0.02237877066 | H54: =+IF(H4<>0,(H5+H13-H16)/H4,0) -> 0.08109386139 | I54: =+IF(I4<>0,(I5+I13-I16)/I4,0) -> 0.0337054323 | J54: =+IF(J4<>0,(J5+J13-J16)/J4,0) -> 0.1467004907 | K54: 0.1380952381 | L54: 0.1295238095 | M54: 0.1315625 | N54: 0.1313846154 | O54: 0.1312121212 | P54: 0.1301492537 | Q54: 0.1291176471 | R54: 0.1286956522 | S54: 0.1268571429
A55: x | B55: 9.7 | C55: Limit spłaty zobowiązań z art. 243 ustawy, po uwzględnieniu wyłączeń obliczony w oparciu o plan 3 kw. roku N-1 | D55: Dopuszczalny wskaźnik spłaty zobowiązań określony w art. 243 ustawy, po uwzględnieniu wyłączeń określonych w art. 36 ustawy z dnia 7 grudnia 2012 r. o zmianie niektórych ustaw związanych z realizacją ustawy budżetowej, obliczony w oparciu o plan 3 kwartałów roku poprzedzającego rok budżetowy | E55: x | F55: x | G55: x | H55: x | I55: =0.0537 -> 0.0537 | J55: =0.0435 -> 0.0435 | K55: =0.0676 -> 0.0676 | L55: =0.1062 -> 0.1062 | M55: =0.1381 -> 0.1381 | N55: =0.1331 -> 0.1331 | O55: =0.1308 -> 0.1308 | P55: =0.1314 -> 0.1314 | Q55: =0.1309 -> 0.1309 | R55: =0.1301 -> 0.1301 | S55: =0.1293 -> 0.1293
A56: x | B56: 9.7.1 | C56: Limit spłaty zobowiązań z art. 243 ustawy, po uwzględnieniu wyłączeń obliczony w oparciu o wykonanie 4 kw. roku N-1 | D56: Dopuszczalny wskaźnik spłaty zobowiązań określony w art. 243 ustawy, po uwzględnieniu wyłączeń określonych w art. 36 ustawy z dnia 7 grudnia 2012 r. o zmianie niektórych ustaw związanych z realizacją ustawy budżetowej, obliczony w oparciu o wykonanie roku poprzedzającego rok budżetowy | E56: x | F56: x | G56: x | H56: x | I56: =0.0732 -> 0.0732 | J56: =0.063 -> 0.063 | K56: =0.0872 -> 0.0872 | L56: =0.1062 -> 0.1062 | M56: =0.1381 -> 0.1381 | N56: =0.1331 -> 0.1331 | O56: =0.1308 -> 0.1308 | P56: =0.1314 -> 0.1314 | Q56: =0.1309 -> 0.1309 | R56: =0.1301 -> 0.1301 | S56: =0.1293 -> 0.1293
A57: x | B57: 9.8 | C57: Informacja o spełnieniu wskaźnika spłaty zobowiązań określonego w art. 243 ustawy, po uwzględnieniu zobowiązań związku współtworzonego przez jednostkę samorządu terytorialnego oraz po uwzględnieniu wyłączeń określonych w pkt 5.1.1., obliczonego w oparciu o plan 3 kwartałów roku poprzedzającego rok budżetowy | D57: Informacja o spełnieniu wskaźnika spłaty zobowiązań określonego w art. 243 ustawy, po uwzględnieniu zobowiązań związku współtworzonego przez jednostkę samorządu terytorialnego oraz po uwzględnieniu wyłączeń określonych w pkt 5.1.1., obliczonego w oparciu o plan 3 kwartałów roku poprzedzającego rok budżetowy | E57: x | F57: x | G57: x | H57: x | I57: =IF(I53<=I55,"Spełniona","Nie spełniona") -> Nie spełniona | J57: =IF(J53<=J55,"Spełniona","Nie spełniona") -> Nie spełniona | K57: Spełniona | L57: Spełniona | M57: Spełniona | N57: Spełniona | O57: Spełniona | P57: Spełniona | Q57: Spełniona | R57: Spełniona | S57: Spełniona
A58: x | B58: 9.8.1 | C58: Informacja o spełnieniu wskaźnika spłaty zobowiązań określonego w art. 243 ustawy, po uwzględnieniu zobowiązań związku współtworzonego przez jednostkę samorządu terytorialnego oraz po uwzględnieniu wyłączeń określonych w pkt 5.1.1., obliczonego w oparciu o wykonanie roku poprzedzającego rok budżetowy | D58: Informacja o spełnieniu wskaźnika spłaty zobowiązań określonego w art. 243 ustawy, po uwzględnieniu zobowiązań związku współtworzonego przez jednostkę samorządu terytorialnego oraz po uwzględnieniu wyłączeń określonych w pkt 5.1.1., obliczonego w oparciu o wykonanie roku poprzedzającego rok budżetowy | E58: x | F58: x | G58: x | H58: x | I58: =IF(I53<=I56,"Spełniona","Nie spełniona") -> Nie spełniona | J58: =IF(J53<=J56,"Spełniona","Nie spełniona") -> Spełniona | K58: Spełniona | L58: Spełniona | M58: Spełniona | N58: Spełniona | O58: Spełniona | P58: Spełniona | Q58: Spełniona | R58: Spełniona | S58: Spełniona
B59: 10 | C59: Przeznaczenie prognozowanej nadwyżki budżetowej, w tym na: | D59: Przeznaczenie prognozowanej nadwyżki budżetowej, w tym na: | E59: =0 -> 0 | F59: =0 -> 0 | G59: =0 -> 0 | H59: =0 -> 0 | I59: =0 -> 0 | J59: =938060.16 -> 938060.16 | K59: =1215692 -> 1215692 | L59: =1565696 -> 1565696 | M59: =1915700 -> 1915700 | N59: =1678204 -> 1678204 | O59: =1610004 -> 1610004 | P59: 1610004 | Q59: 1610004 | R59: =1650004 -> 1650004 | S59: =1710000 -> 1710000
B60: 10.1 | C60: Spłaty kredytów, pożyczek i wykup papierów wartościowych | D60: Spłaty kredytów, pożyczek i wykup papierów wartościowych | E60: =0 -> 0 | F60: =0 -> 0 | G60: =0 -> 0 | H60: =0 -> 0 | I60: =0 -> 0 | J60: =938060.16 -> 938060.16 | K60: =1215692 -> 1215692 | L60: =1565696 -> 1565696 | M60: =1915700 -> 1915700 | N60: =1678204 -> 1678204 | O60: 1610004 | P60: 1610004 | Q60: 1610004 | R60: =1650004 -> 1650004 | S60: =1710000 -> 1710000
B61: 11 | C61: Informacje uzupełniające o wybranych rodzajach wydatków budżetowych | D61: Informacje uzupełniające o wybranych rodzajach wydatków budżetowych | E61: x | F61: x | G61: x | H61: x | I61: x | J61: x | K61: x | L61: x | M61: x | N61: x | O61: x | P61: x | Q61: x | R61: x | S61: x
B62: 11.1 | C62: Wydatki na wynagrodzenia i składki od nich naliczane | D62: Wydatki bieżące na wynagrodzenia i składki od nich naliczane | E62: =10915139.42 -> 10915139.42 | F62: =0 -> 0 | G62: =12203062 -> 12203062 | H62: =12006826.01 -> 12006826.01 | I62: =12581224 -> 12581224 | J62: =12400000 -> 12400000 | K62: =12800000 -> 12800000 | L62: =13000000 -> 13000000 | M62: =13200000 -> 13200000 | N62: =13400000 -> 13400000 | O62: =13600000 -> 13600000 | P62: =13800000 -> 13800000 | Q62: =14000000 -> 14000000 | R62: =14251000 -> 14251000 | S62: =14500000 -> 14500000
B63: 11.2 | C63: Wydatki związane z funkcjonowaniem organów JST | D63: Wydatki związane z funkcjonowaniem organów jednostki samorządu terytorialnego | E63: =0 -> 0 | F63: =0 -> 0 | G63: =0 -> 0 | H63: =0 -> 0 | I63: 3148925.95 | J63: =3000000 -> 3000000 | K63: =3100000 -> 3100000 | L63: =3200000 -> 3200000 | M63: =3300000 -> 3300000 | N63: =3400000 -> 3400000 | O63: =3500000 -> 3500000 | P63: =3600000 -> 3600000 | Q63: =3700000 -> 3700000 | R63: =3800000 -> 3800000 | S63: =3900000 -> 3900000
B64: 11.3 | C64: Wydatki objęte limitem art. 226 ust. 3 ustawy, z tego: | D64: Wydatki objęte limitem art. 226 ust. 3 ustawy, z tego: | E64: =0 -> 0 | F64: =0 -> 0 | G64: =1841325 -> 1841325 | H64: =0 -> 0 | I64: =3754113.07 -> 3754113.07 | J64: =5777805.43 -> 5777805.43 | K64: =449902.82 -> 449902.82 | L64: =56 -> 56 | M64: =56 -> 56 | N64: =56 -> 56 | O64: =56 -> 56 | P64: =20 -> 20 | Q64: =0 -> 0 | R64: =0 -> 0 | S64: =0 -> 0
B65: 11.3.1 | C65: Wydatki bieżące objęte limitem art. 226 ust. 3 | D65: bieżące | E65: =0 -> 0 | F65: =0 -> 0 | G65: =994525 -> 994525 | H65: =0 -> 0 | I65: =1322372.51 -> 1322372.51 | J65: =2157115.13 -> 2157115.13 | K65: =449902.82 -> 449902.82 | L65: =56 -> 56 | M65: =56 -> 56 | N65: =56 -> 56 | O65: =56 -> 56 | P65: =20 -> 20 | Q65: =0 -> 0 | R65: =0 -> 0 | S65: =0 -> 0
B66: 11.3.2 | C66: Wydatki majątkowe objęte limitem art. 226 ust. 3 | D66: majątkowe | E66: =0 -> 0 | F66: =0 -> 0 | G66: =846800 -> 846800 | H66: =0 -> 0 | I66: =2431740.56 -> 2431740.56 | J66: =3620690.3 -> 3620690.3 | K66: =0 -> 0 | L66: =0 -> 0 | M66: =0 -> 0 | N66: =0 -> 0 | O66: =0 -> 0 | P66: =0 -> 0 | Q66: =0 -> 0 | R66: =0 -> 0 | S66: =0 -> 0
B67: 11.4 | C67: Wydatki inwestycyjne kontynuowane | D67: Wydatki inwestycyjne kontynuowane | E67: =0 -> 0 | F67: =0 -> 0 | G67: =0 -> 0 | H67: =0 -> 0 | I67: =5060975.58 -> 5060975.58 | J67: =0 -> 0 | K67: =0 -> 0 | L67: =0 -> 0 | M67: =0 -> 0 | N67: =0 -> 0 | O67: =0 -> 0 | P67: =0 -> 0 | Q67: =0 -> 0 | R67: =0 -> 0 | S67: =0 -> 0
B68: 11.5 | C68: Nowe wydatki inwestycyjne | D68: Nowe wydatki inwestycyjne | E68: =0 -> 0 | F68: =0 -> 0 | G68: =0 -> 0 | H68: =0 -> 0 | I68: =2967740.56 -> 2967740.56 | J68: =0 -> 0 | K68: =0 -> 0 | L68: =0 -> 0 | M68: =0 -> 0 | N68: =0 -> 0 | O68: =0 -> 0 | P68: =0 -> 0 | Q68: =0 -> 0 | R68: =0 -> 0 | S68: =0 -> 0
B69: 11.6 | C69: Wydatki majątkowe w formie dotacji | D69: Wydatki majątkowe w formie dotacji | E69: =0 -> 0 | F69: =0 -> 0 | G69: =0 -> 0 | H69: =0 -> 0 | I69: =380000 -> 380000 | J69: =0 -> 0 | K69: =0 -> 0 | L69: =0 -> 0 | M69: =0 -> 0 | N69: =0 -> 0 | O69: =0 -> 0 | P69: =0 -> 0 | Q69: =0 -> 0 | R69: =0 -> 0 | S69: =0 -> 0
B70: 12 | C70: Finansowanie programów, projektów lub zadań realizowanych z udziałem środków, o których mowa w art. 5 ust. 1 pkt 2 i 3 ustawy | D70: Finansowanie programów, projektów lub zadań realizowanych z udziałem środków, o których mowa w art. 5 ust. 1 pkt 2 i 3 ustawy | E70: x | F70: x | G70: x | H70: x | I70: x | J70: x | K70: x | L70: x | M70: x | N70: x | O70: x | P70: x | Q70: x | R70: x | S70: x
B71: 12.1 | C71: Dochody bieżące na programy, projekty lub zadania finansowane z udziałem środków, o których mowa w art. 5 ust. 1 pkt 2 i 3 ustawy, w tym: | D71: Dochody bieżące na programy, projekty lub zadania finansowane z udziałem środków, o których mowa w art. 5 ust. 1 pkt 2 i 3 ustawy, w tym: | E71: =0 -> 0 | F71: =0 -> 0 | G71: =0 -> 0 | H71: =931390.39 -> 931390.39 | I71: =1959769.75 -> 1959769.75 | J71: =222594.71 -> 222594.71 | K71: =0 -> 0 | L71: =0 -> 0 | M71: =0 -> 0 | N71: =0 -> 0 | O71: =0 -> 0 | P71: =0 -> 0 | Q71: =0 -> 0 | R71: =0 -> 0 | S71: =0 -> 0
B72: 12.1.1 | C72: środki określone w art. 5 ust. 1 pkt 2 ustawy, w tym: | D72: środki określone w art. 5 ust. 1 pkt 2 ustawy, w tym: | E72: =965905.76 -> 965905.76 | F72: =0 -> 0 | G72: =0 -> 0 | H72: =931390.39 -> 931390.39 | I72: =1776085.14 -> 1776085.14 | J72: =222594.71 -> 222594.71 | K72: =0 -> 0 | L72: =0 -> 0 | M72: =0 -> 0 | N72: =0 -> 0 | O72: =0 -> 0 | P72: =0 -> 0 | Q72: =0 -> 0 | R72: =0 -> 0 | S72: =0 -> 0
B73: 12.1.1.1 | C73: środki określone w art. 5 ust. 1 pkt 2 ustawy wynikające wyłącznie z zawartych umów na realizację programu, projektu lub zadania | D73: środki określone w art. 5 ust. 1 pkt 2 ustawy wynikające wyłącznie z zawartych umów na realizację programu, projektu lub zadania | E73: =0 -> 0 | F73: =0 -> 0 | G73: =0 -> 0 | H73: =0 -> 0 | I73: =1776085.14 -> 1776085.14 | J73: =222594.71 -> 222594.71 | K73: =0 -> 0 | L73: =0 -> 0 | M73: =0 -> 0 | N73: =0 -> 0 | O73: =0 -> 0 | P73: =0 -> 0 | Q73: =0 -> 0 | R73: =0 -> 0 | S73: =0 -> 0
B74: 12.2 | C74: Dochody majątkowe na programy, projekty lub zadania finansowane z udziałem środków, o których mowa w art. 5 ust. 1 pkt 2 i 3 ustawy, w tym: | D74: Dochody majątkowe na programy, projekty lub zadania finansowane z udziałem środków, o których mowa w art. 5 ust. 1 pkt 2 i 3 ustawy, w tym: | E74: =0 -> 0 | F74: =0 -> 0 | G74: =0 -> 0 | H74: =0 -> 0 | I74: =3109680.36 -> 3109680.36 | J74: =0 -> 0 | K74: =0 -> 0 | L74: =0 -> 0 | M74: =0 -> 0 | N74: =0 -> 0 | O74: =0 -> 0 | P74: =0 -> 0 | Q74: =0 -> 0 | R74: =0 -> 0 | S74: =0 -> 0
B75: 12.2.1 | C75: środki określone w art. 5 ust. 1 pkt 2 ustawy, w tym: | D75: środki określone w art. 5 ust. 1 pkt 2 ustawy, w tym: | E75: =3773685.71 -> 3773685.71 | F75: =0 -> 0 | G75: =3830155.48 -> 3830155.48 | H75: =3113726.16 -> 3113726.16 | I75: =3052450.3 -> 3052450.3 | J75: =0 -> 0 | K75: =0 -> 0 | L75: =0 -> 0 | M75: =0 -> 0 | N75: =0 -> 0 | O75: =0 -> 0 | P75: =0 -> 0 | Q75: =0 -> 0 | R75: =0 -> 0 | S75: =0 -> 0
B76: 12.2.1.1 | C76: środki określone w art. 5 ust. 1 pkt 2 ustawy wynikające wyłącznie z zawartych umów na realizację programu, projektu lub zadania | D76: środki określone w art. 5 ust. 1 pkt 2 ustawy wynikające wyłącznie z zawartych umów na realizację programu, projektu lub zadania | E76: =0 -> 0 | F76: =0 -> 0 | G76: =0 -> 0 | H76: =0 -> 0 | I76: =3052450.3 -> 3052450.3 | J76: =0 -> 0 | K76: =0 -> 0 | L76: =0 -> 0 | M76: =0 -> 0 | N76: =0 -> 0 | O76: =0 -> 0 | P76: =0 -> 0 | Q76: =0 -> 0 | R76: =0 -> 0 | S76: =0 -> 0
B77: 12.3 | C77: Wydatki bieżące na programy, projekty lub zadania finansowane z udziałem środków, o których mowa w art. 5 ust. 1 pkt 2 i 3 ustawy | D77: Wydatki bieżące na programy, projekty lub zadania finansowane z udziałem środków, o których mowa w art. 5 ust. 1 pkt 2 i 3 ustawy | E77: =0 -> 0 | F77: =0 -> 0 | G77: =0 -> 0 | H77: =0 -> 0 | I77: =1974899.23 -> 1974899.23 | J77: =262135.15 -> 262135.15 | K77: =0 -> 0 | L77: =0 -> 0 | M77: =0 -> 0 | N77: =0 -> 0 | O77: =0 -> 0 | P77: =0 -> 0 | Q77: =0 -> 0 | R77: =0 -> 0 | S77: =0 -> 0
B78: 12.3.1 | C78: w tym finansowane środkami określonymi w art. 5 ust. 1 pkt 2 ustawy | D78: w tym finansowane środkami określonymi w art. 5 ust. 1 pkt 2 ustawy | E78: =0 -> 0 | F78: =0 -> 0 | G78: =1221877.52 -> 1221877.52 | H78: =1128926.89 -> 1128926.89 | I78: =1681470 -> 1681470 | J78: =222594.71 -> 222594.71 | K78: =0 -> 0 | L78: =0 -> 0 | M78: =0 -> 0 | N78: =0 -> 0 | O78: =0 -> 0 | P78: =0 -> 0 | Q78: =0 -> 0 | R78: =0 -> 0 | S78: =0 -> 0
B79: 12.3.2 | C79: Wydatki bieżące na realizację programu, projektu lub zadania wynikające wyłącznie z zawartych umów z podmiotem dysponującym środkami, o których mowa w art. 5 ust. 1 pkt 2 ustawy | D79: Wydatki bieżące na realizację programu, projektu lub zadania wynikające wyłącznie z zawartych umów z podmiotem dysponującym środkami, o których mowa w art. 5 ust. 1 pkt 2 ustawy | E79: =0 -> 0 | F79: =0 -> 0 | G79: =0 -> 0 | H79: =0 -> 0 | I79: =1974899.23 -> 1974899.23 | J79: =0 -> 0 | K79: =0 -> 0 | L79: =0 -> 0 | M79: =0 -> 0 | N79: =0 -> 0 | O79: =0 -> 0 | P79: =0 -> 0 | Q79: =0 -> 0 | R79: =0 -> 0 | S79: =0 -> 0
B80: 12.4 | C80: Wydatki majątkowe na programy, projekty lub zadania finansowane z udziałem środków, o których mowa w art. 5 ust. 1 pkt 2 i 3 ustawy | D80: Wydatki majątkowe na programy, projekty lub zadania finansowane z udziałem środków, o których mowa w art. 5 ust. 1 pkt 2 i 3 ustawy | E80: =0 -> 0 | F80: =0 -> 0 | G80: =0 -> 0 | H80: =0 -> 0 | I80: =735014.91 -> 735014.91 | J80: =0 -> 0 | K80: =0 -> 0 | L80: =0 -> 0 | M80: =0 -> 0 | N80: =0 -> 0 | O80: =0 -> 0 | P80: =0 -> 0 | Q80: =0 -> 0 | R80: =0 -> 0 | S80: =0 -> 0
B81: 12.4.1 | C81: w tym finansowane środkami określonymi w art. 5 ust. 1 pkt 2 ustawy | D81: w tym finansowane środkami określonymi w art. 5 ust. 1 pkt 2 ustawy | E81: =0 -> 0 | F81: =0 -> 0 | G81: =3830155.48 -> 3830155.48 | H81: =3360023.79 -> 3360023.79 | I81: =529995.71 -> 529995.71 | J81: =0 -> 0 | K81: =0 -> 0 | L81: =0 -> 0 | M81: =0 -> 0 | N81: =0 -> 0 | O81: =0 -> 0 | P81: =0 -> 0 | Q81: =0 -> 0 | R81: =0 -> 0 | S81: =0 -> 0
B82: 12.4.2 | C82: Wydatki majątkowe na realizację programu, projektu lub zadania wynikające wyłącznie z zawartych umów z podmiotem dysponującym środkami, o których mowa w art. 5 ust. 1 pkt 2 ustawy | D82: Wydatki majątkowe na realizację programu, projektu lub zadania wynikające wyłącznie z zawartych umów z podmiotem dysponującym środkami, o których mowa w art. 5 ust. 1 pkt 2 ustawy | E82: =0 -> 0 | F82: =0 -> 0 | G82: =0 -> 0 | H82: =0 -> 0 | I82: =735014.91 -> 735014.91 | J82: =0 -> 0 | K82: =0 -> 0 | L82: =0 -> 0 | M82: =0 -> 0 | N82: =0 -> 0 | O82: =0 -> 0 | P82: =0 -> 0 | Q82: =0 -> 0 | R82: =0 -> 0 | S82: =0 -> 0
B83: 13 | C83: Kwoty dotyczące przejęcia i spłaty zobowiązań po samodzielnych publicznych zakładach opieki zdrowotnej oraz pokrycia ujemnego wyniku | D83: Kwoty dotyczące przejęcia i spłaty zobowiązań po samodzielnych publicznych zakładach opieki zdrowotnej oraz pokrycia ujemnego wyniku | E83: x | F83: x | G83: x | H83: x | I83: x | J83: x | K83: x | L83: x | M83: x | N83: x | O83: x | P83: x | Q83: x | R83: x | S83: x
B84: 13.1 | C84: Kwota zobowiązań wynikających z przejęcia przez jednostkę samorządu terytorialnego zobowiązań po likwidowanych i przekształcanych samodzielnych zakładach opieki zdrowotnej | D84: Kwota zobowiązań wynikających z przejęcia przez jednostkę samorządu terytorialnego zobowiązań po likwidowanych i przekształcanych samodzielnych zakładach opieki zdrowotnej | E84: =0 -> 0 | F84: =0 -> 0 | G84: =0 -> 0 | H84: =0 -> 0 | I84: =0 -> 0 | J84: =0 -> 0 | K84: =0 -> 0 | L84: =0 -> 0 | M84: =0 -> 0 | N84: =0 -> 0 | O84: =0 -> 0 | P84: =0 -> 0 | Q84: =0 -> 0 | R84: =0 -> 0 | S84: =0 -> 0
B85: 13.2 | C85: Dochody budżetowe z tytułu dotacji celowej z budżetu państwa, o której mowa w art. 196 ustawy z dnia 15 kwietnia 2011 r. o działalności leczniczej (Dz.U. Nr 112, poz. 654, z późn. zm.) | D85: Dochody budżetowe z tytułu dotacji celowej z budżetu państwa, o której mowa w art. 196 ustawy z dnia 15 kwietnia 2011 r. o działalności leczniczej (Dz.U. Nr 112, poz. 654, z późn. zm.) | E85: =0 -> 0 | F85: =0 -> 0 | G85: =0 -> 0 | H85: =0 -> 0 | I85: =0 -> 0 | J85: =0 -> 0 | K85: =0 -> 0 | L85: =0 -> 0 | M85: =0 -> 0 | N85: =0 -> 0 | O85: =0 -> 0 | P85: =0 -> 0 | Q85: =0 -> 0 | R85: =0 -> 0 | S85: =0 -> 0
B86: 13.3 | C86: Wysokość zobowiązań podlegających umorzeniu, o którym mowa w art. 190 ustawy o działalności leczniczej | D86: Wysokość zobowiązań podlegających umorzeniu, o którym mowa w art. 190 ustawy o działalności leczniczej | E86: =0 -> 0 | F86: =0 -> 0 | G86: =0 -> 0 | H86: =0 -> 0 | I86: =0 -> 0 | J86: =0 -> 0 | K86: =0 -> 0 | L86: =0 -> 0 | M86: =0 -> 0 | N86: =0 -> 0 | O86: =0 -> 0 | P86: =0 -> 0 | Q86: =0 -> 0 | R86: =0 -> 0 | S86: =0 -> 0
B87: 13.4 | C87: Wydatki na spłatę przejętych zobowiązań samodzielnego publicznego zakładu opieki zdrowotnej przekształconego na zasadach określonych w przepisach o działalności leczniczej | D87: Wydatki na spłatę przejętych zobowiązań samodzielnego publicznego zakładu opieki zdrowotnej przekształconego na zasadach określonych w przepisach o działalności leczniczej | E87: =0 -> 0 | F87: =0 -> 0 | G87: =0 -> 0 | H87: =0 -> 0 | I87: =0 -> 0 | J87: =0 -> 0 | K87: =0 -> 0 | L87: =0 -> 0 | M87: =0 -> 0 | N87: =0 -> 0 | O87: =0 -> 0 | P87: =0 -> 0 | Q87: =0 -> 0 | R87: =0 -> 0 | S87: =0 -> 0
B88: 13.5 | C88: Wydatki na spłatę przejętych zobowiązań samodzielnego publicznego zakładu opieki zdrowotnej likwidowanego na zasadach określonych w przepisach o działalności leczniczej | D88: Wydatki na spłatę przejętych zobowiązań samodzielnego publicznego zakładu opieki zdrowotnej likwidowanego na zasadach określonych w przepisach o działalności leczniczej | E88: =0 -> 0 | F88: =0 -> 0 | G88: =0 -> 0 | H88: =0 -> 0 | I88: =0 -> 0 | J88: =0 -> 0 | K88: =0 -> 0 | L88: =0 -> 0 | M88: =0 -> 0 | N88: =0 -> 0 | O88: =0 -> 0 | P88: =0 -> 0 | Q88: =0 -> 0 | R88: =0 -> 0 | S88: =0 -> 0
B89: 13.6 | C89: Wydatki na spłatę zobowiązań samodzielnego publicznego zakładu opieki zdrowotnej przejętych do końca 2011 r. na podstawie przepisów o zakładach opieki zdrowotnej | D89: Wydatki na spłatę zobowiązań samodzielnego publicznego zakładu opieki zdrowotnej przejętych do końca 2011 r. na podstawie przepisów o zakładach opieki zdrowotnej | E89: =0 -> 0 | F89: =0 -> 0 | G89: =0 -> 0 | H89: =0 -> 0 | I89: =0 -> 0 | J89: =0 -> 0 | K89: =0 -> 0 | L89: =0 -> 0 | M89: =0 -> 0 | N89: =0 -> 0 | O89: =0 -> 0 | P89: =0 -> 0 | Q89: =0 -> 0 | R89: =0 -> 0 | S89: =0 -> 0
B90: 13.7 | C90: Wydatki bieżące na pokrycie ujemnego wyniku finansowego samodzielnego publicznego zakładu opieki zdrowotnej | D90: Wydatki bieżące na pokrycie ujemnego wyniku finansowego samodzielnego publicznego zakładu opieki zdrowotnej | E90: =0 -> 0 | F90: =0 -> 0 | G90: =0 -> 0 | H90: =0 -> 0 | I90: =0 -> 0 | J90: =0 -> 0 | K90: =0 -> 0 | L90: =0 -> 0 | M90: =0 -> 0 | N90: =0 -> 0 | O90: =0 -> 0 | P90: =0 -> 0 | Q90: =0 -> 0 | R90: =0 -> 0 | S90: =0 -> 0
A91: x | B91: 14 | C91: Dane uzupełniające o długu i jego spłacie | D91: Dane uzupełniające o długu i jego spłacie | E91: x | F91: x | G91: x | H91: x | I91: x | J91: x | K91: x | L91: x | M91: x | N91: x | O91: x | P91: x | Q91: x | R91: x | S91: x
A92: x | B92: 14.1 | C92: Spłaty rat kapitałowych oraz wykup papierów wartościowych, o których mowa w pkt. 5.1., wynikające wyłącznie z tytułu zobowiązań już zaciągniętych | D92: Spłaty rat kapitałowych oraz wykup papierów wartościowych, o których mowa w pkt. 5.1., wynikające wyłącznie z tytułu zobowiązań już zaciągniętych | E92: =0 -> 0 | F92: =0 -> 0 | G92: =0 -> 0 | H92: =0 -> 0 | I92: =4710000 -> 4710000 | J92: =938060.16 -> 938060.16 | K92: =1215692 -> 1215692 | L92: =1565696 -> 1565696 | M92: =1915700 -> 1915700 | N92: =1478204 -> 1478204 | O92: =1310004 -> 1310004 | P92: =1310004 -> 1310004 | Q92: =710004 -> 710004 | R92: =350004 -> 350004 | S92: =0 -> 0
A93: x | B93: 14.2 | C93: Kwota długu, którego planowana spłata dokona się z wydatków budżetu | D93: Kwota długu, którego planowana spłata dokona się z wydatków budżetu | E93: =0 -> 0 | F93: =0 -> 0 | G93: =0 -> 0 | H93: =0 -> 0 | I93: =0 -> 0 | J93: =0 -> 0 | K93: =0 -> 0 | L93: =0 -> 0 | M93: =0 -> 0 | N93: =0 -> 0 | O93: =0 -> 0 | P93: =0 -> 0 | Q93: =0 -> 0 | R93: =0 -> 0 | S93: =0 -> 0
A94: x | B94: 14.3 | C94: Wydatki zmniejszające dług, w tym: | D94: Wydatki zmniejszające dług, w tym: | E94: =0 -> 0 | F94: =0 -> 0 | G94: =0 -> 0 | H94: =0 -> 0 | I94: =0 -> 0 | J94: =0 -> 0 | K94: =0 -> 0 | L94: =0 -> 0 | M94: =0 -> 0 | N94: =0 -> 0 | O94: =0 -> 0 | P94: =0 -> 0 | Q94: =0 -> 0 | R94: =0 -> 0 | S94: =0 -> 0
A95: x | B95: 14.3.1 | C95: spłata zobowiązań wymagalnych z lat poprzednich, innych niż w pkt 14.3.3 | D95: spłata zobowiązań wymagalnych z lat poprzednich, innych niż w pkt 14.3.3 | E95: =0 -> 0 | F95: =0 -> 0 | G95: =0 -> 0 | H95: =0 -> 0 | I95: =0 -> 0 | J95: =0 -> 0 | K95: =0 -> 0 | L95: =0 -> 0 | M95: =0 -> 0 | N95: =0 -> 0 | O95: =0 -> 0 | P95: =0 -> 0 | Q95: =0 -> 0 | R95: =0 -> 0 | S95: =0 -> 0
A96: x | B96: 14.3.2 | C96: związane z umowami zaliczanymi do tytułów dłużnych wliczanych w państwowy dług publiczny | D96: związane z umowami zaliczanymi do tytułów dłużnych wliczanych w państwowy dług publiczny | E96: =0 -> 0 | F96: =0 -> 0 | G96: =0 -> 0 | H96: =0 -> 0 | I96: =0 -> 0 | J96: =0 -> 0 | K96: =0 -> 0 | L96: =0 -> 0 | M96: =0 -> 0 | N96: =0 -> 0 | O96: =0 -> 0 | P96: =0 -> 0 | Q96: =0 -> 0 | R96: =0 -> 0 | S96: =0 -> 0
A97: x | B97: 14.3.3 | C97: wypłaty z tytułu wymagalnych poręczeń i gwarancji | D97: wypłaty z tytułu wymagalnych poręczeń i gwarancji | E97: =0 -> 0 | F97: =0 -> 0 | G97: =0 -> 0 | H97: =0 -> 0 | I97: =0 -> 0 | J97: =0 -> 0 | K97: =0 -> 0 | L97: =0 -> 0 | M97: =0 -> 0 | N97: =0 -> 0 | O97: =0 -> 0 | P97: =0 -> 0 | Q97: =0 -> 0 | R97: =0 -> 0 | S97: =0 -> 0
A98: x | B98: 14.4 | C98: Wynik operacji niekasowych wpływających na kwotę długu (m.in. umorzenia, różnice kursowe) | D98: Wynik operacji niekasowych wpływających na kwotę długu (m.in. umorzenia, różnice kursowe) | E98: =0 -> 0 | F98: =0 -> 0 | G98: =0 -> 0 | H98: =0 -> 0 | I98: =0 -> 0 | J98: =0 -> 0 | K98: =0 -> 0 | L98: =0 -> 0 | M98: =0 -> 0 | N98: =0 -> 0 | O98: =0 -> 0 | P98: =0 -> 0 | Q98: =0 -> 0 | R98: =0 -> 0 | S98: =0 -> 0
R99: PRZEWODNICZĄCY RADY
R100: Zbigniew Bączyński
B104: Weryfikacja danych wykazanych w tabeli Wieloletnia Prognoza Finansowa
D105: Reguła formalna
D106: Reguła rachunkowa
D107: Reguła logiczna
D108: Reguły kontrolne
B109: [1.1] + [4.1] + [4.2] >= ([2.1] - [2.1.2]) | D109: Spełnienie wskaźnika z art. 242 | E109: x | F109: x | G109: x | H109: x | I109: =IF(ROUND(I5+I25+I27,2)>=ROUND(I16-I19,2),"TAK","NIE") -> TAK | J109: =IF(ROUND(J5+J25+J27,2)>=ROUND(J16-J19,2),"TAK","NIE") -> TAK | K109: TAK | L109: TAK | M109: TAK | N109: TAK | O109: TAK | P109: TAK | Q109: TAK | R109: TAK | S109: TAK
D110: Spełnienie wskaźnika z art. 169 suofp (bez wyłączeń) | E110: x | F110: x | G110: x | H110: x | I110: =IF(I48<=15%,"TAK","NIE") -> TAK | J110: x | K110: x | L110: x | M110: x | N110: x | O110: x | P110: x | Q110: x | R110: x | S110: x
D111: Spełnienie wskaźnika z art. 169 suofp (z wyłączeniami) | E111: x | F111: x | G111: x | H111: x | I111: =IF(I49<=15%,"TAK","NIE") -> TAK | J111: x | K111: x | L111: x | M111: x | N111: x | O111: x | P111: x | Q111: x | R111: x | S111: x
D112: Spełnienie wskaźnika z art. 170 suofp (bez wyłączeń) | E112: x | F112: x | G112: x | H112: x | I112: =IF(I41<=60%,"TAK","NIE") -> TAK | J112: x | K112: x | L112: x | M112: x | N112: x | O112: x | P112: x | Q112: x | R112: x | S112: x
D113: Spełnienie wskaźnika z art. 170 suofp (z wyłączeniami) | E113: x | F113: x | G113: x | H113: x | I113: =IF(I42<=60%,"TAK","NIE") -> TAK | J113: x | K113: x | L113: x | M113: x | N113: x | O113: x | P113: x | Q113: x | R113: x | S113: x
B114: [13.3] = 0 (dla lat 2014 i wyższych) | D114: Umorzenie zobowiązań, o którym mowa w art. 190 ustawy o działalności leczniczej nie wykracza poza ustawowy okres | E114: x | F114: x | G114: x | H114: x | I114: x | J114: x | K114: =IF(K86=0,"TAK","BŁĄD") -> TAK | L114: TAK | M114: TAK | N114: TAK | O114: TAK | P114: TAK | Q114: TAK | R114: TAK | S114: TAK
B115: [1] + [4] - [2] - [5] = 0 | D115: Kontrola poprawności zbilansowania budżetu | E115: x | F115: x | G115: x | H115: x | I115: =IF(ROUND(I4+I24-I15-I33,2)=0,"OK",ROUND(I4+I24-I15-I33,2)) -> OK | J115: =IF(ROUND(J4+J24-J15-J33,2)=0,"OK",ROUND(J4+J24-J15-J33,2)) -> OK | K115: OK | L115: OK | M115: OK | N115: OK | O115: OK | P115: OK | Q115: OK | R115: OK | S115: OK
B116: [6]"n" = [6]"n-1" + [4.3]"n" - [5.1]"n" + ([14.2]"n"-[14.2]"n-1") + [14.4] | D116: Kontrola poprawności wyliczenia kwoty długu | E116: x | F116: x | G116: x | H116: x | I116: =+IF(ROUND(H38+I29-I34+(I93-H93)+I98-I38,2)=0,"OK",ROUND(H38+I29-I34+(I93-H93)+I98-I38,2)) -> OK | J116: =+IF(ROUND(I38+J29-J34+(J93-I93)+J98-J38,2)=0,"OK",ROUND(I38+J29-J34+(J93-I93)+J98-J38,2)) -> OK | K116: OK | L116: OK | M116: OK | N116: OK | O116: OK | P116: OK | Q116: OK | R116: OK | S116: OK
B117: [14.2] "n" = ( [14.2] "n-1" - [14.3] "n" ) | D117: Analiza zmiany kwoty długu spłacanego wydatkami budżetu - wartości różne od zera wymagają objaśnienia - wartości większe od zera wskazują na powstanie w roku prognozy nowego długu tego typu - wartości mniejsze od zera co do zasady nie powinny wystąpić | E117: x | F117: x | G117: x | H117: x | I117: =+IF(H93=0,"N/D",IF(ROUND(I93+I94-H93,2)=0,"OK",ROUND(I93+I94-H93,2))) -> N/D | J117: =+IF(I93=0,"N/D",IF(ROUND(J93+J94-I93,2)=0,"OK",ROUND(J93+J94-I93,2))) -> N/D | K117: N/D | L117: N/D | M117: N/D | N117: N/D | O117: N/D | P117: N/D | Q117: N/D | R117: N/D | S117: N/D
B118: [13.1] "n" - ( [13.3] + [13.4] + [13.5] + [13.6] ) "n" = [13.1] "n-1" | D118: Porównanie na koniec roku prognozy stanu zobowiązań przejętych przez jst po likwidowanych i przekształcanych SP ZOZ z wydatkami i umorzeniami poniesionymi na ten cel ze stanem zobowiązań z okresu N-1 | E118: x | F118: x | G118: x | H118: x | I118: =+IF(H84=0,"N/D",IF(ROUND(I84+(I86+I87+I88+I89)-H84,2)=0,"OK",ROUND(I84+(I86+I87+I88+I89)-H84,2))) -> N/D | J118: =+IF(I84=0,"N/D",IF(ROUND(J84+(J86+J87+J88+J89)-I84,2)=0,"OK",ROUND(J84+(J86+J87+J88+J89)-I84,2))) -> N/D | K118: N/D | L118: N/D | M118: N/D | N118: N/D | O118: N/D | P118: N/D | Q118: N/D | R118: N/D | S118: N/D
B119: jeśli [3] < 0 to sprawdź czy [4.1.1] + [4.2.1] + [4.3.1] + [4.4.1] + [3] = 0 | D119: Kontrola poprawności wykazania źródeł pokrycia deficytu | E119: x | F119: x | G119: x | H119: x | I119: =IF(I23<0,IF(ROUND(I26+I28+I30+I32+I23,2)=0,"OK",ROUND(I26+I28+I30+I32+I23,2)),"N/D") -> OK | J119: =IF(J23<0,IF(ROUND(J26+J28+J30+J32+J23,2)=0,"OK",ROUND(J26+J28+J30+J32+J23,2)),"N/D") -> N/D | K119: N/D | L119: N/D | M119: N/D | N119: N/D | O119: N/D | P119: N/D | Q119: N/D | R119: N/D | S119: N/D
B120: jeśli [3] >= 0 to sprawdź czy [4.1.1]=0 i [4.2.1]=0 i [4.3.1]=0 i [4.4.1] = 0 | D120: Kontrola poprawności niewykazania źródeł pokrycia deficytu przy nadwyżce budżetu | E120: x | F120: x | G120: x | H120: x | I120: =IF(I23>=0,IF(ROUND(I26+I28+I30+I32,2)=0,"OK",ROUND(I26+I28+I30+I32,2)),"N/D") -> N/D | J120: =IF(J23>=0,IF(ROUND(J26+J28+J30+J32,2)=0,"OK",ROUND(J26+J28+J30+J32,2)),"N/D") -> OK | K120: OK | L120: OK | M120: OK | N120: OK | O120: OK | P120: OK | Q120: OK | R120: OK | S120: OK
B121: [1.1.3] >= [1.1.3.1] | D121: Reguła logiczna: [1.1.3] >= [1.1.3.1] | E121: x | F121: x | G121: x | H121: x | I121: =IF(I8>=I9,"OK","BŁĄD") -> OK | J121: OK | K121: OK | L121: OK | M121: OK | N121: OK | O121: OK | P121: OK | Q121: OK | R121: OK | S121: OK
B122: [1.1.5] >= [13.2] | D122: Reguła logiczna: [1.1.5] >= [13.2] | E122: x | F122: x | G122: x | H122: x | I122: =IF(I11>=I85,"OK","BŁĄD") -> OK | J122: OK | K122: OK | L122: OK | M122: OK | N122: OK | O122: OK | P122: OK | Q122: OK | R122: OK | S122: OK
B123: [1.1] >= ([1.1.1] + [1.1.2] + [1.1.3] + [1.1.4] + [1.1.5]) | D123: Reguła logiczna: [1.1] >= ([1.1.1] + [1.1.2] + [1.1.3] + [1.1.4] + [1.1.5]) | E123: x | F123: x | G123: x | H123: x | I123: =IF(I5>=I6+I7+I8+I10+I11,"OK","BŁĄD") -> OK | J123: OK | K123: OK | L123: OK | M123: OK | N123: OK | O123: OK | P123: OK | Q123: OK | R123: OK | S123: OK
B124: [1.1] >= [12.1] | D124: Reguła logiczna: [1.1] >= [12.1] | E124: x | F124: x | G124: x | H124: x | I124: =IF(I5>=I71,"OK","BŁĄD") -> OK | J124: OK | K124: OK | L124: OK | M124: OK | N124: OK | O124: OK | P124: OK | Q124: OK | R124: OK | S124: OK
B125: [1.2] >= [1.2.1] | D125: Reguła logiczna: [1.2] >= [1.2.1] | E125: x | F125: x | G125: x | H125: x | I125: =IF(I12>=I13,"OK","BŁĄD") -> OK | J125: OK | K125: OK | L125: OK | M125: OK | N125: OK | O125: OK | P125: OK | Q125: OK | R125: OK | S125: OK
B126: [1.2] >= [1.2.2] | D126: Reguła logiczna: [1.2] >= [1.2.2] | E126: x | F126: x | G126: x | H126: x | I126: =IF(I12>=I14,"OK","BŁĄD") -> OK | J126: OK | K126: OK | L126: OK | M126: OK | N126: OK | O126: OK | P126: OK | Q126: OK | R126: OK | S126: OK
B127: [1.2] >= [12.2] | D127: Reguła logiczna: [1.2] >= [12.2] | E127: x | F127: x | G127: x | H127: x | I127: =IF(I12>=I74,"OK","BŁĄD") -> OK | J127: OK | K127: OK | L127: OK | M127: OK | N127: OK | O127: OK | P127: OK | Q127: OK | R127: OK | S127: OK
D128: Reguła logiczna: jeżeli [3] >0 to [10] = [3] | E128: x | F128: x | G128: x | H128: x | I128: =+IF(I23>0,IF(I23=I59,"OK","Błąd"),"N/D") -> N/D | J128: =+IF(J23>0,IF(J23=J59,"OK","Błąd"),"N/D") -> OK | K128: OK | L128: OK | M128: OK | N128: OK | O128: OK | P128: OK | Q128: OK | R128: OK | S128: OK
B129: [10] >= [10.1] | D129: Reguła logiczna: [10] >= [10.1] | E129: x | F129: x | G129: x | H129: x | I129: =IF(I59>=I60,"OK","BŁĄD") -> OK | J129: OK | K129: OK | L129: OK | M129: OK | N129: OK | O129: OK | P129: OK | Q129: OK | R129: OK | S129: OK
D130: Reguła logiczna: jeżeli [10] > 0 to [10.1] >0 | E130: x | F130: x | G130: x | H130: x | I130: =IF(I59>0,IF(I60>0,"OK","BŁĄD"),"N/D") -> N/D | J130: =IF(J59>0,IF(J60>0,"OK","BŁĄD"),"N/D") -> OK | K130: OK | L130: OK | M130: OK | N130: OK | O130: OK | P130: OK | Q130: OK | R130: OK | S130: OK
B131: [12.1] >= [12.1.1] | D131: Reguła logiczna: [12.1] >= [12.1.1] | E131: x | F131: x | G131: x | H131: x | I131: =IF(I71>=I72,"OK","BŁĄD") -> OK | J131: OK | K131: OK | L131: OK | M131: OK | N131: OK | O131: OK | P131: OK | Q131: OK | R131: OK | S131: OK
B132: [12.1.1] >= [12.1.1.1] | D132: Reguła logiczna: [12.1.1] >= [12.1.1.1] | E132: x | F132: x | G132: x | H132: x | I132: =IF(I72>=I73,"OK","BŁĄD") -> OK | J132: OK | K132: OK | L132: OK | M132: OK | N132: OK | O132: OK | P132: OK | Q132: OK | R132: OK | S132: OK
B133: [12.2] >= [12.2.1] | D133: Reguła logiczna: [12.2] >= [12.2.1] | E133: x | F133: x | G133: x | H133: x | I133: =IF(I74>=I75,"OK","BŁĄD") -> OK | J133: OK | K133: OK | L133: OK | M133: OK | N133: OK | O133: OK | P133: OK | Q133: OK | R133: OK | S133: OK
B134: [12.2.1] >= [12.2.1.1] | D134: Reguła logiczna: [12.2.1] >= [12.2.1.1] | E134: x | F134: x | G134: x | H134: x | I134: =IF(I75>=I76,"OK","BŁĄD") -> OK | J134: OK | K134: OK | L134: OK | M134: OK | N134: OK | O134: OK | P134: OK | Q134: OK | R134: OK | S134: OK
B135: [12.3] >= [12.3.1] | D135: Reguła logiczna: [12.3] >= [12.3.1] | E135: x | F135: x | G135: x | H135: x | I135: =IF(I77>=I78,"OK","BŁĄD") -> OK | J135: OK | K135: OK | L135: OK | M135: OK | N135: OK | O135: OK | P135: OK | Q135: OK | R135: OK | S135: OK
B136: [12.3] >= [12.3.2] | D136: Reguła logiczna: [12.3] >= [12.3.2] | E136: x | F136: x | G136: x | H136: x | I136: =IF(I77>=I79,"OK","BŁĄD") -> OK | J136: OK | K136: OK | L136: OK | M136: OK | N136: OK | O136: OK | P136: OK | Q136: OK | R136: OK | S136: OK
B137: [12.4] >= [12.4.1] | D137: Reguła logiczna: [12.4] >= [12.4.1] | E137: x | F137: x | G137: x | H137: x | I137: =IF(I80>=I81,"OK","BŁĄD") -> OK | J137: OK | K137: OK | L137: OK | M137: OK | N137: OK | O137: OK | P137: OK | Q137: OK | R137: OK | S137: OK
B138: [12.4] >= [12.4.2] | D138: Reguła logiczna: [12.4] >= [12.4.2] | E138: x | F138: x | G138: x | H138: x | I138: =IF(I80>=I82,"OK","BŁĄD") -> OK | J138: OK | K138: OK | L138: OK | M138: OK | N138: OK | O138: OK | P138: OK | Q138: OK | R138: OK | S138: OK
B139: [13.1] >= [13.3] | D139: Reguła logiczna: [13.1] >= [13.3] | E139: x | F139: x | G139: x | H139: x | I139: =IF(I84>=I86,"OK","BŁĄD") -> OK | J139: OK | K139: OK | L139: OK | M139: OK | N139: OK | O139: OK | P139: OK | Q139: OK | R139: OK | S139: OK
B140: [13.4] >= [2.1.2] | D140: Reguła logiczna: [13.4] >= [2.1.2] | E140: x | F140: x | G140: x | H140: x | I140: =IF(I87>=I19,"OK","BŁĄD") -> OK | J140: OK | K140: OK | L140: OK | M140: OK | N140: OK | O140: OK | P140: OK | Q140: OK | R140: OK | S140: OK
B141: [14.3] >= [14.3.1] + [14.3.2] + [14.3.3] | D141: Reguła logiczna: [14.3] >= [14.3.1] + [14.3.2] + [14.3.3] | E141: x | F141: x | G141: x | H141: x | I141: =IF(I94>=(I95+I96+I97),"OK","BŁĄD") -> OK | J141: OK | K141: OK | L141: OK | M141: OK | N141: OK | O141: OK | P141: OK | Q141: OK | R141: OK | S141: OK
B142: [2.1.1] >= [2.1.1.1] | D142: Reguła logiczna: [2.1.1] >= [2.1.1.1] | E142: x | F142: x | G142: x | H142: x | I142: =IF(I17>=I18,"OK","BŁĄD") -> OK | J142: OK | K142: OK | L142: OK | M142: OK | N142: OK | O142: OK | P142: OK | Q142: OK | R142: OK | S142: OK
B143: [2.1.1] >= [14.3.3] | D143: Reguła logiczna: [2.1.1] >= [14.3.3] | E143: x | F143: x | G143: x | H143: x | I143: =IF(I17>=I97,"OK","BŁĄD") -> OK | J143: OK | K143: OK | L143: OK | M143: OK | N143: OK | O143: OK | P143: OK | Q143: OK | R143: OK | S143: OK
B144: [2.1.3] >= [2.1.3.1] | D144: Reguła logiczna: [2.1.3] >= [2.1.3.1] | E144: x | F144: x | G144: x | H144: x | I144: =IF(I20>=I21,"OK","BŁĄD") -> OK | J144: OK | K144: OK | L144: OK | M144: OK | N144: OK | O144: OK | P144: OK | Q144: OK | R144: OK | S144: OK
B145: [2.1] >= ([2.1.1] + [2.1.2] + [2.1.3]) | D145: Reguła logiczna: [2.1] >= ([2.1.1] + [2.1.2] + [2.1.3]) | E145: x | F145: x | G145: x | H145: x | I145: =IF(I16>=(I17+I19+I20),"OK","BŁĄD") -> OK | J145: OK | K145: OK | L145: OK | M145: OK | N145: OK | O145: OK | P145: OK | Q145: OK | R145: OK | S145: OK
B146: [2.1] >= [11.1] | D146: Reguła logiczna: [2.1] >= [11.1] | E146: x | F146: x | G146: x | H146: x | I146: =IF(I16>=I62,"OK","BŁĄD") -> OK | J146: OK | K146: OK | L146: OK | M146: OK | N146: OK | O146: OK | P146: OK | Q146: OK | R146: OK | S146: OK
B147: [2.1] >= [11.3.1] | D147: Reguła logiczna: [2.1] >= [11.3.1] | E147: x | F147: x | G147: x | H147: x | I147: =IF(I16>=I65,"OK","BŁĄD") -> OK | J147: OK | K147: OK | L147: OK | M147: OK | N147: OK | O147: OK | P147: OK | Q147: OK | R147: OK | S147: OK
B148: [2.1] >= [12.3] | D148: Reguła logiczna: [2.1] >= [12.3] | E148: x | F148: x | G148: x | H148: x | I148: =IF(I16>=I77,"OK","BŁĄD") -> OK | J148: OK | K148: OK | L148: OK | M148: OK | N148: OK | O148: OK | P148: OK | Q148: OK | R148: OK | S148: OK
B149: [2.1] >= [13.7] | D149: Reguła logiczna: [2.1] >= [13.7] | E149: x | F149: x | G149: x | H149: x | I149: =IF(I16>=I90,"OK","BŁĄD") -> OK | J149: OK | K149: OK | L149: OK | M149: OK | N149: OK | O149: OK | P149: OK | Q149: OK | R149: OK | S149: OK
B150: [2.2] >= [11.3.2] | D150: Reguła logiczna: [2.2] >= [11.3.2] | E150: x | F150: x | G150: x | H150: x | I150: =IF(I22>=I66,"OK","BŁĄD") -> OK | J150: OK | K150: OK | L150: OK | M150: OK | N150: OK | O150: OK | P150: OK | Q150: OK | R150: OK | S150: OK
B151: [2.2] >= [11.4] + [11.5] | D151: Reguła logiczna: [2.2] >= [11.4] + [11.5] | E151: x | F151: x | G151: x | H151: x | I151: =IF(I22>=I67+I68,"OK","BŁĄD") -> OK | J151: OK | K151: OK | L151: OK | M151: OK | N151: OK | O151: OK | P151: OK | Q151: OK | R151: OK | S151: OK
B152: [2.2] >= [11.6] | D152: Reguła logiczna: [2.2] >= [11.6] | E152: x | F152: x | G152: x | H152: x | I152: =IF(I22>=I69,"OK","BŁĄD") -> OK | J152: OK | K152: OK | L152: OK | M152: OK | N152: OK | O152: OK | P152: OK | Q152: OK | R152: OK | S152: OK
B153: [2.2] >= [12.4] | D153: Reguła logiczna: [2.2] >= [12.4] | E153: x | F153: x | G153: x | H153: x | I153: =IF(I22>=I80,"OK","BŁĄD") -> OK | J153: OK | K153: OK | L153: OK | M153: OK | N153: OK | O153: OK | P153: OK | Q153: OK | R153: OK | S153: OK
B154: [4.1] >= [4.1.1] | D154: Reguła logiczna: [4.1] >= [4.1.1] | E154: x | F154: x | G154: x | H154: x | I154: =IF(I25>=I26,"OK","BŁĄD") -> OK | J154: OK | K154: OK | L154: OK | M154: OK | N154: OK | O154: OK | P154: OK | Q154: OK | R154: OK | S154: OK
B155: [4.2] >= [4.2.1] | D155: Reguła logiczna: [4.2] >= [4.2.1] | E155: x | F155: x | G155: x | H155: x | I155: =IF(I27>=I28,"OK","BŁĄD") -> OK | J155: OK | K155: OK | L155: OK | M155: OK | N155: OK | O155: OK | P155: OK | Q155: OK | R155: OK | S155: OK
B156: [4.3] >= [4.3.1] | D156: Reguła logiczna: [4.3] >= [4.3.1] | E156: x | F156: x | G156: x | H156: x | I156: =IF(I29>=I30,"OK","BŁĄD") -> OK | J156: OK | K156: OK | L156: OK | M156: OK | N156: OK | O156: OK | P156: OK | Q156: OK | R156: OK | S156: OK
B157: [4.4] >= [4.4.1] | D157: Reguła logiczna: [4.4] >= [4.4.1] | E157: x | F157: x | G157: x | H157: x | I157: =IF(I31>=I32,"OK","BŁĄD") -> OK | J157: OK | K157: OK | L157: OK | M157: OK | N157: OK | O157: OK | P157: OK | Q157: OK | R157: OK | S157: OK
B158: [5.1] >= [5.1.1] | D158: Reguła logiczna: [5.1] >= [5.1.1] | E158: x | F158: x | G158: x | H158: x | I158: =IF(I34>=I35,"OK","BŁĄD") -> OK | J158: OK | K158: OK | L158: OK | M158: OK | N158: OK | O158: OK | P158: OK | Q158: OK | R158: OK | S158: OK
B159: [5.1.1] >= [5.1.1.1] | D159: Reguła logiczna: [5.1.1] >= [5.1.1.1] | E159: x | F159: x | G159: x | H159: x | I159: =IF(I35>=I36,"OK","BŁĄD") -> OK | J159: OK | K159: OK | L159: OK | M159: OK | N159: OK | O159: OK | P159: OK | Q159: OK | R159: OK | S159: OK
B160: [5.1] >= [10.1] | D160: Reguła logiczna: [5.1] >= [10.1] | E160: x | F160: x | G160: x | H160: x | I160: =IF(I34>=I60,"OK","BŁĄD") -> OK | J160: OK | K160: OK | L160: OK | M160: OK | N160: OK | O160: OK | P160: OK | Q160: OK | R160: OK | S160: OK
B161: [5.1] >= [14.1] | D161: Reguła logiczna: [5.1] >= [14.1] | E161: x | F161: x | G161: x | H161: x | I161: =IF(I34>=I92,"OK","BŁĄD") -> OK | J161: OK | K161: OK | L161: OK | M161: OK | N161: OK | O161: OK | P161: OK | Q161: OK | R161: OK | S161: OK
B162: [6] >= [6.1] | D162: Reguła logiczna: [6] >= [6.1] | E162: x | F162: x | G162: x | H162: x | I162: =IF(I38>=I39,"OK","BŁĄD") -> OK | J162: OK | K162: OK | L162: OK | M162: OK | N162: OK | O162: OK | P162: OK | Q162: OK | R162: OK | S162: OK
B163: [6] >=[7] | D163: Reguła logiczna: [6] >=[7] | E163: x | F163: x | G163: x | H163: x | I163: =IF(I38>=I43,"OK","BŁĄD") -> OK | J163: OK | K163: OK | L163: OK | M163: OK | N163: OK | O163: OK | P163: OK | Q163: OK | R163: OK | S163: OK
B164: [6] >= [14.2] | D164: Reguła logiczna: [6] >= [14.2] | E164: x | F164: x | G164: x | H164: x | I164: =IF(I38>=I93,"OK","BŁĄD") -> OK | J164: OK | K164: OK | L164: OK | M164: OK | N164: OK | O164: OK | P164: OK | Q164: OK | R164: OK | S164: OK
B165: [6.1] >= [6.1.1] | D165: Reguła logiczna: [6.1] >= [6.1.1] | E165: x | F165: x | G165: x | H165: x | I165: =+IF(I39>=I40,"OK","BŁĄD") -> OK | J165: OK | K165: OK | L165: OK | M165: OK | N165: OK | O165: OK | P165: OK | Q165: OK | R165: OK | S165: OK
B166: 7>=13.1 | D166: Reguła logiczna: 7>=13.1 | E166: x | F166: x | G166: x | H166: x | I166: =IF(I43>=I84,"OK","BŁĄD") -> OK | J166: OK | K166: OK | L166: OK | M166: OK | N166: OK | O166: OK | P166: OK | Q166: OK | R166: OK | S166: OK
B167: jeżeli [2.1.3] <> 0 to [2.1.3.1] <> 0 | D167: Reguła logiczna: jeżeli [2.1.3] <> 0 to [2.1.3.1] <> 0 | E167: x | F167: x | G167: x | H167: x | I167: =IF(I20<>0,IF(I21<>0,"OK","BŁĄD"),"N/D") -> OK | J167: OK | K167: OK | L167: OK | M167: OK | N167: OK | O167: OK | P167: OK | Q167: OK | R167: OK | S167: OK
D169: Kontrola poprawności podstawowych kwot
D170: Dochody ogółem = bieżące + majątkowe | E170: =E5+E12 -> 31484876.01 | F170: 31063442.33 | G170: 35624119.93 | H170: 34438420.27 | I170: 37144207.17 | J170: 31500000.71 | K170: 31500000 | L170: 31500000 | M170: 32000000 | N170: 32500000 | O170: 33000000 | P170: 33500000 | Q170: 34000000 | R170: 34500000 | S170: 35000000
D171: Wydatki ogółem = bieżące + majątkowe | E171: =E16+E22 -> 34609335.7 | F171: 31037203.93 | G171: 40495660.86 | H171: 36384626.19 | I171: 39751618.39 | J171: 30561940.55 | K171: 30284308 | L171: 29934304 | M171: 30084300 | N171: 30821796 | O171: 31389996 | P171: 31889996 | Q171: 32389996 | R171: 32849996 | S171: 33290000
D172: Wynik budżetu = dochody ogółem - wydatki ogółem | E172: =E4-E15 -> -3124459.69 | F172: 26238.4 | G172: -4871540.93 | H172: -1946205.92 | I172: -2607411.22 | J172: 938060.16 | K172: 1215692 | L172: 1565696 | M172: 1915700 | N172: 1678204 | O172: 1610004 | P172: 1610004 | Q172: 1610004 | R172: 1650004 | S172: 1710000
D173: Wyliczenie kwoty długu | E173: x | F173: =E38+F29-F34+(F93-E93)+F98 -> 13906544.86 | G173: x | H173: =F38+H29-H34+(H93-F93)+H98 -> 15503368.16 | I173: =H38+I29-I34+(I93-H93)+I98 -> 15503368.16 | J173: 14565308 | K173: 13349616 | L173: 11783920 | M173: 9868220 | N173: 8190016 | O173: 6580012 | P173: 4970008 | Q173: 3360004 | R173: 1710000 | S173: 0
D174: Wyliczenie zobowiązań wynikających z przejęcia przez jst zobowiązań po likwidowanych i przekształcanych SZOZ | E174: x | F174: =E84-(F86+F87+F88+F89) -> 0 | G174: x | H174: =F84-(H86+H87+H88+H89) -> 0 | I174: =H84-(I86+I87+I88+I89) -> 0 | J174: =I84-(J86+J87+J88+J89) -> 0 | K174: 0 | L174: 0 | M174: 0 | N174: 0 | O174: 0 | P174: 0 | Q174: 0 | R174: 0 | S174: 0
D176: Analiza ryzyka niespełnienia wskaźnika z art. 243
D177: Analiza składowych wzoru wskaźnika z art. 243
D178: 0 | E178: =+"różnica mniejsza od "&TEXT(D178*100,"0,0")&"%" -> różnica mniejsza od 0,0%
D179: 0.005 | E179: =+"różnica mniejsza od "&TEXT(D179*100,"0,0")&"%" -> różnica mniejsza od 0,5%
D180: 0.01 | E180: =+"różnica mniejsza od "&TEXT(D180*100,"0,0")&"%" -> różnica mniejsza od 1,0%
D181: max. limit spłat (planistyczny) - (R+O)/D (bez wyłączeń) | E181: x | F181: x | G181: x | H181: x | I181: =+IF(I4=0,"",I55-I50) -> -0.0919 | J181: -0.0089 | K181: 0.0078 | L181: 0.037 | M181: 0.0612 | N181: 0.0668 | O181: 0.0695 | P181: 0.073 | Q181: 0.0751 | R181: 0.0769 | S181: 0.0768
D182: max. limit spłat (planistyczny) - (R+O)/D (z wyłączeniami) | E182: x | F182: x | G182: x | H182: x | I182: =+IF(I4=0,"",I55-I51) -> -0.0919 | J182: -0.0089 | K182: 0.0078 | L182: 0.037 | M182: 0.0612 | N182: 0.0668 | O182: 0.0695 | P182: 0.073 | Q182: 0.0751 | R182: 0.0769 | S182: 0.0768
D183: max. limit spłat (wg wykonania) - (R+O)/D (bez wyłączeń) | E183: x | F183: x | G183: x | H183: x | I183: =+IF(I4=0,"",I56-I50) -> -0.0724 | J183: 0.0106 | K183: 0.0274 | L183: 0.037 | M183: 0.0612 | N183: 0.0668 | O183: 0.0695 | P183: 0.073 | Q183: 0.0751 | R183: 0.0769 | S183: 0.0768
D184: max. limit spłat (wg wykonania) - (R+O)/D (z wyłączeniami) | E184: x | F184: x | G184: x | H184: x | I184: =+IF(I4=0,"",I56-I51) -> -0.0724 | J184: 0.0106 | K184: 0.0274 | L184: 0.037 | M184: 0.0612 | N184: 0.0668 | O184: 0.0695 | P184: 0.073 | Q184: 0.0751 | R184: 0.0769 | S184: 0.0768
D185: DYNAMIKA podstawowych wielkości z prognozy
D186: 0.05 | E186: =+"zmiana większa niż +/- "&TEXT(D186*100,"0,0")&"%" -> zmiana większa niż +/- 5,0%
D187: 0.1 | E187: =+"zmiana większa niż +/- "&TEXT(D187*100,"0,0")&"%" -> zmiana większa niż +/- 10,0%
D188: 0.2 | E188: =+"zmiana większa niż +/- "&TEXT(D188*100,"0,0")&"%" -> zmiana większa niż +/- 20,0% | G188: [N-1]pl3kw / [N-2] | H188: [N-1]wyk / [N-1]pl3kw
D189: Dochody ogółem | E189: - | F189: =+IF(F4=0,0,IF(E215<>0,F215/E215-1,0)) -> -0.01338527361 | G189: 0.146818165 | H189: -0.0332836197 | I189: 0.07856884488 | J189: -0.1519538816 | K189: -2.253968201e-08 | L189: 0 | M189: 0.01587301587 | N189: 0.015625 | O189: 0.01538461538 | P189: 0.01515151515 | Q189: 0.01492537313 | R189: 0.01470588235 | S189: 0.01449275362
D190: dochody ogółem bez środków UE (fin. i współfin.) | E190: - | F190: =+IF(F4=0,0,IF(E216<>0,F216/E216-1,0)) -> -0.01338527361 | G190: 0.146818165 | H190: -0.05942855723 | I190: -0.04274544253 | J190: -0.02485914573 | K190: 0.007116766653 | L190: 0 | M190: 0.01587301587 | N190: 0.015625 | O190: 0.01538461538 | P190: 0.01515151515 | Q190: 0.01492537313 | R190: 0.01470588235 | S190: 0.01449275362
D191: dochody bieżące bez środków UE (fin. i współfin.) | E191: - | F191: =+IF(F4=0,0,IF(E217<>0,F217/E217-1,0)) -> 0.09727063445 | G191: 0.05290747826 | H191: -0.04777515525 | I191: 0.07103709719 | J191: 0.02514944525 | K191: 0.007116766653 | L191: 0 | M191: 0.01587301587 | N191: 0.015625 | O191: 0.01538461538 | P191: 0.01515151515 | Q191: 0.01492537313 | R191: 0.01470588235 | S191: 0.01449275362
D192: dochody majątkowe bez środków UE (fin. i współfin.) | E192: - | F192: =+IF(F4=0,0,IF(E218<>0,F218/E218-1,0)) -> -0.5258614652 | G192: 1.153338624 | H192: -0.1205000026 | I192: -0.6883472835 | J192: -1 | K192: 0 | L192: 0 | M192: 0 | N192: 0 | O192: 0 | P192: 0 | Q192: 0 | R192: 0 | S192: 0
D193: dochody majątkowe bez środków UE (fin. i współfin.) i bez sprzedaży majątku | E193: - | F193: =+IF(F4=0,0,IF(E219<>0,F219/E219-1,0)) -> -0.3829391195 | G193: 1.136576068 | H193: -0.1333269012 | I193: -0.703812384 | J193: -1 | K193: 0 | L193: 0 | M193: 0 | N193: 0 | O193: 0 | P193: 0 | Q193: 0 | R193: 0 | S193: 0
D194: dochody ze sprzedaży majątku | E194: - | F194: =+IF(F4=0,0,IF(E220<>0,F220/E220-1,0)) -> -0.9805512216 | G194: 2.845301964 | H194: 0.5988832 | I194: -0.2182043066 | J194: -1 | K194: 0 | L194: 0 | M194: 0 | N194: 0 | O194: 0 | P194: 0 | Q194: 0 | R194: 0 | S194: 0
D195: Wydatki ogółem | E195: - | F195: =+IF(F4=0,0,IF(E221<>0,F221/E221-1,0)) -> -0.1032129539 | G195: 0.3047457803 | H195: -0.1015179054 | I195: 0.09253887019 | J195: -0.2311774517 | K195: -0.009084257904 | L195: -0.0115572725 | M195: 0.005010839738 | N195: 0.02451431478 | O195: 0.01843500619 | P195: 0.01592864172 | Q195: 0.01567889817 | R195: 0.01420191592 | S195: 0.01339433953
D196: wydatki ogółem bez wydatków na projekty finansowane i współfinansowane środkami UE | E196: - | F196: =+IF(F4=0,0,IF(E222<>0,F222/E222-1,0)) -> -0.1032129539 | G196: 0.3047457803 | H196: -0.1015179054 | I196: 0.0180592225 | J196: -0.1820083332 | K196: -0.0005114686314 | L196: -0.0115572725 | M196: 0.005010839738 | N196: 0.02451431478 | O196: 0.01843500619 | P196: 0.01592864172 | Q196: 0.01567889817 | R196: 0.01420191592 | S196: 0.01339433953
D197: wydatki bieżące ogółem | E197: - | F197: =+IF(F4=0,0,IF(E223<>0,F223/E223-1,0)) -> 0.03655915967 | G197: 0.1182294314 | H197: -0.0832852509 | I197: 0.170164898 | J197: -0.1424235402 | K197: 0.01008465732 | L197: 0.009944751381 | M197: 0.01349380015 | N197: 0.01583303347 | O197: 0.01558625576 | P197: 0.01639344262 | Q197: 0.01612903226 | R197: 0.01519756839 | S197: 0.01663339987
D198: wydatki bieżące ogółem bez wydatków na projekty współfinansowane środkami UE | E198: - | F198: =+IF(F4=0,0,IF(E224<>0,F224/E224-1,0)) -> 0.03655915967 | G198: 0.1182294314 | H198: -0.0832852509 | I198: 0.09643344402 | J198: -0.09368028933 | K198: 0.0200324607 | L198: 0.009944751381 | M198: 0.01349380015 | N198: 0.01583303347 | O198: 0.01558625576 | P198: 0.01639344262 | Q198: 0.01612903226 | R198: 0.01519756839 | S198: 0.01663339987
D199: wydatki bieżące na wynagrodzenia i składki od nich naliczane | E199: - | F199: =+IF(F4=0,0,IF(E225<>0,F225/E225-1,0)) -> -1 | G199: 0 | H199: -0.01608088118 | I199: 0.04783928655 | J199: -0.01440432187 | K199: 0.03225806452 | L199: 0.015625 | M199: 0.01538461538 | N199: 0.01515151515 | O199: 0.01492537313 | P199: 0.01470588235 | Q199: 0.01449275362 | R199: 0.01792857143 | S199: 0.01747245807
D200: pozostałe wydatki bieżące (wydatki bieżące bez wynagrodzeń i pochodnych oraz wydatków związanych z funkcjonowaniem organów jst, wydatków na obsługę długu oraz poręczeń i gwarancji) | E200: - | F200: =+IF(F4=0,0,IF(E226<>0,F226/E226-1,0)) -> 0.8348975315 | G200: -0.3642655908 | H200: -0.1329110787 | I200: 0.06618321443 | J200: -0.2780048288 | K200: -0.01726908794 | L200: 0.002457234666 | M200: 0.0131045536 | N200: 0.01935603946 | O200: 0.01862333394 | P200: 0.02106112206 | Q200: 0.02027560783 | R200: 0.01703372333 | S200: 0.01776349179
D201: WIELKOŚĆ ZMIAN w podstawowych kwotach prognozy | G201: [N-1]pl3kw - [N-2] | H201: [N-1]wyk - [N-1]pl3kw
D202: Dochody ogółem | E202: - | F202: =+IF(F$215=0,"",F215-E215) -> -421433.68 | G202: =+IF(G$215=0,"",G215-F215) -> 4560677.6 | H202: =+IF(H$215=0,"",H215-G215) -> -1185699.66 | I202: =+IF(I$215=0,"",I215-H215) -> 2705786.9 | J202: -5644206.46 | K202: -0.7100000009 | L202: 0 | M202: 500000 | N202: 500000 | O202: 500000 | P202: 500000 | Q202: 500000 | R202: 500000 | S202: 500000
D203: dochody ogółem bez środków UE (fin. i współfin.) | E203: - | F203: -421433.68 | G203: 4560677.6 | H203: -2117090.05 | I203: =+IF(I$215=0,"",I216-H216) -> -1432272.82 | J203: -797351.06 | K203: 222594 | L203: 0 | M203: 500000 | N203: 500000 | O203: 500000 | P203: 500000 | Q203: 500000 | R203: 500000 | S203: 500000
D204: dochody bieżące bez środków UE (fin. i współfin.) | E204: - | F204: 2518705.01 | G204: 1503233.26 | H204: -1429228.38 | I204: =+IF(I$215=0,"",I217-H217) -> 2023597.99 | J204: 767311.94 | K204: 222594 | L204: 0 | M204: 500000 | N204: 500000 | O204: 500000 | P204: 500000 | Q204: 500000 | R204: 500000 | S204: 500000
D205: dochody majątkowe bez środków UE (fin. i współfin.) | E205: - | F205: -2940138.69 | G205: 3057444.34 | H205: -687861.67 | I205: =+IF(I$215=0,"",I218-H218) -> -3455870.81 | J205: -1564663 | K205: 0 | L205: 0 | M205: 0 | N205: 0 | O205: 0 | P205: 0 | Q205: 0 | R205: 0 | S205: 0
D206: dochody majątkowe bez środków UE (fin. i współfin.) i bez sprzedaży majątku | E206: - | F206: -1629003.4 | G206: 2983450.1 | H206: -747749.99 | I206: =+IF(I$215=0,"",I219-H219) -> -3420982.49 | J206: -1439663 | K206: 0 | L206: 0 | M206: 0 | N206: 0 | O206: 0 | P206: 0 | Q206: 0 | R206: 0 | S206: 0
... 116 more rows

Sheet definicja (hidden)
B9: Lp. | C9: Wyszczególnienie | D9: 0 | E9: 0 | F9: =+E9+1 -> 1 | G9: =+F9+1 -> 2 | H9: 3 | I9: 4 | J9: 5 | K9: 6 | L9: 7 | M9: 8 | N9: 9 | O9: 10 | P9: =+O9+1 -> 11 | Q9: 12 | R9: 13 | S9: 14 | T9: 15 | U9: 16 | V9: 17 | W9: 18 | X9: 19 | Y9: 20 | Z9: 21 | AA9: 22 | AB9: 23 | AC9: 24 | AD9: 25 | AE9: 26 | AF9: 27 | AG9: =+AF9+1 -> 28 | AH9: =+AG9+1 -> 29
A10: 10 | B10: 1 | C10: Dochody ogółem | D10: =+"rokwzgl="&D$9&" i lp="&$A10 -> rokwzgl=0 i lp=10 | E10: rokwzgl=0 i lp=10 | F10: rokwzgl=1 i lp=10 | G10: rokwzgl=2 i lp=10 | H10: rokwzgl=3 i lp=10 | I10: rokwzgl=4 i lp=10 | J10: rokwzgl=5 i lp=10 | K10: rokwzgl=6 i lp=10 | L10: rokwzgl=7 i lp=10 | M10: rokwzgl=8 i lp=10 | N10: =+"rokwzgl="&N$9&" i lp="&$A10 -> rokwzgl=9 i lp=10 | O10: rokwzgl=10 i lp=10 | P10: rokwzgl=11 i lp=10 | Q10: rokwzgl=12 i lp=10 | R10: rokwzgl=13 i lp=10 | S10: rokwzgl=14 i lp=10 | T10: rokwzgl=15 i lp=10 | U10: rokwzgl=16 i lp=10 | V10: rokwzgl=17 i lp=10 | W10: rokwzgl=18 i lp=10 | X10: =+"rokwzgl="&X$9&" i lp="&$A10 -> rokwzgl=19 i lp=10 | Y10: rokwzgl=20 i lp=10 | Z10: rokwzgl=21 i lp=10 | AA10: rokwzgl=22 i lp=10 | AB10: rokwzgl=23 i lp=10 | AC10: rokwzgl=24 i lp=10 | AD10: rokwzgl=25 i lp=10 | AE10: rokwzgl=26 i lp=10 | AF10: rokwzgl=27 i lp=10 | AG10: rokwzgl=28 i lp=10 | AH10: rokwzgl=29 i lp=10
A11: 20 | B11: 1.1 | C11: Dochody bieżące | D11: rokwzgl=0 i lp=20 | E11: rokwzgl=0 i lp=20 | F11: rokwzgl=1 i lp=20 | G11: rokwzgl=2 i lp=20 | H11: rokwzgl=3 i lp=20 | I11: rokwzgl=4 i lp=20 | J11: rokwzgl=5 i lp=20 | K11: rokwzgl=6 i lp=20 | L11: rokwzgl=7 i lp=20 | M11: rokwzgl=8 i lp=20 | N11: rokwzgl=9 i lp=20 | O11: rokwzgl=10 i lp=20 | P11: rokwzgl=11 i lp=20 | Q11: rokwzgl=12 i lp=20 | R11: rokwzgl=13 i lp=20 | S11: rokwzgl=14 i lp=20 | T11: rokwzgl=15 i lp=20 | U11: rokwzgl=16 i lp=20 | V11: rokwzgl=17 i lp=20 | W11: rokwzgl=18 i lp=20 | X11: rokwzgl=19 i lp=20 | Y11: rokwzgl=20 i lp=20 | Z11: rokwzgl=21 i lp=20 | AA11: rokwzgl=22 i lp=20 | AB11: rokwzgl=23 i lp=20 | AC11: rokwzgl=24 i lp=20 | AD11: rokwzgl=25 i lp=20 | AE11: rokwzgl=26 i lp=20 | AF11: rokwzgl=27 i lp=20 | AG11: rokwzgl=28 i lp=20 | AH11: rokwzgl=29 i lp=20
A12: 30 | B12: 1.1.1 | C12: dochody z tytułu udziału we wpływach z podatku dochodowego od osób fizycznych | D12: rokwzgl=0 i lp=30 | E12: rokwzgl=0 i lp=30 | F12: rokwzgl=1 i lp=30 | G12: rokwzgl=2 i lp=30 | H12: rokwzgl=3 i lp=30 | I12: rokwzgl=4 i lp=30 | J12: rokwzgl=5 i lp=30 | K12: rokwzgl=6 i lp=30 | L12: rokwzgl=7 i lp=30 | M12: rokwzgl=8 i lp=30 | N12: rokwzgl=9 i lp=30 | O12: rokwzgl=10 i lp=30 | P12: rokwzgl=11 i lp=30 | Q12: rokwzgl=12 i lp=30 | R12: rokwzgl=13 i lp=30 | S12: rokwzgl=14 i lp=30 | T12: rokwzgl=15 i lp=30 | U12: rokwzgl=16 i lp=30 | V12: rokwzgl=17 i lp=30 | W12: rokwzgl=18 i lp=30 | X12: rokwzgl=19 i lp=30 | Y12: rokwzgl=20 i lp=30 | Z12: rokwzgl=21 i lp=30 | AA12: rokwzgl=22 i lp=30 | AB12: rokwzgl=23 i lp=30 | AC12: rokwzgl=24 i lp=30 | AD12: rokwzgl=25 i lp=30 | AE12: rokwzgl=26 i lp=30 | AF12: rokwzgl=27 i lp=30 | AG12: rokwzgl=28 i lp=30 | AH12: rokwzgl=29 i lp=30
A13: 40 | B13: 1.1.2 | C13: dochody z tytułu udziału we wpływach z podatku dochodowego od osób prawnych | D13: rokwzgl=0 i lp=40 | E13: rokwzgl=0 i lp=40 | F13: rokwzgl=1 i lp=40 | G13: rokwzgl=2 i lp=40 | H13: rokwzgl=3 i lp=40 | I13: rokwzgl=4 i lp=40 | J13: rokwzgl=5 i lp=40 | K13: rokwzgl=6 i lp=40 | L13: rokwzgl=7 i lp=40 | M13: rokwzgl=8 i lp=40 | N13: rokwzgl=9 i lp=40 | O13: rokwzgl=10 i lp=40 | P13: rokwzgl=11 i lp=40 | Q13: rokwzgl=12 i lp=40 | R13: rokwzgl=13 i lp=40 | S13: rokwzgl=14 i lp=40 | T13: rokwzgl=15 i lp=40 | U13: rokwzgl=16 i lp=40 | V13: rokwzgl=17 i lp=40 | W13: rokwzgl=18 i lp=40 | X13: rokwzgl=19 i lp=40 | Y13: rokwzgl=20 i lp=40 | Z13: rokwzgl=21 i lp=40 | AA13: rokwzgl=22 i lp=40 | AB13: rokwzgl=23 i lp=40 | AC13: rokwzgl=24 i lp=40 | AD13: rokwzgl=25 i lp=40 | AE13: rokwzgl=26 i lp=40 | AF13: rokwzgl=27 i lp=40 | AG13: rokwzgl=28 i lp=40 | AH13: rokwzgl=29 i lp=40
A14: 50 | B14: 1.1.3 | C14: podatki i opłaty | D14: rokwzgl=0 i lp=50 | E14: rokwzgl=0 i lp=50 | F14: rokwzgl=1 i lp=50 | G14: rokwzgl=2 i lp=50 | H14: rokwzgl=3 i lp=50 | I14: rokwzgl=4 i lp=50 | J14: rokwzgl=5 i lp=50 | K14: rokwzgl=6 i lp=50 | L14: rokwzgl=7 i lp=50 | M14: rokwzgl=8 i lp=50 | N14: rokwzgl=9 i lp=50 | O14: rokwzgl=10 i lp=50 | P14: rokwzgl=11 i lp=50 | Q14: rokwzgl=12 i lp=50 | R14: rokwzgl=13 i lp=50 | S14: rokwzgl=14 i lp=50 | T14: rokwzgl=15 i lp=50 | U14: rokwzgl=16 i lp=50 | V14: rokwzgl=17 i lp=50 | W14: rokwzgl=18 i lp=50 | X14: rokwzgl=19 i lp=50 | Y14: rokwzgl=20 i lp=50 | Z14: rokwzgl=21 i lp=50 | AA14: rokwzgl=22 i lp=50 | AB14: rokwzgl=23 i lp=50 | AC14: rokwzgl=24 i lp=50 | AD14: rokwzgl=25 i lp=50 | AE14: rokwzgl=26 i lp=50 | AF14: rokwzgl=27 i lp=50 | AG14: rokwzgl=28 i lp=50 | AH14: rokwzgl=29 i lp=50
A15: 60 | B15: 1.1.3.1 | C15: z podatku od nieruchomości | D15: rokwzgl=0 i lp=60 | E15: rokwzgl=0 i lp=60 | F15: rokwzgl=1 i lp=60 | G15: rokwzgl=2 i lp=60 | H15: rokwzgl=3 i lp=60 | I15: rokwzgl=4 i lp=60 | J15: rokwzgl=5 i lp=60 | K15: rokwzgl=6 i lp=60 | L15: rokwzgl=7 i lp=60 | M15: rokwzgl=8 i lp=60 | N15: rokwzgl=9 i lp=60 | O15: rokwzgl=10 i lp=60 | P15: rokwzgl=11 i lp=60 | Q15: rokwzgl=12 i lp=60 | R15: rokwzgl=13 i lp=60 | S15: rokwzgl=14 i lp=60 | T15: rokwzgl=15 i lp=60 | U15: rokwzgl=16 i lp=60 | V15: rokwzgl=17 i lp=60 | W15: rokwzgl=18 i lp=60 | X15: rokwzgl=19 i lp=60 | Y15: rokwzgl=20 i lp=60 | Z15: rokwzgl=21 i lp=60 | AA15: rokwzgl=22 i lp=60 | AB15: rokwzgl=23 i lp=60 | AC15: rokwzgl=24 i lp=60 | AD15: rokwzgl=25 i lp=60 | AE15: rokwzgl=26 i lp=60 | AF15: rokwzgl=27 i lp=60 | AG15: rokwzgl=28 i lp=60 | AH15: rokwzgl=29 i lp=60
A16: 70 | B16: 1.1.4 | C16: z subwencji ogólnej | D16: rokwzgl=0 i lp=70 | E16: rokwzgl=0 i lp=70 | F16: rokwzgl=1 i lp=70 | G16: rokwzgl=2 i lp=70 | H16: rokwzgl=3 i lp=70 | I16: rokwzgl=4 i lp=70 | J16: rokwzgl=5 i lp=70 | K16: rokwzgl=6 i lp=70 | L16: rokwzgl=7 i lp=70 | M16: rokwzgl=8 i lp=70 | N16: rokwzgl=9 i lp=70 | O16: rokwzgl=10 i lp=70 | P16: rokwzgl=11 i lp=70 | Q16: rokwzgl=12 i lp=70 | R16: rokwzgl=13 i lp=70 | S16: rokwzgl=14 i lp=70 | T16: rokwzgl=15 i lp=70 | U16: rokwzgl=16 i lp=70 | V16: rokwzgl=17 i lp=70 | W16: rokwzgl=18 i lp=70 | X16: rokwzgl=19 i lp=70 | Y16: rokwzgl=20 i lp=70 | Z16: rokwzgl=21 i lp=70 | AA16: rokwzgl=22 i lp=70 | AB16: rokwzgl=23 i lp=70 | AC16: rokwzgl=24 i lp=70 | AD16: rokwzgl=25 i lp=70 | AE16: rokwzgl=26 i lp=70 | AF16: rokwzgl=27 i lp=70 | AG16: rokwzgl=28 i lp=70 | AH16: rokwzgl=29 i lp=70
A17: 80 | B17: 1.1.5 | C17: z tytułu dotacji i środków przeznaczonych na cele bieżące | D17: rokwzgl=0 i lp=80 | E17: rokwzgl=0 i lp=80 | F17: rokwzgl=1 i lp=80 | G17: rokwzgl=2 i lp=80 | H17: rokwzgl=3 i lp=80 | I17: rokwzgl=4 i lp=80 | J17: rokwzgl=5 i lp=80 | K17: rokwzgl=6 i lp=80 | L17: rokwzgl=7 i lp=80 | M17: rokwzgl=8 i lp=80 | N17: rokwzgl=9 i lp=80 | O17: rokwzgl=10 i lp=80 | P17: rokwzgl=11 i lp=80 | Q17: rokwzgl=12 i lp=80 | R17: rokwzgl=13 i lp=80 | S17: rokwzgl=14 i lp=80 | T17: rokwzgl=15 i lp=80 | U17: rokwzgl=16 i lp=80 | V17: rokwzgl=17 i lp=80 | W17: rokwzgl=18 i lp=80 | X17: rokwzgl=19 i lp=80 | Y17: rokwzgl=20 i lp=80 | Z17: rokwzgl=21 i lp=80 | AA17: rokwzgl=22 i lp=80 | AB17: rokwzgl=23 i lp=80 | AC17: rokwzgl=24 i lp=80 | AD17: rokwzgl=25 i lp=80 | AE17: rokwzgl=26 i lp=80 | AF17: rokwzgl=27 i lp=80 | AG17: rokwzgl=28 i lp=80 | AH17: rokwzgl=29 i lp=80
A18: 90 | B18: 1.2 | C18: Dochody majątkowe, w tym | D18: rokwzgl=0 i lp=90 | E18: rokwzgl=0 i lp=90 | F18: rokwzgl=1 i lp=90 | G18: rokwzgl=2 i lp=90 | H18: rokwzgl=3 i lp=90 | I18: rokwzgl=4 i lp=90 | J18: rokwzgl=5 i lp=90 | K18: rokwzgl=6 i lp=90 | L18: rokwzgl=7 i lp=90 | M18: rokwzgl=8 i lp=90 | N18: rokwzgl=9 i lp=90 | O18: rokwzgl=10 i lp=90 | P18: rokwzgl=11 i lp=90 | Q18: rokwzgl=12 i lp=90 | R18: rokwzgl=13 i lp=90 | S18: rokwzgl=14 i lp=90 | T18: rokwzgl=15 i lp=90 | U18: rokwzgl=16 i lp=90 | V18: rokwzgl=17 i lp=90 | W18: rokwzgl=18 i lp=90 | X18: rokwzgl=19 i lp=90 | Y18: rokwzgl=20 i lp=90 | Z18: rokwzgl=21 i lp=90 | AA18: rokwzgl=22 i lp=90 | AB18: rokwzgl=23 i lp=90 | AC18: rokwzgl=24 i lp=90 | AD18: rokwzgl=25 i lp=90 | AE18: rokwzgl=26 i lp=90 | AF18: rokwzgl=27 i lp=90 | AG18: rokwzgl=28 i lp=90 | AH18: rokwzgl=29 i lp=90
A19: 100 | B19: 1.2.1 | C19: ze sprzedaży majątku | D19: rokwzgl=0 i lp=100 | E19: rokwzgl=0 i lp=100 | F19: rokwzgl=1 i lp=100 | G19: rokwzgl=2 i lp=100 | H19: rokwzgl=3 i lp=100 | I19: rokwzgl=4 i lp=100 | J19: rokwzgl=5 i lp=100 | K19: rokwzgl=6 i lp=100 | L19: rokwzgl=7 i lp=100 | M19: rokwzgl=8 i lp=100 | N19: rokwzgl=9 i lp=100 | O19: rokwzgl=10 i lp=100 | P19: rokwzgl=11 i lp=100 | Q19: rokwzgl=12 i lp=100 | R19: rokwzgl=13 i lp=100 | S19: rokwzgl=14 i lp=100 | T19: rokwzgl=15 i lp=100 | U19: rokwzgl=16 i lp=100 | V19: rokwzgl=17 i lp=100 | W19: rokwzgl=18 i lp=100 | X19: rokwzgl=19 i lp=100 | Y19: rokwzgl=20 i lp=100 | Z19: rokwzgl=21 i lp=100 | AA19: rokwzgl=22 i lp=100 | AB19: rokwzgl=23 i lp=100 | AC19: rokwzgl=24 i lp=100 | AD19: rokwzgl=25 i lp=100 | AE19: rokwzgl=26 i lp=100 | AF19: rokwzgl=27 i lp=100 | AG19: rokwzgl=28 i lp=100 | AH19: rokwzgl=29 i lp=100
A20: 110 | B20: 1.2.2 | C20: z tytułu dotacji oraz środków przeznaczonych na inwestycje | D20: =+"rokwzgl="&D$9&" i lp="&$A20 -> rokwzgl=0 i lp=110 | E20: rokwzgl=0 i lp=110 | F20: rokwzgl=1 i lp=110 | G20: rokwzgl=2 i lp=110 | H20: rokwzgl=3 i lp=110 | I20: rokwzgl=4 i lp=110 | J20: rokwzgl=5 i lp=110 | K20: rokwzgl=6 i lp=110 | L20: rokwzgl=7 i lp=110 | M20: rokwzgl=8 i lp=110 | N20: =+"rokwzgl="&N$9&" i lp="&$A20 -> rokwzgl=9 i lp=110 | O20: rokwzgl=10 i lp=110 | P20: rokwzgl=11 i lp=110 | Q20: rokwzgl=12 i lp=110 | R20: rokwzgl=13 i lp=110 | S20: rokwzgl=14 i lp=110 | T20: rokwzgl=15 i lp=110 | U20: rokwzgl=16 i lp=110 | V20: rokwzgl=17 i lp=110 | W20: rokwzgl=18 i lp=110 | X20: =+"rokwzgl="&X$9&" i lp="&$A20 -> rokwzgl=19 i lp=110 | Y20: rokwzgl=20 i lp=110 | Z20: rokwzgl=21 i lp=110 | AA20: rokwzgl=22 i lp=110 | AB20: rokwzgl=23 i lp=110 | AC20: rokwzgl=24 i lp=110 | AD20: rokwzgl=25 i lp=110 | AE20: rokwzgl=26 i lp=110 | AF20: rokwzgl=27 i lp=110 | AG20: rokwzgl=28 i lp=110 | AH20: rokwzgl=29 i lp=110
A21: 120 | B21: 2 | C21: Wydatki ogółem | D21: rokwzgl=0 i lp=120 | E21: rokwzgl=0 i lp=120 | F21: rokwzgl=1 i lp=120 | G21: rokwzgl=2 i lp=120 | H21: rokwzgl=3 i lp=120 | I21: rokwzgl=4 i lp=120 | J21: rokwzgl=5 i lp=120 | K21: rokwzgl=6 i lp=120 | L21: rokwzgl=7 i lp=120 | M21: rokwzgl=8 i lp=120 | N21: rokwzgl=9 i lp=120 | O21: rokwzgl=10 i lp=120 | P21: rokwzgl=11 i lp=120 | Q21: rokwzgl=12 i lp=120 | R21: rokwzgl=13 i lp=120 | S21: rokwzgl=14 i lp=120 | T21: rokwzgl=15 i lp=120 | U21: rokwzgl=16 i lp=120 | V21: rokwzgl=17 i lp=120 | W21: rokwzgl=18 i lp=120 | X21: rokwzgl=19 i lp=120 | Y21: rokwzgl=20 i lp=120 | Z21: rokwzgl=21 i lp=120 | AA21: rokwzgl=22 i lp=120 | AB21: rokwzgl=23 i lp=120 | AC21: rokwzgl=24 i lp=120 | AD21: rokwzgl=25 i lp=120 | AE21: rokwzgl=26 i lp=120 | AF21: rokwzgl=27 i lp=120 | AG21: rokwzgl=28 i lp=120 | AH21: rokwzgl=29 i lp=120
A22: 130 | B22: 2.1 | C22: Wydatki bieżące, w tym: | D22: rokwzgl=0 i lp=130 | E22: rokwzgl=0 i lp=130 | F22: rokwzgl=1 i lp=130 | G22: rokwzgl=2 i lp=130 | H22: rokwzgl=3 i lp=130 | I22: rokwzgl=4 i lp=130 | J22: rokwzgl=5 i lp=130 | K22: rokwzgl=6 i lp=130 | L22: rokwzgl=7 i lp=130 | M22: rokwzgl=8 i lp=130 | N22: rokwzgl=9 i lp=130 | O22: rokwzgl=10 i lp=130 | P22: rokwzgl=11 i lp=130 | Q22: rokwzgl=12 i lp=130 | R22: rokwzgl=13 i lp=130 | S22: rokwzgl=14 i lp=130 | T22: rokwzgl=15 i lp=130 | U22: rokwzgl=16 i lp=130 | V22: rokwzgl=17 i lp=130 | W22: rokwzgl=18 i lp=130 | X22: rokwzgl=19 i lp=130 | Y22: rokwzgl=20 i lp=130 | Z22: rokwzgl=21 i lp=130 | AA22: rokwzgl=22 i lp=130 | AB22: rokwzgl=23 i lp=130 | AC22: rokwzgl=24 i lp=130 | AD22: rokwzgl=25 i lp=130 | AE22: rokwzgl=26 i lp=130 | AF22: rokwzgl=27 i lp=130 | AG22: rokwzgl=28 i lp=130 | AH22: rokwzgl=29 i lp=130
A23: 140 | B23: 2.1.1 | C23: z tytułu poręczeń i gwarancji | D23: rokwzgl=0 i lp=140 | E23: rokwzgl=0 i lp=140 | F23: rokwzgl=1 i lp=140 | G23: rokwzgl=2 i lp=140 | H23: rokwzgl=3 i lp=140 | I23: rokwzgl=4 i lp=140 | J23: rokwzgl=5 i lp=140 | K23: rokwzgl=6 i lp=140 | L23: rokwzgl=7 i lp=140 | M23: rokwzgl=8 i lp=140 | N23: rokwzgl=9 i lp=140 | O23: rokwzgl=10 i lp=140 | P23: rokwzgl=11 i lp=140 | Q23: rokwzgl=12 i lp=140 | R23: rokwzgl=13 i lp=140 | S23: rokwzgl=14 i lp=140 | T23: rokwzgl=15 i lp=140 | U23: rokwzgl=16 i lp=140 | V23: rokwzgl=17 i lp=140 | W23: rokwzgl=18 i lp=140 | X23: rokwzgl=19 i lp=140 | Y23: rokwzgl=20 i lp=140 | Z23: rokwzgl=21 i lp=140 | AA23: rokwzgl=22 i lp=140 | AB23: rokwzgl=23 i lp=140 | AC23: rokwzgl=24 i lp=140 | AD23: rokwzgl=25 i lp=140 | AE23: rokwzgl=26 i lp=140 | AF23: rokwzgl=27 i lp=140 | AG23: rokwzgl=28 i lp=140 | AH23: rokwzgl=29 i lp=140
A24: 150 | B24: 2.1.1.1 | C24: w tym: gwarancje i poręczenia podlegające wyłączeniu z limitów spłaty zobowiązań określonych w art. 243 ust. 3 pkt 2 ustawy z dnia 27 sierpnia 2009 r. o finansach publicznych (Dz. U. Nr 157, poz. 1240, z późn. zm.) lub art. 169 ust. 3 pkt 2 ustawy z dnia 30 czerwca 2005 r. o finansach publicznych (Dz. U. Nr 249, poz. 2104, z późn. zm) | D24: rokwzgl=0 i lp=150 | E24: rokwzgl=0 i lp=150 | F24: rokwzgl=1 i lp=150 | G24: rokwzgl=2 i lp=150 | H24: rokwzgl=3 i lp=150 | I24: rokwzgl=4 i lp=150 | J24: rokwzgl=5 i lp=150 | K24: rokwzgl=6 i lp=150 | L24: rokwzgl=7 i lp=150 | M24: rokwzgl=8 i lp=150 | N24: rokwzgl=9 i lp=150 | O24: rokwzgl=10 i lp=150 | P24: rokwzgl=11 i lp=150 | Q24: rokwzgl=12 i lp=150 | R24: rokwzgl=13 i lp=150 | S24: rokwzgl=14 i lp=150 | T24: rokwzgl=15 i lp=150 | U24: rokwzgl=16 i lp=150 | V24: rokwzgl=17 i lp=150 | W24: rokwzgl=18 i lp=150 | X24: rokwzgl=19 i lp=150 | Y24: rokwzgl=20 i lp=150 | Z24: rokwzgl=21 i lp=150 | AA24: rokwzgl=22 i lp=150 | AB24: rokwzgl=23 i lp=150 | AC24: rokwzgl=24 i lp=150 | AD24: rokwzgl=25 i lp=150 | AE24: rokwzgl=26 i lp=150 | AF24: rokwzgl=27 i lp=150 | AG24: rokwzgl=28 i lp=150 | AH24: rokwzgl=29 i lp=150
A25: 160 | B25: 2.1.2 | C25: na spłatę przejętych zobowiązań samodzielnego publicznego zakładu opieki zdrowotnej przekształconego na zasadach określonych w przepisach o działalności leczniczej, w wysokości w jakiej nie podlegają sfinansowaniu dotacją z budżetu państwa) | D25: rokwzgl=0 i lp=160 | E25: rokwzgl=0 i lp=160 | F25: rokwzgl=1 i lp=160 | G25: rokwzgl=2 i lp=160 | H25: rokwzgl=3 i lp=160 | I25: rokwzgl=4 i lp=160 | J25: rokwzgl=5 i lp=160 | K25: rokwzgl=6 i lp=160 | L25: rokwzgl=7 i lp=160 | M25: rokwzgl=8 i lp=160 | N25: rokwzgl=9 i lp=160 | O25: rokwzgl=10 i lp=160 | P25: rokwzgl=11 i lp=160 | Q25: rokwzgl=12 i lp=160 | R25: rokwzgl=13 i lp=160 | S25: rokwzgl=14 i lp=160 | T25: rokwzgl=15 i lp=160 | U25: rokwzgl=16 i lp=160 | V25: rokwzgl=17 i lp=160 | W25: rokwzgl=18 i lp=160 | X25: rokwzgl=19 i lp=160 | Y25: rokwzgl=20 i lp=160 | Z25: rokwzgl=21 i lp=160 | AA25: rokwzgl=22 i lp=160 | AB25: rokwzgl=23 i lp=160 | AC25: rokwzgl=24 i lp=160 | AD25: rokwzgl=25 i lp=160 | AE25: rokwzgl=26 i lp=160 | AF25: rokwzgl=27 i lp=160 | AG25: rokwzgl=28 i lp=160 | AH25: rokwzgl=29 i lp=160
A26: 170 | B26: 2.1.3 | C26: wydatki na obsługę długu | D26: rokwzgl=0 i lp=170 | E26: rokwzgl=0 i lp=170 | F26: rokwzgl=1 i lp=170 | G26: rokwzgl=2 i lp=170 | H26: rokwzgl=3 i lp=170 | I26: rokwzgl=4 i lp=170 | J26: rokwzgl=5 i lp=170 | K26: rokwzgl=6 i lp=170 | L26: rokwzgl=7 i lp=170 | M26: rokwzgl=8 i lp=170 | N26: rokwzgl=9 i lp=170 | O26: rokwzgl=10 i lp=170 | P26: rokwzgl=11 i lp=170 | Q26: rokwzgl=12 i lp=170 | R26: rokwzgl=13 i lp=170 | S26: rokwzgl=14 i lp=170 | T26: rokwzgl=15 i lp=170 | U26: rokwzgl=16 i lp=170 | V26: rokwzgl=17 i lp=170 | W26: rokwzgl=18 i lp=170 | X26: rokwzgl=19 i lp=170 | Y26: rokwzgl=20 i lp=170 | Z26: rokwzgl=21 i lp=170 | AA26: rokwzgl=22 i lp=170 | AB26: rokwzgl=23 i lp=170 | AC26: rokwzgl=24 i lp=170 | AD26: rokwzgl=25 i lp=170 | AE26: rokwzgl=26 i lp=170 | AF26: rokwzgl=27 i lp=170 | AG26: rokwzgl=28 i lp=170 | AH26: rokwzgl=29 i lp=170
A27: 180 | B27: 2.1.3.1 | C27: w tym odsetki i dyskonto określone w art. 243 ust. 1 ustawy lub art. 169 ust. 1 ufp z 2005 r.. | D27: rokwzgl=0 i lp=180 | E27: rokwzgl=0 i lp=180 | F27: rokwzgl=1 i lp=180 | G27: rokwzgl=2 i lp=180 | H27: rokwzgl=3 i lp=180 | I27: rokwzgl=4 i lp=180 | J27: rokwzgl=5 i lp=180 | K27: rokwzgl=6 i lp=180 | L27: rokwzgl=7 i lp=180 | M27: rokwzgl=8 i lp=180 | N27: rokwzgl=9 i lp=180 | O27: rokwzgl=10 i lp=180 | P27: rokwzgl=11 i lp=180 | Q27: rokwzgl=12 i lp=180 | R27: rokwzgl=13 i lp=180 | S27: rokwzgl=14 i lp=180 | T27: rokwzgl=15 i lp=180 | U27: rokwzgl=16 i lp=180 | V27: rokwzgl=17 i lp=180 | W27: rokwzgl=18 i lp=180 | X27: rokwzgl=19 i lp=180 | Y27: rokwzgl=20 i lp=180 | Z27: rokwzgl=21 i lp=180 | AA27: rokwzgl=22 i lp=180 | AB27: rokwzgl=23 i lp=180 | AC27: rokwzgl=24 i lp=180 | AD27: rokwzgl=25 i lp=180 | AE27: rokwzgl=26 i lp=180 | AF27: rokwzgl=27 i lp=180 | AG27: rokwzgl=28 i lp=180 | AH27: rokwzgl=29 i lp=180
A28: 190 | B28: 2.2 | C28: Wydatki majątkowe | D28: rokwzgl=0 i lp=190 | E28: rokwzgl=0 i lp=190 | F28: rokwzgl=1 i lp=190 | G28: rokwzgl=2 i lp=190 | H28: rokwzgl=3 i lp=190 | I28: rokwzgl=4 i lp=190 | J28: rokwzgl=5 i lp=190 | K28: rokwzgl=6 i lp=190 | L28: rokwzgl=7 i lp=190 | M28: rokwzgl=8 i lp=190 | N28: rokwzgl=9 i lp=190 | O28: rokwzgl=10 i lp=190 | P28: rokwzgl=11 i lp=190 | Q28: rokwzgl=12 i lp=190 | R28: rokwzgl=13 i lp=190 | S28: rokwzgl=14 i lp=190 | T28: rokwzgl=15 i lp=190 | U28: rokwzgl=16 i lp=190 | V28: rokwzgl=17 i lp=190 | W28: rokwzgl=18 i lp=190 | X28: rokwzgl=19 i lp=190 | Y28: rokwzgl=20 i lp=190 | Z28: rokwzgl=21 i lp=190 | AA28: rokwzgl=22 i lp=190 | AB28: rokwzgl=23 i lp=190 | AC28: rokwzgl=24 i lp=190 | AD28: rokwzgl=25 i lp=190 | AE28: rokwzgl=26 i lp=190 | AF28: rokwzgl=27 i lp=190 | AG28: rokwzgl=28 i lp=190 | AH28: rokwzgl=29 i lp=190
A29: 200 | B29: 3 | C29: Wynik budżetu | D29: rokwzgl=0 i lp=200 | E29: rokwzgl=0 i lp=200 | F29: rokwzgl=1 i lp=200 | G29: rokwzgl=2 i lp=200 | H29: rokwzgl=3 i lp=200 | I29: rokwzgl=4 i lp=200 | J29: rokwzgl=5 i lp=200 | K29: rokwzgl=6 i lp=200 | L29: rokwzgl=7 i lp=200 | M29: rokwzgl=8 i lp=200 | N29: rokwzgl=9 i lp=200 | O29: rokwzgl=10 i lp=200 | P29: rokwzgl=11 i lp=200 | Q29: rokwzgl=12 i lp=200 | R29: rokwzgl=13 i lp=200 | S29: rokwzgl=14 i lp=200 | T29: rokwzgl=15 i lp=200 | U29: rokwzgl=16 i lp=200 | V29: rokwzgl=17 i lp=200 | W29: rokwzgl=18 i lp=200 | X29: rokwzgl=19 i lp=200 | Y29: rokwzgl=20 i lp=200 | Z29: rokwzgl=21 i lp=200 | AA29: rokwzgl=22 i lp=200 | AB29: rokwzgl=23 i lp=200 | AC29: rokwzgl=24 i lp=200 | AD29: rokwzgl=25 i lp=200 | AE29: rokwzgl=26 i lp=200 | AF29: rokwzgl=27 i lp=200 | AG29: rokwzgl=28 i lp=200 | AH29: rokwzgl=29 i lp=200
A30: 210 | B30: 4 | C30: Przychody budżetu | D30: =+"rokwzgl="&D$9&" i lp="&$A30 -> rokwzgl=0 i lp=210 | E30: rokwzgl=0 i lp=210 | F30: rokwzgl=1 i lp=210 | G30: rokwzgl=2 i lp=210 | H30: rokwzgl=3 i lp=210 | I30: rokwzgl=4 i lp=210 | J30: rokwzgl=5 i lp=210 | K30: rokwzgl=6 i lp=210 | L30: rokwzgl=7 i lp=210 | M30: rokwzgl=8 i lp=210 | N30: =+"rokwzgl="&N$9&" i lp="&$A30 -> rokwzgl=9 i lp=210 | O30: rokwzgl=10 i lp=210 | P30: rokwzgl=11 i lp=210 | Q30: rokwzgl=12 i lp=210 | R30: rokwzgl=13 i lp=210 | S30: rokwzgl=14 i lp=210 | T30: rokwzgl=15 i lp=210 | U30: rokwzgl=16 i lp=210 | V30: rokwzgl=17 i lp=210 | W30: rokwzgl=18 i lp=210 | X30: =+"rokwzgl="&X$9&" i lp="&$A30 -> rokwzgl=19 i lp=210 | Y30: rokwzgl=20 i lp=210 | Z30: rokwzgl=21 i lp=210 | AA30: rokwzgl=22 i lp=210 | AB30: rokwzgl=23 i lp=210 | AC30: rokwzgl=24 i lp=210 | AD30: rokwzgl=25 i lp=210 | AE30: rokwzgl=26 i lp=210 | AF30: rokwzgl=27 i lp=210 | AG30: rokwzgl=28 i lp=210 | AH30: rokwzgl=29 i lp=210
A31: 220 | B31: 4.1 | C31: Nadwyżka budżetowa z lat ubiegłych | D31: rokwzgl=0 i lp=220 | E31: rokwzgl=0 i lp=220 | F31: rokwzgl=1 i lp=220 | G31: rokwzgl=2 i lp=220 | H31: rokwzgl=3 i lp=220 | I31: rokwzgl=4 i lp=220 | J31: rokwzgl=5 i lp=220 | K31: rokwzgl=6 i lp=220 | L31: rokwzgl=7 i lp=220 | M31: rokwzgl=8 i lp=220 | N31: rokwzgl=9 i lp=220 | O31: rokwzgl=10 i lp=220 | P31: rokwzgl=11 i lp=220 | Q31: rokwzgl=12 i lp=220 | R31: rokwzgl=13 i lp=220 | S31: rokwzgl=14 i lp=220 | T31: rokwzgl=15 i lp=220 | U31: rokwzgl=16 i lp=220 | V31: rokwzgl=17 i lp=220 | W31: rokwzgl=18 i lp=220 | X31: rokwzgl=19 i lp=220 | Y31: rokwzgl=20 i lp=220 | Z31: rokwzgl=21 i lp=220 | AA31: rokwzgl=22 i lp=220 | AB31: rokwzgl=23 i lp=220 | AC31: rokwzgl=24 i lp=220 | AD31: rokwzgl=25 i lp=220 | AE31: rokwzgl=26 i lp=220 | AF31: rokwzgl=27 i lp=220 | AG31: rokwzgl=28 i lp=220 | AH31: rokwzgl=29 i lp=220
A32: 230 | B32: 4.1.1 | C32: w tym na pokrycie deficytu budżetu | D32: rokwzgl=0 i lp=230 | E32: rokwzgl=0 i lp=230 | F32: rokwzgl=1 i lp=230 | G32: rokwzgl=2 i lp=230 | H32: rokwzgl=3 i lp=230 | I32: rokwzgl=4 i lp=230 | J32: rokwzgl=5 i lp=230 | K32: rokwzgl=6 i lp=230 | L32: rokwzgl=7 i lp=230 | M32: rokwzgl=8 i lp=230 | N32: rokwzgl=9 i lp=230 | O32: rokwzgl=10 i lp=230 | P32: rokwzgl=11 i lp=230 | Q32: rokwzgl=12 i lp=230 | R32: rokwzgl=13 i lp=230 | S32: rokwzgl=14 i lp=230 | T32: rokwzgl=15 i lp=230 | U32: rokwzgl=16 i lp=230 | V32: rokwzgl=17 i lp=230 | W32: rokwzgl=18 i lp=230 | X32: rokwzgl=19 i lp=230 | Y32: rokwzgl=20 i lp=230 | Z32: rokwzgl=21 i lp=230 | AA32: rokwzgl=22 i lp=230 | AB32: rokwzgl=23 i lp=230 | AC32: rokwzgl=24 i lp=230 | AD32: rokwzgl=25 i lp=230 | AE32: rokwzgl=26 i lp=230 | AF32: rokwzgl=27 i lp=230 | AG32: rokwzgl=28 i lp=230 | AH32: rokwzgl=29 i lp=230
A33: 240 | B33: 4.2 | C33: Wolne środki, o których mowa w art. 217 ust.2 pkt 6 ustawy | D33: rokwzgl=0 i lp=240 | E33: rokwzgl=0 i lp=240 | F33: rokwzgl=1 i lp=240 | G33: rokwzgl=2 i lp=240 | H33: rokwzgl=3 i lp=240 | I33: rokwzgl=4 i lp=240 | J33: rokwzgl=5 i lp=240 | K33: rokwzgl=6 i lp=240 | L33: rokwzgl=7 i lp=240 | M33: rokwzgl=8 i lp=240 | N33: rokwzgl=9 i lp=240 | O33: rokwzgl=10 i lp=240 | P33: rokwzgl=11 i lp=240 | Q33: rokwzgl=12 i lp=240 | R33: rokwzgl=13 i lp=240 | S33: rokwzgl=14 i lp=240 | T33: rokwzgl=15 i lp=240 | U33: rokwzgl=16 i lp=240 | V33: rokwzgl=17 i lp=240 | W33: rokwzgl=18 i lp=240 | X33: rokwzgl=19 i lp=240 | Y33: rokwzgl=20 i lp=240 | Z33: rokwzgl=21 i lp=240 | AA33: rokwzgl=22 i lp=240 | AB33: rokwzgl=23 i lp=240 | AC33: rokwzgl=24 i lp=240 | AD33: rokwzgl=25 i lp=240 | AE33: rokwzgl=26 i lp=240 | AF33: rokwzgl=27 i lp=240 | AG33: rokwzgl=28 i lp=240 | AH33: rokwzgl=29 i lp=240
A34: 250 | B34: 4.2.1 | C34: w tym na pokrycie deficytu budżetu | D34: rokwzgl=0 i lp=250 | E34: rokwzgl=0 i lp=250 | F34: rokwzgl=1 i lp=250 | G34: rokwzgl=2 i lp=250 | H34: rokwzgl=3 i lp=250 | I34: rokwzgl=4 i lp=250 | J34: rokwzgl=5 i lp=250 | K34: rokwzgl=6 i lp=250 | L34: rokwzgl=7 i lp=250 | M34: rokwzgl=8 i lp=250 | N34: rokwzgl=9 i lp=250 | O34: rokwzgl=10 i lp=250 | P34: rokwzgl=11 i lp=250 | Q34: rokwzgl=12 i lp=250 | R34: rokwzgl=13 i lp=250 | S34: rokwzgl=14 i lp=250 | T34: rokwzgl=15 i lp=250 | U34: rokwzgl=16 i lp=250 | V34: rokwzgl=17 i lp=250 | W34: rokwzgl=18 i lp=250 | X34: rokwzgl=19 i lp=250 | Y34: rokwzgl=20 i lp=250 | Z34: rokwzgl=21 i lp=250 | AA34: rokwzgl=22 i lp=250 | AB34: rokwzgl=23 i lp=250 | AC34: rokwzgl=24 i lp=250 | AD34: rokwzgl=25 i lp=250 | AE34: rokwzgl=26 i lp=250 | AF34: rokwzgl=27 i lp=250 | AG34: rokwzgl=28 i lp=250 | AH34: rokwzgl=29 i lp=250
A35: 260 | B35: 4.3 | C35: Kredyty, pożyczki, emisja papierów wartościowych | D35: rokwzgl=0 i lp=260 | E35: rokwzgl=0 i lp=260 | F35: rokwzgl=1 i lp=260 | G35: rokwzgl=2 i lp=260 | H35: rokwzgl=3 i lp=260 | I35: rokwzgl=4 i lp=260 | J35: rokwzgl=5 i lp=260 | K35: rokwzgl=6 i lp=260 | L35: rokwzgl=7 i lp=260 | M35: rokwzgl=8 i lp=260 | N35: rokwzgl=9 i lp=260 | O35: rokwzgl=10 i lp=260 | P35: rokwzgl=11 i lp=260 | Q35: rokwzgl=12 i lp=260 | R35: rokwzgl=13 i lp=260 | S35: rokwzgl=14 i lp=260 | T35: rokwzgl=15 i lp=260 | U35: rokwzgl=16 i lp=260 | V35: rokwzgl=17 i lp=260 | W35: rokwzgl=18 i lp=260 | X35: rokwzgl=19 i lp=260 | Y35: rokwzgl=20 i lp=260 | Z35: rokwzgl=21 i lp=260 | AA35: rokwzgl=22 i lp=260 | AB35: rokwzgl=23 i lp=260 | AC35: rokwzgl=24 i lp=260 | AD35: rokwzgl=25 i lp=260 | AE35: rokwzgl=26 i lp=260 | AF35: rokwzgl=27 i lp=260 | AG35: rokwzgl=28 i lp=260 | AH35: rokwzgl=29 i lp=260
A36: 270 | B36: 4.3.1 | C36: w tym na pokrycie deficytu budżetu | D36: rokwzgl=0 i lp=270 | E36: rokwzgl=0 i lp=270 | F36: rokwzgl=1 i lp=270 | G36: rokwzgl=2 i lp=270 | H36: rokwzgl=3 i lp=270 | I36: rokwzgl=4 i lp=270 | J36: rokwzgl=5 i lp=270 | K36: rokwzgl=6 i lp=270 | L36: rokwzgl=7 i lp=270 | M36: rokwzgl=8 i lp=270 | N36: rokwzgl=9 i lp=270 | O36: rokwzgl=10 i lp=270 | P36: rokwzgl=11 i lp=270 | Q36: rokwzgl=12 i lp=270 | R36: rokwzgl=13 i lp=270 | S36: rokwzgl=14 i lp=270 | T36: rokwzgl=15 i lp=270 | U36: rokwzgl=16 i lp=270 | V36: rokwzgl=17 i lp=270 | W36: rokwzgl=18 i lp=270 | X36: rokwzgl=19 i lp=270 | Y36: rokwzgl=20 i lp=270 | Z36: rokwzgl=21 i lp=270 | AA36: rokwzgl=22 i lp=270 | AB36: rokwzgl=23 i lp=270 | AC36: rokwzgl=24 i lp=270 | AD36: rokwzgl=25 i lp=270 | AE36: rokwzgl=26 i lp=270 | AF36: rokwzgl=27 i lp=270 | AG36: rokwzgl=28 i lp=270 | AH36: rokwzgl=29 i lp=270
A37: 280 | B37: 4.4 | C37: Inne przychody niezwiązane z zaciągnięciem długu | D37: rokwzgl=0 i lp=280 | E37: rokwzgl=0 i lp=280 | F37: rokwzgl=1 i lp=280 | G37: rokwzgl=2 i lp=280 | H37: rokwzgl=3 i lp=280 | I37: rokwzgl=4 i lp=280 | J37: rokwzgl=5 i lp=280 | K37: rokwzgl=6 i lp=280 | L37: rokwzgl=7 i lp=280 | M37: rokwzgl=8 i lp=280 | N37: rokwzgl=9 i lp=280 | O37: rokwzgl=10 i lp=280 | P37: rokwzgl=11 i lp=280 | Q37: rokwzgl=12 i lp=280 | R37: rokwzgl=13 i lp=280 | S37: rokwzgl=14 i lp=280 | T37: rokwzgl=15 i lp=280 | U37: rokwzgl=16 i lp=280 | V37: rokwzgl=17 i lp=280 | W37: rokwzgl=18 i lp=280 | X37: rokwzgl=19 i lp=280 | Y37: rokwzgl=20 i lp=280 | Z37: rokwzgl=21 i lp=280 | AA37: rokwzgl=22 i lp=280 | AB37: rokwzgl=23 i lp=280 | AC37: rokwzgl=24 i lp=280 | AD37: rokwzgl=25 i lp=280 | AE37: rokwzgl=26 i lp=280 | AF37: rokwzgl=27 i lp=280 | AG37: rokwzgl=28 i lp=280 | AH37: rokwzgl=29 i lp=280
A38: 290 | B38: 4.4.1 | C38: w tym na pokrycie deficytu budżetu | D38: rokwzgl=0 i lp=290 | E38: rokwzgl=0 i lp=290 | F38: rokwzgl=1 i lp=290 | G38: rokwzgl=2 i lp=290 | H38: rokwzgl=3 i lp=290 | I38: rokwzgl=4 i lp=290 | J38: rokwzgl=5 i lp=290 | K38: rokwzgl=6 i lp=290 | L38: rokwzgl=7 i lp=290 | M38: rokwzgl=8 i lp=290 | N38: rokwzgl=9 i lp=290 | O38: rokwzgl=10 i lp=290 | P38: rokwzgl=11 i lp=290 | Q38: rokwzgl=12 i lp=290 | R38: rokwzgl=13 i lp=290 | S38: rokwzgl=14 i lp=290 | T38: rokwzgl=15 i lp=290 | U38: rokwzgl=16 i lp=290 | V38: rokwzgl=17 i lp=290 | W38: rokwzgl=18 i lp=290 | X38: rokwzgl=19 i lp=290 | Y38: rokwzgl=20 i lp=290 | Z38: rokwzgl=21 i lp=290 | AA38: rokwzgl=22 i lp=290 | AB38: rokwzgl=23 i lp=290 | AC38: rokwzgl=24 i lp=290 | AD38: rokwzgl=25 i lp=290 | AE38: rokwzgl=26 i lp=290 | AF38: rokwzgl=27 i lp=290 | AG38: rokwzgl=28 i lp=290 | AH38: rokwzgl=29 i lp=290
A39: 300 | B39: 5 | C39: Rozchody budżetu | D39: rokwzgl=0 i lp=300 | E39: rokwzgl=0 i lp=300 | F39: rokwzgl=1 i lp=300 | G39: rokwzgl=2 i lp=300 | H39: rokwzgl=3 i lp=300 | I39: rokwzgl=4 i lp=300 | J39: rokwzgl=5 i lp=300 | K39: rokwzgl=6 i lp=300 | L39: rokwzgl=7 i lp=300 | M39: rokwzgl=8 i lp=300 | N39: rokwzgl=9 i lp=300 | O39: rokwzgl=10 i lp=300 | P39: rokwzgl=11 i lp=300 | Q39: rokwzgl=12 i lp=300 | R39: rokwzgl=13 i lp=300 | S39: rokwzgl=14 i lp=300 | T39: rokwzgl=15 i lp=300 | U39: rokwzgl=16 i lp=300 | V39: rokwzgl=17 i lp=300 | W39: rokwzgl=18 i lp=300 | X39: rokwzgl=19 i lp=300 | Y39: rokwzgl=20 i lp=300 | Z39: rokwzgl=21 i lp=300 | AA39: rokwzgl=22 i lp=300 | AB39: rokwzgl=23 i lp=300 | AC39: rokwzgl=24 i lp=300 | AD39: rokwzgl=25 i lp=300 | AE39: rokwzgl=26 i lp=300 | AF39: rokwzgl=27 i lp=300 | AG39: rokwzgl=28 i lp=300 | AH39: rokwzgl=29 i lp=300
A40: 310 | B40: 5.1 | C40: Spłaty rat kapitałowych kredytów i pożyczek oraz wykup papierów wartościowych | D40: =+"rokwzgl="&D$9&" i lp="&$A40 -> rokwzgl=0 i lp=310 | E40: rokwzgl=0 i lp=310 | F40: rokwzgl=1 i lp=310 | G40: rokwzgl=2 i lp=310 | H40: rokwzgl=3 i lp=310 | I40: rokwzgl=4 i lp=310 | J40: rokwzgl=5 i lp=310 | K40: rokwzgl=6 i lp=310 | L40: rokwzgl=7 i lp=310 | M40: rokwzgl=8 i lp=310 | N40: =+"rokwzgl="&N$9&" i lp="&$A40 -> rokwzgl=9 i lp=310 | O40: rokwzgl=10 i lp=310 | P40: rokwzgl=11 i lp=310 | Q40: rokwzgl=12 i lp=310 | R40: rokwzgl=13 i lp=310 | S40: rokwzgl=14 i lp=310 | T40: rokwzgl=15 i lp=310 | U40: rokwzgl=16 i lp=310 | V40: rokwzgl=17 i lp=310 | W40: rokwzgl=18 i lp=310 | X40: =+"rokwzgl="&X$9&" i lp="&$A40 -> rokwzgl=19 i lp=310 | Y40: rokwzgl=20 i lp=310 | Z40: rokwzgl=21 i lp=310 | AA40: rokwzgl=22 i lp=310 | AB40: rokwzgl=23 i lp=310 | AC40: rokwzgl=24 i lp=310 | AD40: rokwzgl=25 i lp=310 | AE40: rokwzgl=26 i lp=310 | AF40: rokwzgl=27 i lp=310 | AG40: rokwzgl=28 i lp=310 | AH40: rokwzgl=29 i lp=310
A41: 320 | B41: 5.1.1 | C41: w tym łączna kwota przypadających na dany rok kwot wyłączeń określonych w: art. 243 ust. 3 pkt 1 ustawy (lub art. 169 ust. 3 pkt 1 ufp z 2005 r.), art. 121a ustawy z dnia 27 sierpnia 2009 r. – Przepisy wprowadzające ustawę o finansach publicznych (Dz. U. Nr 157, poz. 1241, z późn. zm.) oraz art. 36 ustawy z dnia 7 grudnia 2012 r. o zmianie niektórych ustaw związanych z realizacją ustawy budżetowej (Dz.U. poz. 1456) | D41: rokwzgl=0 i lp=320 | E41: rokwzgl=0 i lp=320 | F41: rokwzgl=1 i lp=320 | G41: rokwzgl=2 i lp=320 | H41: rokwzgl=3 i lp=320 | I41: rokwzgl=4 i lp=320 | J41: rokwzgl=5 i lp=320 | K41: rokwzgl=6 i lp=320 | L41: rokwzgl=7 i lp=320 | M41: rokwzgl=8 i lp=320 | N41: rokwzgl=9 i lp=320 | O41: rokwzgl=10 i lp=320 | P41: rokwzgl=11 i lp=320 | Q41: rokwzgl=12 i lp=320 | R41: rokwzgl=13 i lp=320 | S41: rokwzgl=14 i lp=320 | T41: rokwzgl=15 i lp=320 | U41: rokwzgl=16 i lp=320 | V41: rokwzgl=17 i lp=320 | W41: rokwzgl=18 i lp=320 | X41: rokwzgl=19 i lp=320 | Y41: rokwzgl=20 i lp=320 | Z41: rokwzgl=21 i lp=320 | AA41: rokwzgl=22 i lp=320 | AB41: rokwzgl=23 i lp=320 | AC41: rokwzgl=24 i lp=320 | AD41: rokwzgl=25 i lp=320 | AE41: rokwzgl=26 i lp=320 | AF41: rokwzgl=27 i lp=320 | AG41: rokwzgl=28 i lp=320 | AH41: rokwzgl=29 i lp=320
A42: 330 | B42: 5.1.1.1 | C42: w tym kwota przypadających na dany rok kwot wyłączeń określonych w art. 243 ust. 3 pkt 1 ustawy lub art. 169 ust. 3 pkt 1 ufp z 2005 r. | D42: rokwzgl=0 i lp=330 | E42: rokwzgl=0 i lp=330 | F42: rokwzgl=1 i lp=330 | G42: rokwzgl=2 i lp=330 | H42: rokwzgl=3 i lp=330 | I42: rokwzgl=4 i lp=330 | J42: rokwzgl=5 i lp=330 | K42: rokwzgl=6 i lp=330 | L42: rokwzgl=7 i lp=330 | M42: rokwzgl=8 i lp=330 | N42: rokwzgl=9 i lp=330 | O42: rokwzgl=10 i lp=330 | P42: rokwzgl=11 i lp=330 | Q42: rokwzgl=12 i lp=330 | R42: rokwzgl=13 i lp=330 | S42: rokwzgl=14 i lp=330 | T42: rokwzgl=15 i lp=330 | U42: rokwzgl=16 i lp=330 | V42: rokwzgl=17 i lp=330 | W42: rokwzgl=18 i lp=330 | X42: rokwzgl=19 i lp=330 | Y42: rokwzgl=20 i lp=330 | Z42: rokwzgl=21 i lp=330 | AA42: rokwzgl=22 i lp=330 | AB42: rokwzgl=23 i lp=330 | AC42: rokwzgl=24 i lp=330 | AD42: rokwzgl=25 i lp=330 | AE42: rokwzgl=26 i lp=330 | AF42: rokwzgl=27 i lp=330 | AG42: rokwzgl=28 i lp=330 | AH42: rokwzgl=29 i lp=330
A43: 340 | B43: 5.2 | C43: Inne rozchody niezwiązane ze spłatą długu | D43: rokwzgl=0 i lp=340 | E43: rokwzgl=0 i lp=340 | F43: rokwzgl=1 i lp=340 | G43: rokwzgl=2 i lp=340 | H43: rokwzgl=3 i lp=340 | I43: rokwzgl=4 i lp=340 | J43: rokwzgl=5 i lp=340 | K43: rokwzgl=6 i lp=340 | L43: rokwzgl=7 i lp=340 | M43: rokwzgl=8 i lp=340 | N43: rokwzgl=9 i lp=340 | O43: rokwzgl=10 i lp=340 | P43: rokwzgl=11 i lp=340 | Q43: rokwzgl=12 i lp=340 | R43: rokwzgl=13 i lp=340 | S43: rokwzgl=14 i lp=340 | T43: rokwzgl=15 i lp=340 | U43: rokwzgl=16 i lp=340 | V43: rokwzgl=17 i lp=340 | W43: rokwzgl=18 i lp=340 | X43: rokwzgl=19 i lp=340 | Y43: rokwzgl=20 i lp=340 | Z43: rokwzgl=21 i lp=340 | AA43: rokwzgl=22 i lp=340 | AB43: rokwzgl=23 i lp=340 | AC43: rokwzgl=24 i lp=340 | AD43: rokwzgl=25 i lp=340 | AE43: rokwzgl=26 i lp=340 | AF43: rokwzgl=27 i lp=340 | AG43: rokwzgl=28 i lp=340 | AH43: rokwzgl=29 i lp=340
A44: 350 | B44: 6 | C44: Kwota długu | D44: rokwzgl=0 i lp=350 | E44: rokwzgl=0 i lp=350 | F44: rokwzgl=1 i lp=350 | G44: rokwzgl=2 i lp=350 | H44: rokwzgl=3 i lp=350 | I44: rokwzgl=4 i lp=350 | J44: rokwzgl=5 i lp=350 | K44: rokwzgl=6 i lp=350 | L44: rokwzgl=7 i lp=350 | M44: rokwzgl=8 i lp=350 | N44: rokwzgl=9 i lp=350 | O44: rokwzgl=10 i lp=350 | P44: rokwzgl=11 i lp=350 | Q44: rokwzgl=12 i lp=350 | R44: rokwzgl=13 i lp=350 | S44: rokwzgl=14 i lp=350 | T44: rokwzgl=15 i lp=350 | U44: rokwzgl=16 i lp=350 | V44: rokwzgl=17 i lp=350 | W44: rokwzgl=18 i lp=350 | X44: rokwzgl=19 i lp=350 | Y44: rokwzgl=20 i lp=350 | Z44: rokwzgl=21 i lp=350 | AA44: rokwzgl=22 i lp=350 | AB44: rokwzgl=23 i lp=350 | AC44: rokwzgl=24 i lp=350 | AD44: rokwzgl=25 i lp=350 | AE44: rokwzgl=26 i lp=350 | AF44: rokwzgl=27 i lp=350 | AG44: rokwzgl=28 i lp=350 | AH44: rokwzgl=29 i lp=350
A45: 360 | B45: 6.1 | C45: Łączna kwota wyłączeń z ograniczeń długu określonych w art. 170 ust. 3 ufp z 2005 r. oraz w art. 36 ustawy o zmianie niektórych ustaw związanych z realizacją ustawy budżetowej, w tym: | D45: rokwzgl=0 i lp=360 | E45: rokwzgl=0 i lp=360 | F45: rokwzgl=1 i lp=360 | G45: rokwzgl=2 i lp=360 | H45: rokwzgl=3 i lp=360 | I45: rokwzgl=4 i lp=360 | J45: rokwzgl=5 i lp=360 | K45: rokwzgl=6 i lp=360 | L45: rokwzgl=7 i lp=360 | M45: rokwzgl=8 i lp=360 | N45: rokwzgl=9 i lp=360 | O45: rokwzgl=10 i lp=360 | P45: rokwzgl=11 i lp=360 | Q45: rokwzgl=12 i lp=360 | R45: rokwzgl=13 i lp=360 | S45: rokwzgl=14 i lp=360 | T45: rokwzgl=15 i lp=360 | U45: rokwzgl=16 i lp=360 | V45: rokwzgl=17 i lp=360 | W45: rokwzgl=18 i lp=360 | X45: rokwzgl=19 i lp=360 | Y45: rokwzgl=20 i lp=360 | Z45: rokwzgl=21 i lp=360 | AA45: rokwzgl=22 i lp=360 | AB45: rokwzgl=23 i lp=360 | AC45: rokwzgl=24 i lp=360 | AD45: rokwzgl=25 i lp=360 | AE45: rokwzgl=26 i lp=360 | AF45: rokwzgl=27 i lp=360 | AG45: rokwzgl=28 i lp=360 | AH45: rokwzgl=29 i lp=360
A46: 370 | B46: 6.1.1 | C46: - kwota wyłączeń z ograniczeń długu określonych w art. 170 ust. 3 ufp z 2005 r. | D46: rokwzgl=0 i lp=370 | E46: rokwzgl=0 i lp=370 | F46: rokwzgl=1 i lp=370 | G46: rokwzgl=2 i lp=370 | H46: rokwzgl=3 i lp=370 | I46: rokwzgl=4 i lp=370 | J46: rokwzgl=5 i lp=370 | K46: rokwzgl=6 i lp=370 | L46: rokwzgl=7 i lp=370 | M46: rokwzgl=8 i lp=370 | N46: rokwzgl=9 i lp=370 | O46: rokwzgl=10 i lp=370 | P46: rokwzgl=11 i lp=370 | Q46: rokwzgl=12 i lp=370 | R46: rokwzgl=13 i lp=370 | S46: rokwzgl=14 i lp=370 | T46: rokwzgl=15 i lp=370 | U46: rokwzgl=16 i lp=370 | V46: rokwzgl=17 i lp=370 | W46: rokwzgl=18 i lp=370 | X46: rokwzgl=19 i lp=370 | Y46: rokwzgl=20 i lp=370 | Z46: rokwzgl=21 i lp=370 | AA46: rokwzgl=22 i lp=370 | AB46: rokwzgl=23 i lp=370 | AC46: rokwzgl=24 i lp=370 | AD46: rokwzgl=25 i lp=370 | AE46: rokwzgl=26 i lp=370 | AF46: rokwzgl=27 i lp=370 | AG46: rokwzgl=28 i lp=370 | AH46: rokwzgl=29 i lp=370
A47: 380 | B47: 6.2 | C47: Wskaźnik zadłużenia do dochodów ogółem określony w art. 170 ufp z 2005 r., bez uwzględniania wyłączeń określonych w pkt 6.1. | D47: rokwzgl=0 i lp=380 | E47: rokwzgl=0 i lp=380 | F47: rokwzgl=1 i lp=380 | G47: rokwzgl=2 i lp=380 | H47: rokwzgl=3 i lp=380 | I47: rokwzgl=4 i lp=380 | J47: rokwzgl=5 i lp=380 | K47: rokwzgl=6 i lp=380 | L47: rokwzgl=7 i lp=380 | M47: rokwzgl=8 i lp=380 | N47: rokwzgl=9 i lp=380 | O47: rokwzgl=10 i lp=380 | P47: rokwzgl=11 i lp=380 | Q47: rokwzgl=12 i lp=380 | R47: rokwzgl=13 i lp=380 | S47: rokwzgl=14 i lp=380 | T47: rokwzgl=15 i lp=380 | U47: rokwzgl=16 i lp=380 | V47: rokwzgl=17 i lp=380 | W47: rokwzgl=18 i lp=380 | X47: rokwzgl=19 i lp=380 | Y47: rokwzgl=20 i lp=380 | Z47: rokwzgl=21 i lp=380 | AA47: rokwzgl=22 i lp=380 | AB47: rokwzgl=23 i lp=380 | AC47: rokwzgl=24 i lp=380 | AD47: rokwzgl=25 i lp=380 | AE47: rokwzgl=26 i lp=380 | AF47: rokwzgl=27 i lp=380 | AG47: rokwzgl=28 i lp=380 | AH47: rokwzgl=29 i lp=380
A48: 390 | B48: 6.3 | C48: Wskaźnik zadłużenia do dochodów ogółem, o którym mowa w art. 170 ufp z 2005 r., po uwzględnieniu wyłączeń określonych w pkt 6.1. | D48: rokwzgl=0 i lp=390 | E48: rokwzgl=0 i lp=390 | F48: rokwzgl=1 i lp=390 | G48: rokwzgl=2 i lp=390 | H48: rokwzgl=3 i lp=390 | I48: rokwzgl=4 i lp=390 | J48: rokwzgl=5 i lp=390 | K48: rokwzgl=6 i lp=390 | L48: rokwzgl=7 i lp=390 | M48: rokwzgl=8 i lp=390 | N48: rokwzgl=9 i lp=390 | O48: rokwzgl=10 i lp=390 | P48: rokwzgl=11 i lp=390 | Q48: rokwzgl=12 i lp=390 | R48: rokwzgl=13 i lp=390 | S48: rokwzgl=14 i lp=390 | T48: rokwzgl=15 i lp=390 | U48: rokwzgl=16 i lp=390 | V48: rokwzgl=17 i lp=390 | W48: rokwzgl=18 i lp=390 | X48: rokwzgl=19 i lp=390 | Y48: rokwzgl=20 i lp=390 | Z48: rokwzgl=21 i lp=390 | AA48: rokwzgl=22 i lp=390 | AB48: rokwzgl=23 i lp=390 | AC48: rokwzgl=24 i lp=390 | AD48: rokwzgl=25 i lp=390 | AE48: rokwzgl=26 i lp=390 | AF48: rokwzgl=27 i lp=390 | AG48: rokwzgl=28 i lp=390 | AH48: rokwzgl=29 i lp=390
A49: 400 | B49: 7 | C49: Kwota zobowiązań wynikających z przejęcia przez jednostkę samorządu terytorialnego zobowiązań po likwidowanych i przekształcanych jednostkach zaliczanych do sektora finansów publicznych | D49: rokwzgl=0 i lp=400 | E49: rokwzgl=0 i lp=400 | F49: rokwzgl=1 i lp=400 | G49: rokwzgl=2 i lp=400 | H49: rokwzgl=3 i lp=400 | I49: rokwzgl=4 i lp=400 | J49: rokwzgl=5 i lp=400 | K49: rokwzgl=6 i lp=400 | L49: rokwzgl=7 i lp=400 | M49: rokwzgl=8 i lp=400 | N49: rokwzgl=9 i lp=400 | O49: rokwzgl=10 i lp=400 | P49: rokwzgl=11 i lp=400 | Q49: rokwzgl=12 i lp=400 | R49: rokwzgl=13 i lp=400 | S49: rokwzgl=14 i lp=400 | T49: rokwzgl=15 i lp=400 | U49: rokwzgl=16 i lp=400 | V49: rokwzgl=17 i lp=400 | W49: rokwzgl=18 i lp=400 | X49: rokwzgl=19 i lp=400 | Y49: rokwzgl=20 i lp=400 | Z49: rokwzgl=21 i lp=400 | AA49: rokwzgl=22 i lp=400 | AB49: rokwzgl=23 i lp=400 | AC49: rokwzgl=24 i lp=400 | AD49: rokwzgl=25 i lp=400 | AE49: rokwzgl=26 i lp=400 | AF49: rokwzgl=27 i lp=400 | AG49: rokwzgl=28 i lp=400 | AH49: rokwzgl=29 i lp=400
A50: 410 | D50: =+"rokwzgl="&D$9&" i lp="&$A50 -> rokwzgl=0 i lp=410 | E50: rokwzgl=0 i lp=410 | F50: rokwzgl=1 i lp=410 | G50: rokwzgl=2 i lp=410 | H50: rokwzgl=3 i lp=410 | I50: rokwzgl=4 i lp=410 | J50: rokwzgl=5 i lp=410 | K50: rokwzgl=6 i lp=410 | L50: rokwzgl=7 i lp=410 | M50: rokwzgl=8 i lp=410 | N50: =+"rokwzgl="&N$9&" i lp="&$A50 -> rokwzgl=9 i lp=410 | O50: rokwzgl=10 i lp=410 | P50: rokwzgl=11 i lp=410 | Q50: rokwzgl=12 i lp=410 | R50: rokwzgl=13 i lp=410 | S50: rokwzgl=14 i lp=410 | T50: rokwzgl=15 i lp=410 | U50: rokwzgl=16 i lp=410 | V50: rokwzgl=17 i lp=410 | W50: rokwzgl=18 i lp=410 | X50: =+"rokwzgl="&X$9&" i lp="&$A50 -> rokwzgl=19 i lp=410 | Y50: rokwzgl=20 i lp=410 | Z50: rokwzgl=21 i lp=410 | AA50: rokwzgl=22 i lp=410 | AB50: rokwzgl=23 i lp=410 | AC50: rokwzgl=24 i lp=410 | AD50: rokwzgl=25 i lp=410 | AE50: rokwzgl=26 i lp=410 | AF50: rokwzgl=27 i lp=410 | AG50: rokwzgl=28 i lp=410 | AH50: rokwzgl=29 i lp=410
A51: 420 | B51: 8.1 | C51: Różnica między dochodami bieżącymi a wydatkami bieżącymi | D51: rokwzgl=0 i lp=420 | E51: rokwzgl=0 i lp=420 | F51: rokwzgl=1 i lp=420 | G51: rokwzgl=2 i lp=420 | H51: rokwzgl=3 i lp=420 | I51: rokwzgl=4 i lp=420 | J51: rokwzgl=5 i lp=420 | K51: rokwzgl=6 i lp=420 | L51: rokwzgl=7 i lp=420 | M51: rokwzgl=8 i lp=420 | N51: rokwzgl=9 i lp=420 | O51: rokwzgl=10 i lp=420 | P51: rokwzgl=11 i lp=420 | Q51: rokwzgl=12 i lp=420 | R51: rokwzgl=13 i lp=420 | S51: rokwzgl=14 i lp=420 | T51: rokwzgl=15 i lp=420 | U51: rokwzgl=16 i lp=420 | V51: rokwzgl=17 i lp=420 | W51: rokwzgl=18 i lp=420 | X51: rokwzgl=19 i lp=420 | Y51: rokwzgl=20 i lp=420 | Z51: rokwzgl=21 i lp=420 | AA51: rokwzgl=22 i lp=420 | AB51: rokwzgl=23 i lp=420 | AC51: rokwzgl=24 i lp=420 | AD51: rokwzgl=25 i lp=420 | AE51: rokwzgl=26 i lp=420 | AF51: rokwzgl=27 i lp=420 | AG51: rokwzgl=28 i lp=420 | AH51: rokwzgl=29 i lp=420
A52: 430 | B52: 8.2 | C52: Różnica między dochodami bieżącymi, powiększonymi o nadwyżkę budżetową określoną w pkt 4.1. i wolne środki określone w pkt 4.2. a wydatkami bieżącymi, pomniejszonym o wydatki określone w pkt 2.1.2. | D52: rokwzgl=0 i lp=430 | E52: rokwzgl=0 i lp=430 | F52: rokwzgl=1 i lp=430 | G52: rokwzgl=2 i lp=430 | H52: rokwzgl=3 i lp=430 | I52: rokwzgl=4 i lp=430 | J52: rokwzgl=5 i lp=430 | K52: rokwzgl=6 i lp=430 | L52: rokwzgl=7 i lp=430 | M52: rokwzgl=8 i lp=430 | N52: rokwzgl=9 i lp=430 | O52: rokwzgl=10 i lp=430 | P52: rokwzgl=11 i lp=430 | Q52: rokwzgl=12 i lp=430 | R52: rokwzgl=13 i lp=430 | S52: rokwzgl=14 i lp=430 | T52: rokwzgl=15 i lp=430 | U52: rokwzgl=16 i lp=430 | V52: rokwzgl=17 i lp=430 | W52: rokwzgl=18 i lp=430 | X52: rokwzgl=19 i lp=430 | Y52: rokwzgl=20 i lp=430 | Z52: rokwzgl=21 i lp=430 | AA52: rokwzgl=22 i lp=430 | AB52: rokwzgl=23 i lp=430 | AC52: rokwzgl=24 i lp=430 | AD52: rokwzgl=25 i lp=430 | AE52: rokwzgl=26 i lp=430 | AF52: rokwzgl=27 i lp=430 | AG52: rokwzgl=28 i lp=430 | AH52: rokwzgl=29 i lp=430
A53: 440 | D53: rokwzgl=0 i lp=440 | E53: rokwzgl=0 i lp=440 | F53: rokwzgl=1 i lp=440 | G53: rokwzgl=2 i lp=440 | H53: rokwzgl=3 i lp=440 | I53: rokwzgl=4 i lp=440 | J53: rokwzgl=5 i lp=440 | K53: rokwzgl=6 i lp=440 | L53: rokwzgl=7 i lp=440 | M53: rokwzgl=8 i lp=440 | N53: rokwzgl=9 i lp=440 | O53: rokwzgl=10 i lp=440 | P53: rokwzgl=11 i lp=440 | Q53: rokwzgl=12 i lp=440 | R53: rokwzgl=13 i lp=440 | S53: rokwzgl=14 i lp=440 | T53: rokwzgl=15 i lp=440 | U53: rokwzgl=16 i lp=440 | V53: rokwzgl=17 i lp=440 | W53: rokwzgl=18 i lp=440 | X53: rokwzgl=19 i lp=440 | Y53: rokwzgl=20 i lp=440 | Z53: rokwzgl=21 i lp=440 | AA53: rokwzgl=22 i lp=440 | AB53: rokwzgl=23 i lp=440 | AC53: rokwzgl=24 i lp=440 | AD53: rokwzgl=25 i lp=440 | AE53: rokwzgl=26 i lp=440 | AF53: rokwzgl=27 i lp=440 | AG53: rokwzgl=28 i lp=440 | AH53: rokwzgl=29 i lp=440
A54: 450 | B54: 9.1 | C54: Wskaźnik planowanej łącznej kwoty spłaty zobowiązań, o której mowa w art. 169 ust. 1 ufp z 2005 r. do dochodów ogółem, bez uwzględnienia wyłączeń określonych w pkt 5.1.1. | D54: rokwzgl=0 i lp=450 | E54: rokwzgl=0 i lp=450 | F54: rokwzgl=1 i lp=450 | G54: rokwzgl=2 i lp=450 | H54: rokwzgl=3 i lp=450 | I54: rokwzgl=4 i lp=450 | J54: rokwzgl=5 i lp=450 | K54: rokwzgl=6 i lp=450 | L54: rokwzgl=7 i lp=450 | M54: rokwzgl=8 i lp=450 | N54: rokwzgl=9 i lp=450 | O54: rokwzgl=10 i lp=450 | P54: rokwzgl=11 i lp=450 | Q54: rokwzgl=12 i lp=450 | R54: rokwzgl=13 i lp=450 | S54: rokwzgl=14 i lp=450 | T54: rokwzgl=15 i lp=450 | U54: rokwzgl=16 i lp=450 | V54: rokwzgl=17 i lp=450 | W54: rokwzgl=18 i lp=450 | X54: rokwzgl=19 i lp=450 | Y54: rokwzgl=20 i lp=450 | Z54: rokwzgl=21 i lp=450 | AA54: rokwzgl=22 i lp=450 | AB54: rokwzgl=23 i lp=450 | AC54: rokwzgl=24 i lp=450 | AD54: rokwzgl=25 i lp=450 | AE54: rokwzgl=26 i lp=450 | AF54: rokwzgl=27 i lp=450 | AG54: rokwzgl=28 i lp=450 | AH54: rokwzgl=29 i lp=450
A55: 460 | B55: 9.2 | C55: Wskaźnik planowanej łącznej kwoty spłaty zobowiązań, o której mowa w art. 169 ust. 1 ufp z 2005 r. do dochodów ogółem, po uwzględnieniu wyłączeń przypadających na dany rok określonych w pkt 5.1.1. | D55: rokwzgl=0 i lp=460 | E55: rokwzgl=0 i lp=460 | F55: rokwzgl=1 i lp=460 | G55: rokwzgl=2 i lp=460 | H55: rokwzgl=3 i lp=460 | I55: rokwzgl=4 i lp=460 | J55: rokwzgl=5 i lp=460 | K55: rokwzgl=6 i lp=460 | L55: rokwzgl=7 i lp=460 | M55: rokwzgl=8 i lp=460 | N55: rokwzgl=9 i lp=460 | O55: rokwzgl=10 i lp=460 | P55: rokwzgl=11 i lp=460 | Q55: rokwzgl=12 i lp=460 | R55: rokwzgl=13 i lp=460 | S55: rokwzgl=14 i lp=460 | T55: rokwzgl=15 i lp=460 | U55: rokwzgl=16 i lp=460 | V55: rokwzgl=17 i lp=460 | W55: rokwzgl=18 i lp=460 | X55: rokwzgl=19 i lp=460 | Y55: rokwzgl=20 i lp=460 | Z55: rokwzgl=21 i lp=460 | AA55: rokwzgl=22 i lp=460 | AB55: rokwzgl=23 i lp=460 | AC55: rokwzgl=24 i lp=460 | AD55: rokwzgl=25 i lp=460 | AE55: rokwzgl=26 i lp=460 | AF55: rokwzgl=27 i lp=460 | AG55: rokwzgl=28 i lp=460 | AH55: rokwzgl=29 i lp=460
A56: 470 | B56: 9.3 | C56: Wskaźnik planowanej łącznej kwoty spłaty zobowiązań, o której mowa w art. 243 ust. 1 ustawy do dochodów ogółem, bez uwzględnienia zobowiązań związku współtworzonego przez jednostkę samorządu terytorialnego i bez uwzględniania wyłączeń przypadających na dany rok określonych w pkt 5.1.1. | D56: rokwzgl=0 i lp=470 | E56: rokwzgl=0 i lp=470 | F56: rokwzgl=1 i lp=470 | G56: rokwzgl=2 i lp=470 | H56: rokwzgl=3 i lp=470 | I56: rokwzgl=4 i lp=470 | J56: rokwzgl=5 i lp=470 | K56: rokwzgl=6 i lp=470 | L56: rokwzgl=7 i lp=470 | M56: rokwzgl=8 i lp=470 | N56: rokwzgl=9 i lp=470 | O56: rokwzgl=10 i lp=470 | P56: rokwzgl=11 i lp=470 | Q56: rokwzgl=12 i lp=470 | R56: rokwzgl=13 i lp=470 | S56: rokwzgl=14 i lp=470 | T56: rokwzgl=15 i lp=470 | U56: rokwzgl=16 i lp=470 | V56: rokwzgl=17 i lp=470 | W56: rokwzgl=18 i lp=470 | X56: rokwzgl=19 i lp=470 | Y56: rokwzgl=20 i lp=470 | Z56: rokwzgl=21 i lp=470 | AA56: rokwzgl=22 i lp=470 | AB56: rokwzgl=23 i lp=470 | AC56: rokwzgl=24 i lp=470 | AD56: rokwzgl=25 i lp=470 | AE56: rokwzgl=26 i lp=470 | AF56: rokwzgl=27 i lp=470 | AG56: rokwzgl=28 i lp=470 | AH56: rokwzgl=29 i lp=470
A57: 480 | B57: 9.4 | C57: Wskaźnik planowanej łącznej kwoty spłaty zobowiązań, o której mowa w art. 243 ust. 1 ustawy do dochodów ogółem, bez uwzględnienia zobowiązań związku współtworzonego przez jednostkę samorządu terytorialnego, po uwzględnieniu wyłączeń przypadających na dany rok określonych w pkt 5.1.1. | D57: rokwzgl=0 i lp=480 | E57: rokwzgl=0 i lp=480 | F57: rokwzgl=1 i lp=480 | G57: rokwzgl=2 i lp=480 | H57: rokwzgl=3 i lp=480 | I57: rokwzgl=4 i lp=480 | J57: rokwzgl=5 i lp=480 | K57: rokwzgl=6 i lp=480 | L57: rokwzgl=7 i lp=480 | M57: rokwzgl=8 i lp=480 | N57: rokwzgl=9 i lp=480 | O57: rokwzgl=10 i lp=480 | P57: rokwzgl=11 i lp=480 | Q57: rokwzgl=12 i lp=480 | R57: rokwzgl=13 i lp=480 | S57: rokwzgl=14 i lp=480 | T57: rokwzgl=15 i lp=480 | U57: rokwzgl=16 i lp=480 | V57: rokwzgl=17 i lp=480 | W57: rokwzgl=18 i lp=480 | X57: rokwzgl=19 i lp=480 | Y57: rokwzgl=20 i lp=480 | Z57: rokwzgl=21 i lp=480 | AA57: rokwzgl=22 i lp=480 | AB57: rokwzgl=23 i lp=480 | AC57: rokwzgl=24 i lp=480 | AD57: rokwzgl=25 i lp=480 | AE57: rokwzgl=26 i lp=480 | AF57: rokwzgl=27 i lp=480 | AG57: rokwzgl=28 i lp=480 | AH57: rokwzgl=29 i lp=480
A58: 490 | B58: 9.5 | C58: Kwota zobowiązań związku współtworzonego przez jednostkę samorządu terytorialnego przypadających do spłaty w danym roku budżetowym, podlegająca doliczeniu zgodnie z art. 244 ustawy | D58: rokwzgl=0 i lp=490 | E58: rokwzgl=0 i lp=490 | F58: rokwzgl=1 i lp=490 | G58: rokwzgl=2 i lp=490 | H58: rokwzgl=3 i lp=490 | I58: rokwzgl=4 i lp=490 | J58: rokwzgl=5 i lp=490 | K58: rokwzgl=6 i lp=490 | L58: rokwzgl=7 i lp=490 | M58: rokwzgl=8 i lp=490 | N58: rokwzgl=9 i lp=490 | O58: rokwzgl=10 i lp=490 | P58: rokwzgl=11 i lp=490 | Q58: rokwzgl=12 i lp=490 | R58: rokwzgl=13 i lp=490 | S58: rokwzgl=14 i lp=490 | T58: rokwzgl=15 i lp=490 | U58: rokwzgl=16 i lp=490 | V58: rokwzgl=17 i lp=490 | W58: rokwzgl=18 i lp=490 | X58: rokwzgl=19 i lp=490 | Y58: rokwzgl=20 i lp=490 | Z58: rokwzgl=21 i lp=490 | AA58: rokwzgl=22 i lp=490 | AB58: rokwzgl=23 i lp=490 | AC58: rokwzgl=24 i lp=490 | AD58: rokwzgl=25 i lp=490 | AE58: rokwzgl=26 i lp=490 | AF58: rokwzgl=27 i lp=490 | AG58: rokwzgl=28 i lp=490 | AH58: rokwzgl=29 i lp=490
A59: 500 | B59: 9.6 | C59: Wskaźnik planowanej łącznej kwoty spłaty zobowiązań, o której mowa w art. 243 ust. 1 ustawy do dochodów ogółem, po uwzględnieniu zobowiązań związku współtworzonego przez jednostkę samorządu terytorialnego oraz po uwzględnieniu wyłączeń przypadających na dany rok określonych w pkt 5.1.1. | D59: rokwzgl=0 i lp=500 | E59: rokwzgl=0 i lp=500 | F59: rokwzgl=1 i lp=500 | G59: rokwzgl=2 i lp=500 | H59: rokwzgl=3 i lp=500 | I59: rokwzgl=4 i lp=500 | J59: rokwzgl=5 i lp=500 | K59: rokwzgl=6 i lp=500 | L59: rokwzgl=7 i lp=500 | M59: rokwzgl=8 i lp=500 | N59: rokwzgl=9 i lp=500 | O59: rokwzgl=10 i lp=500 | P59: rokwzgl=11 i lp=500 | Q59: rokwzgl=12 i lp=500 | R59: rokwzgl=13 i lp=500 | S59: rokwzgl=14 i lp=500 | T59: rokwzgl=15 i lp=500 | U59: rokwzgl=16 i lp=500 | V59: rokwzgl=17 i lp=500 | W59: rokwzgl=18 i lp=500 | X59: rokwzgl=19 i lp=500 | Y59: rokwzgl=20 i lp=500 | Z59: rokwzgl=21 i lp=500 | AA59: rokwzgl=22 i lp=500 | AB59: rokwzgl=23 i lp=500 | AC59: rokwzgl=24 i lp=500 | AD59: rokwzgl=25 i lp=500 | AE59: rokwzgl=26 i lp=500 | AF59: rokwzgl=27 i lp=500 | AG59: rokwzgl=28 i lp=500 | AH59: rokwzgl=29 i lp=500
A60: 505 | B60: 9.6.1 | C60: Wskaźnik jednoroczny | D60: =+"rokwzgl="&D$9&" i lp="&$A60 -> rokwzgl=0 i lp=505 | E60: rokwzgl=0 i lp=505 | F60: rokwzgl=1 i lp=505 | G60: rokwzgl=2 i lp=505 | H60: rokwzgl=3 i lp=505 | I60: rokwzgl=4 i lp=505 | J60: rokwzgl=5 i lp=505 | K60: rokwzgl=6 i lp=505 | L60: rokwzgl=7 i lp=505 | M60: rokwzgl=8 i lp=505 | N60: =+"rokwzgl="&N$9&" i lp="&$A60 -> rokwzgl=9 i lp=505 | O60: rokwzgl=10 i lp=505 | P60: rokwzgl=11 i lp=505 | Q60: rokwzgl=12 i lp=505 | R60: rokwzgl=13 i lp=505 | S60: rokwzgl=14 i lp=505 | T60: rokwzgl=15 i lp=505 | U60: rokwzgl=16 i lp=505 | V60: rokwzgl=17 i lp=505 | W60: rokwzgl=18 i lp=505 | X60: =+"rokwzgl="&X$9&" i lp="&$A60 -> rokwzgl=19 i lp=505 | Y60: rokwzgl=20 i lp=505 | Z60: rokwzgl=21 i lp=505 | AA60: rokwzgl=22 i lp=505 | AB60: rokwzgl=23 i lp=505 | AC60: rokwzgl=24 i lp=505 | AD60: rokwzgl=25 i lp=505 | AE60: rokwzgl=26 i lp=505 | AF60: rokwzgl=27 i lp=505 | AG60: rokwzgl=28 i lp=505 | AH60: rokwzgl=29 i lp=505
A61: 510 | B61: 9.7 | C61: Dopuszczalny wskaźnik spłaty zobowiązań określony w art. 243 ustawy, po uwzględnieniu wyłączeń określonych w art. 36 ustawy z dnia 7 grudnia 2012 r. o zmianie niektórych ustaw związanych z realizacją ustawy budżetowej, obliczony w oparciu o plan 3 kwartałów roku poprzedzającego rok budżetowy | D61: rokwzgl=0 i lp=510 | E61: rokwzgl=0 i lp=510 | F61: rokwzgl=1 i lp=510 | G61: rokwzgl=2 i lp=510 | H61: rokwzgl=3 i lp=510 | I61: rokwzgl=4 i lp=510 | J61: rokwzgl=5 i lp=510 | K61: rokwzgl=6 i lp=510 | L61: rokwzgl=7 i lp=510 | M61: rokwzgl=8 i lp=510 | N61: rokwzgl=9 i lp=510 | O61: rokwzgl=10 i lp=510 | P61: rokwzgl=11 i lp=510 | Q61: rokwzgl=12 i lp=510 | R61: rokwzgl=13 i lp=510 | S61: rokwzgl=14 i lp=510 | T61: rokwzgl=15 i lp=510 | U61: rokwzgl=16 i lp=510 | V61: rokwzgl=17 i lp=510 | W61: rokwzgl=18 i lp=510 | X61: rokwzgl=19 i lp=510 | Y61: rokwzgl=20 i lp=510 | Z61: rokwzgl=21 i lp=510 | AA61: rokwzgl=22 i lp=510 | AB61: rokwzgl=23 i lp=510 | AC61: rokwzgl=24 i lp=510 | AD61: rokwzgl=25 i lp=510 | AE61: rokwzgl=26 i lp=510 | AF61: rokwzgl=27 i lp=510 | AG61: rokwzgl=28 i lp=510 | AH61: rokwzgl=29 i lp=510
A62: 520 | B62: 9.7.1 | C62: Dopuszczalny wskaźnik spłaty zobowiązań określony w art. 243 ustawy, po uwzględnieniu wyłączeń określonych w art. 36 ustawy z dnia 7 grudnia 2012 r. o zmianie niektórych ustaw związanych z realizacją ustawy budżetowej, obliczony w oparciu o wykonanie roku poprzedzającego rok budżetowy | D62: rokwzgl=0 i lp=520 | E62: rokwzgl=0 i lp=520 | F62: rokwzgl=1 i lp=520 | G62: rokwzgl=2 i lp=520 | H62: rokwzgl=3 i lp=520 | I62: rokwzgl=4 i lp=520 | J62: rokwzgl=5 i lp=520 | K62: rokwzgl=6 i lp=520 | L62: rokwzgl=7 i lp=520 | M62: rokwzgl=8 i lp=520 | N62: rokwzgl=9 i lp=520 | O62: rokwzgl=10 i lp=520 | P62: rokwzgl=11 i lp=520 | Q62: rokwzgl=12 i lp=520 | R62: rokwzgl=13 i lp=520 | S62: rokwzgl=14 i lp=520 | T62: rokwzgl=15 i lp=520 | U62: rokwzgl=16 i lp=520 | V62: rokwzgl=17 i lp=520 | W62: rokwzgl=18 i lp=520 | X62: rokwzgl=19 i lp=520 | Y62: rokwzgl=20 i lp=520 | Z62: rokwzgl=21 i lp=520 | AA62: rokwzgl=22 i lp=520 | AB62: rokwzgl=23 i lp=520 | AC62: rokwzgl=24 i lp=520 | AD62: rokwzgl=25 i lp=520 | AE62: rokwzgl=26 i lp=520 | AF62: rokwzgl=27 i lp=520 | AG62: rokwzgl=28 i lp=520 | AH62: rokwzgl=29 i lp=520
A63: 530 | B63: 9.8 | C63: Informacja o spełnieniu wskaźnika spłaty zobowiązań określonego w art. 243 ustawy, po uwzględnieniu zobowiązań związku współtworzonego przez jednostkę samorządu terytorialnego oraz po uwzględnieniu wyłączeń określonych w pkt 5.1.1., obliczonego w oparciu o plan 3 kwartałów roku poprzedzającego rok budżetowy | D63: rokwzgl=0 i lp=530 | E63: rokwzgl=0 i lp=530 | F63: rokwzgl=1 i lp=530 | G63: rokwzgl=2 i lp=530 | H63: rokwzgl=3 i lp=530 | I63: rokwzgl=4 i lp=530 | J63: rokwzgl=5 i lp=530 | K63: rokwzgl=6 i lp=530 | L63: rokwzgl=7 i lp=530 | M63: rokwzgl=8 i lp=530 | N63: rokwzgl=9 i lp=530 | O63: rokwzgl=10 i lp=530 | P63: rokwzgl=11 i lp=530 | Q63: rokwzgl=12 i lp=530 | R63: rokwzgl=13 i lp=530 | S63: rokwzgl=14 i lp=530 | T63: rokwzgl=15 i lp=530 | U63: rokwzgl=16 i lp=530 | V63: rokwzgl=17 i lp=530 | W63: rokwzgl=18 i lp=530 | X63: rokwzgl=19 i lp=530 | Y63: rokwzgl=20 i lp=530 | Z63: rokwzgl=21 i lp=530 | AA63: rokwzgl=22 i lp=530 | AB63: rokwzgl=23 i lp=530 | AC63: rokwzgl=24 i lp=530 | AD63: rokwzgl=25 i lp=530 | AE63: rokwzgl=26 i lp=530 | AF63: rokwzgl=27 i lp=530 | AG63: rokwzgl=28 i lp=530 | AH63: rokwzgl=29 i lp=530
A64: 540 | B64: 9.8.1 | C64: Informacja o spełnieniu wskaźnika spłaty zobowiązań określonego w art. 243 ustawy, po uwzględnieniu zobowiązań związku współtworzonego przez jednostkę samorządu terytorialnego oraz po uwzględnieniu wyłączeń określonych w pkt 5.1.1., obliczonego w oparciu o wykonanie roku poprzedzającego rok budżetowy | D64: rokwzgl=0 i lp=540 | E64: rokwzgl=0 i lp=540 | F64: rokwzgl=1 i lp=540 | G64: rokwzgl=2 i lp=540 | H64: rokwzgl=3 i lp=540 | I64: rokwzgl=4 i lp=540 | J64: rokwzgl=5 i lp=540 | K64: rokwzgl=6 i lp=540 | L64: rokwzgl=7 i lp=540 | M64: rokwzgl=8 i lp=540 | N64: rokwzgl=9 i lp=540 | O64: rokwzgl=10 i lp=540 | P64: rokwzgl=11 i lp=540 | Q64: rokwzgl=12 i lp=540 | R64: rokwzgl=13 i lp=540 | S64: rokwzgl=14 i lp=540 | T64: rokwzgl=15 i lp=540 | U64: rokwzgl=16 i lp=540 | V64: rokwzgl=17 i lp=540 | W64: rokwzgl=18 i lp=540 | X64: rokwzgl=19 i lp=540 | Y64: rokwzgl=20 i lp=540 | Z64: rokwzgl=21 i lp=540 | AA64: rokwzgl=22 i lp=540 | AB64: rokwzgl=23 i lp=540 | AC64: rokwzgl=24 i lp=540 | AD64: rokwzgl=25 i lp=540 | AE64: rokwzgl=26 i lp=540 | AF64: rokwzgl=27 i lp=540 | AG64: rokwzgl=28 i lp=540 | AH64: rokwzgl=29 i lp=540
A65: 550 | B65: 10 | C65: Przeznaczenie prognozowanej nadwyżki budżetowej, w tym na: | D65: rokwzgl=0 i lp=550 | E65: rokwzgl=0 i lp=550 | F65: rokwzgl=1 i lp=550 | G65: rokwzgl=2 i lp=550 | H65: rokwzgl=3 i lp=550 | I65: rokwzgl=4 i lp=550 | J65: rokwzgl=5 i lp=550 | K65: rokwzgl=6 i lp=550 | L65: rokwzgl=7 i lp=550 | M65: rokwzgl=8 i lp=550 | N65: rokwzgl=9 i lp=550 | O65: rokwzgl=10 i lp=550 | P65: rokwzgl=11 i lp=550 | Q65: rokwzgl=12 i lp=550 | R65: rokwzgl=13 i lp=550 | S65: rokwzgl=14 i lp=550 | T65: rokwzgl=15 i lp=550 | U65: rokwzgl=16 i lp=550 | V65: rokwzgl=17 i lp=550 | W65: rokwzgl=18 i lp=550 | X65: rokwzgl=19 i lp=550 | Y65: rokwzgl=20 i lp=550 | Z65: rokwzgl=21 i lp=550 | AA65: rokwzgl=22 i lp=550 | AB65: rokwzgl=23 i lp=550 | AC65: rokwzgl=24 i lp=550 | AD65: rokwzgl=25 i lp=550 | AE65: rokwzgl=26 i lp=550 | AF65: rokwzgl=27 i lp=550 | AG65: rokwzgl=28 i lp=550 | AH65: rokwzgl=29 i lp=550
A66: 560 | B66: 10.1 | C66: Spłaty kredytów, pożyczek i wykup papierów wartościowych | D66: rokwzgl=0 i lp=560 | E66: rokwzgl=0 i lp=560 | F66: rokwzgl=1 i lp=560 | G66: rokwzgl=2 i lp=560 | H66: rokwzgl=3 i lp=560 | I66: rokwzgl=4 i lp=560 | J66: rokwzgl=5 i lp=560 | K66: rokwzgl=6 i lp=560 | L66: rokwzgl=7 i lp=560 | M66: rokwzgl=8 i lp=560 | N66: rokwzgl=9 i lp=560 | O66: rokwzgl=10 i lp=560 | P66: rokwzgl=11 i lp=560 | Q66: rokwzgl=12 i lp=560 | R66: rokwzgl=13 i lp=560 | S66: rokwzgl=14 i lp=560 | T66: rokwzgl=15 i lp=560 | U66: rokwzgl=16 i lp=560 | V66: rokwzgl=17 i lp=560 | W66: rokwzgl=18 i lp=560 | X66: rokwzgl=19 i lp=560 | Y66: rokwzgl=20 i lp=560 | Z66: rokwzgl=21 i lp=560 | AA66: rokwzgl=22 i lp=560 | AB66: rokwzgl=23 i lp=560 | AC66: rokwzgl=24 i lp=560 | AD66: rokwzgl=25 i lp=560 | AE66: rokwzgl=26 i lp=560 | AF66: rokwzgl=27 i lp=560 | AG66: rokwzgl=28 i lp=560 | AH66: rokwzgl=29 i lp=560
A67: 570 | B67: 11 | C67: Informacje uzupełniające o wybranych rodzajach wydatków budżetowych | D67: rokwzgl=0 i lp=570 | E67: rokwzgl=0 i lp=570 | F67: rokwzgl=1 i lp=570 | G67: rokwzgl=2 i lp=570 | H67: rokwzgl=3 i lp=570 | I67: rokwzgl=4 i lp=570 | J67: rokwzgl=5 i lp=570 | K67: rokwzgl=6 i lp=570 | L67: rokwzgl=7 i lp=570 | M67: rokwzgl=8 i lp=570 | N67: rokwzgl=9 i lp=570 | O67: rokwzgl=10 i lp=570 | P67: rokwzgl=11 i lp=570 | Q67: rokwzgl=12 i lp=570 | R67: rokwzgl=13 i lp=570 | S67: rokwzgl=14 i lp=570 | T67: rokwzgl=15 i lp=570 | U67: rokwzgl=16 i lp=570 | V67: rokwzgl=17 i lp=570 | W67: rokwzgl=18 i lp=570 | X67: rokwzgl=19 i lp=570 | Y67: rokwzgl=20 i lp=570 | Z67: rokwzgl=21 i lp=570 | AA67: rokwzgl=22 i lp=570 | AB67: rokwzgl=23 i lp=570 | AC67: rokwzgl=24 i lp=570 | AD67: rokwzgl=25 i lp=570 | AE67: rokwzgl=26 i lp=570 | AF67: rokwzgl=27 i lp=570 | AG67: rokwzgl=28 i lp=570 | AH67: rokwzgl=29 i lp=570
A68: 580 | B68: 11.1 | C68: Wydatki bieżące na wynagrodzenia i składki od nich naliczane | D68: rokwzgl=0 i lp=580 | E68: rokwzgl=0 i lp=580 | F68: rokwzgl=1 i lp=580 | G68: rokwzgl=2 i lp=580 | H68: rokwzgl=3 i lp=580 | I68: rokwzgl=4 i lp=580 | J68: rokwzgl=5 i lp=580 | K68: rokwzgl=6 i lp=580 | L68: rokwzgl=7 i lp=580 | M68: rokwzgl=8 i lp=580 | N68: rokwzgl=9 i lp=580 | O68: rokwzgl=10 i lp=580 | P68: rokwzgl=11 i lp=580 | Q68: rokwzgl=12 i lp=580 | R68: rokwzgl=13 i lp=580 | S68: rokwzgl=14 i lp=580 | T68: rokwzgl=15 i lp=580 | U68: rokwzgl=16 i lp=580 | V68: rokwzgl=17 i lp=580 | W68: rokwzgl=18 i lp=580 | X68: rokwzgl=19 i lp=580 | Y68: rokwzgl=20 i lp=580 | Z68: rokwzgl=21 i lp=580 | AA68: rokwzgl=22 i lp=580 | AB68: rokwzgl=23 i lp=580 | AC68: rokwzgl=24 i lp=580 | AD68: rokwzgl=25 i lp=580 | AE68: rokwzgl=26 i lp=580 | AF68: rokwzgl=27 i lp=580 | AG68: rokwzgl=28 i lp=580 | AH68: rokwzgl=29 i lp=580
A69: 590 | B69: 11.2 | C69: Wydatki związane z funkcjonowaniem organów jednostki samorządu terytorialnego | D69: rokwzgl=0 i lp=590 | E69: rokwzgl=0 i lp=590 | F69: rokwzgl=1 i lp=590 | G69: rokwzgl=2 i lp=590 | H69: rokwzgl=3 i lp=590 | I69: rokwzgl=4 i lp=590 | J69: rokwzgl=5 i lp=590 | K69: rokwzgl=6 i lp=590 | L69: rokwzgl=7 i lp=590 | M69: rokwzgl=8 i lp=590 | N69: rokwzgl=9 i lp=590 | O69: rokwzgl=10 i lp=590 | P69: rokwzgl=11 i lp=590 | Q69: rokwzgl=12 i lp=590 | R69: rokwzgl=13 i lp=590 | S69: rokwzgl=14 i lp=590 | T69: rokwzgl=15 i lp=590 | U69: rokwzgl=16 i lp=590 | V69: rokwzgl=17 i lp=590 | W69: rokwzgl=18 i lp=590 | X69: rokwzgl=19 i lp=590 | Y69: rokwzgl=20 i lp=590 | Z69: rokwzgl=21 i lp=590 | AA69: rokwzgl=22 i lp=590 | AB69: rokwzgl=23 i lp=590 | AC69: rokwzgl=24 i lp=590 | AD69: rokwzgl=25 i lp=590 | AE69: rokwzgl=26 i lp=590 | AF69: rokwzgl=27 i lp=590 | AG69: rokwzgl=28 i lp=590 | AH69: rokwzgl=29 i lp=590
A70: 600 | B70: 11.3 | C70: Wydatki objęte limitem art. 226 ust. 3 ustawy | D70: =+"rokwzgl="&D$9&" i lp="&$A70 -> rokwzgl=0 i lp=600 | E70: rokwzgl=0 i lp=600 | F70: rokwzgl=1 i lp=600 | G70: rokwzgl=2 i lp=600 | H70: rokwzgl=3 i lp=600 | I70: rokwzgl=4 i lp=600 | J70: rokwzgl=5 i lp=600 | K70: rokwzgl=6 i lp=600 | L70: rokwzgl=7 i lp=600 | M70: rokwzgl=8 i lp=600 | N70: =+"rokwzgl="&N$9&" i lp="&$A70 -> rokwzgl=9 i lp=600 | O70: rokwzgl=10 i lp=600 | P70: rokwzgl=11 i lp=600 | Q70: rokwzgl=12 i lp=600 | R70: rokwzgl=13 i lp=600 | S70: rokwzgl=14 i lp=600 | T70: rokwzgl=15 i lp=600 | U70: rokwzgl=16 i lp=600 | V70: rokwzgl=17 i lp=600 | W70: rokwzgl=18 i lp=600 | X70: =+"rokwzgl="&X$9&" i lp="&$A70 -> rokwzgl=19 i lp=600 | Y70: rokwzgl=20 i lp=600 | Z70: rokwzgl=21 i lp=600 | AA70: rokwzgl=22 i lp=600 | AB70: rokwzgl=23 i lp=600 | AC70: rokwzgl=24 i lp=600 | AD70: rokwzgl=25 i lp=600 | AE70: rokwzgl=26 i lp=600 | AF70: rokwzgl=27 i lp=600 | AG70: rokwzgl=28 i lp=600 | AH70: rokwzgl=29 i lp=600
A71: 610 | B71: 11.3.1 | C71: bieżące | D71: rokwzgl=0 i lp=610 | E71: rokwzgl=0 i lp=610 | F71: rokwzgl=1 i lp=610 | G71: rokwzgl=2 i lp=610 | H71: rokwzgl=3 i lp=610 | I71: rokwzgl=4 i lp=610 | J71: rokwzgl=5 i lp=610 | K71: rokwzgl=6 i lp=610 | L71: rokwzgl=7 i lp=610 | M71: rokwzgl=8 i lp=610 | N71: rokwzgl=9 i lp=610 | O71: rokwzgl=10 i lp=610 | P71: rokwzgl=11 i lp=610 | Q71: rokwzgl=12 i lp=610 | R71: rokwzgl=13 i lp=610 | S71: rokwzgl=14 i lp=610 | T71: rokwzgl=15 i lp=610 | U71: rokwzgl=16 i lp=610 | V71: rokwzgl=17 i lp=610 | W71: rokwzgl=18 i lp=610 | X71: rokwzgl=19 i lp=610 | Y71: rokwzgl=20 i lp=610 | Z71: rokwzgl=21 i lp=610 | AA71: rokwzgl=22 i lp=610 | AB71: rokwzgl=23 i lp=610 | AC71: rokwzgl=24 i lp=610 | AD71: rokwzgl=25 i lp=610 | AE71: rokwzgl=26 i lp=610 | AF71: rokwzgl=27 i lp=610 | AG71: rokwzgl=28 i lp=610 | AH71: rokwzgl=29 i lp=610
A72: 620 | B72: 11.3.2 | C72: majątkowe | D72: rokwzgl=0 i lp=620 | E72: rokwzgl=0 i lp=620 | F72: rokwzgl=1 i lp=620 | G72: rokwzgl=2 i lp=620 | H72: rokwzgl=3 i lp=620 | I72: rokwzgl=4 i lp=620 | J72: rokwzgl=5 i lp=620 | K72: rokwzgl=6 i lp=620 | L72: rokwzgl=7 i lp=620 | M72: rokwzgl=8 i lp=620 | N72: rokwzgl=9 i lp=620 | O72: rokwzgl=10 i lp=620 | P72: rokwzgl=11 i lp=620 | Q72: rokwzgl=12 i lp=620 | R72: rokwzgl=13 i lp=620 | S72: rokwzgl=14 i lp=620 | T72: rokwzgl=15 i lp=620 | U72: rokwzgl=16 i lp=620 | V72: rokwzgl=17 i lp=620 | W72: rokwzgl=18 i lp=620 | X72: rokwzgl=19 i lp=620 | Y72: rokwzgl=20 i lp=620 | Z72: rokwzgl=21 i lp=620 | AA72: rokwzgl=22 i lp=620 | AB72: rokwzgl=23 i lp=620 | AC72: rokwzgl=24 i lp=620 | AD72: rokwzgl=25 i lp=620 | AE72: rokwzgl=26 i lp=620 | AF72: rokwzgl=27 i lp=620 | AG72: rokwzgl=28 i lp=620 | AH72: rokwzgl=29 i lp=620
A73: 630 | B73: 11.4 | C73: Wydatki inwestycyjne kontynuowane | D73: rokwzgl=0 i lp=630 | E73: rokwzgl=0 i lp=630 | F73: rokwzgl=1 i lp=630 | G73: rokwzgl=2 i lp=630 | H73: rokwzgl=3 i lp=630 | I73: rokwzgl=4 i lp=630 | J73: rokwzgl=5 i lp=630 | K73: rokwzgl=6 i lp=630 | L73: rokwzgl=7 i lp=630 | M73: rokwzgl=8 i lp=630 | N73: rokwzgl=9 i lp=630 | O73: rokwzgl=10 i lp=630 | P73: rokwzgl=11 i lp=630 | Q73: rokwzgl=12 i lp=630 | R73: rokwzgl=13 i lp=630 | S73: rokwzgl=14 i lp=630 | T73: rokwzgl=15 i lp=630 | U73: rokwzgl=16 i lp=630 | V73: rokwzgl=17 i lp=630 | W73: rokwzgl=18 i lp=630 | X73: rokwzgl=19 i lp=630 | Y73: rokwzgl=20 i lp=630 | Z73: rokwzgl=21 i lp=630 | AA73: rokwzgl=22 i lp=630 | AB73: rokwzgl=23 i lp=630 | AC73: rokwzgl=24 i lp=630 | AD73: rokwzgl=25 i lp=630 | AE73: rokwzgl=26 i lp=630 | AF73: rokwzgl=27 i lp=630 | AG73: rokwzgl=28 i lp=630 | AH73: rokwzgl=29 i lp=630
A74: 640 | B74: 11.5 | C74: Nowe wydatki inwestycyjne | D74: rokwzgl=0 i lp=640 | E74: rokwzgl=0 i lp=640 | F74: rokwzgl=1 i lp=640 | G74: rokwzgl=2 i lp=640 | H74: rokwzgl=3 i lp=640 | I74: rokwzgl=4 i lp=640 | J74: rokwzgl=5 i lp=640 | K74: rokwzgl=6 i lp=640 | L74: rokwzgl=7 i lp=640 | M74: rokwzgl=8 i lp=640 | N74: rokwzgl=9 i lp=640 | O74: rokwzgl=10 i lp=640 | P74: rokwzgl=11 i lp=640 | Q74: rokwzgl=12 i lp=640 | R74: rokwzgl=13 i lp=640 | S74: rokwzgl=14 i lp=640 | T74: rokwzgl=15 i lp=640 | U74: rokwzgl=16 i lp=640 | V74: rokwzgl=17 i lp=640 | W74: rokwzgl=18 i lp=640 | X74: rokwzgl=19 i lp=640 | Y74: rokwzgl=20 i lp=640 | Z74: rokwzgl=21 i lp=640 | AA74: rokwzgl=22 i lp=640 | AB74: rokwzgl=23 i lp=640 | AC74: rokwzgl=24 i lp=640 | AD74: rokwzgl=25 i lp=640 | AE74: rokwzgl=26 i lp=640 | AF74: rokwzgl=27 i lp=640 | AG74: rokwzgl=28 i lp=640 | AH74: rokwzgl=29 i lp=640
A75: 650 | B75: 11.6 | C75: Wydatki majątkowe w formie dotacji | D75: rokwzgl=0 i lp=650 | E75: rokwzgl=0 i lp=650 | F75: rokwzgl=1 i lp=650 | G75: rokwzgl=2 i lp=650 | H75: rokwzgl=3 i lp=650 | I75: rokwzgl=4 i lp=650 | J75: rokwzgl=5 i lp=650 | K75: rokwzgl=6 i lp=650 | L75: rokwzgl=7 i lp=650 | M75: rokwzgl=8 i lp=650 | N75: rokwzgl=9 i lp=650 | O75: rokwzgl=10 i lp=650 | P75: rokwzgl=11 i lp=650 | Q75: rokwzgl=12 i lp=650 | R75: rokwzgl=13 i lp=650 | S75: rokwzgl=14 i lp=650 | T75: rokwzgl=15 i lp=650 | U75: rokwzgl=16 i lp=650 | V75: rokwzgl=17 i lp=650 | W75: rokwzgl=18 i lp=650 | X75: rokwzgl=19 i lp=650 | Y75: rokwzgl=20 i lp=650 | Z75: rokwzgl=21 i lp=650 | AA75: rokwzgl=22 i lp=650 | AB75: rokwzgl=23 i lp=650 | AC75: rokwzgl=24 i lp=650 | AD75: rokwzgl=25 i lp=650 | AE75: rokwzgl=26 i lp=650 | AF75: rokwzgl=27 i lp=650 | AG75: rokwzgl=28 i lp=650 | AH75: rokwzgl=29 i lp=650
A76: 660 | B76: 12 | C76: Finansowanie programów, projektów lub zadań realizowanych z udziałem środków, o których mowa w art. 5 ust. 1 pkt 2 i 3 ustawy | D76: rokwzgl=0 i lp=660 | E76: rokwzgl=0 i lp=660 | F76: rokwzgl=1 i lp=660 | G76: rokwzgl=2 i lp=660 | H76: rokwzgl=3 i lp=660 | I76: rokwzgl=4 i lp=660 | J76: rokwzgl=5 i lp=660 | K76: rokwzgl=6 i lp=660 | L76: rokwzgl=7 i lp=660 | M76: rokwzgl=8 i lp=660 | N76: rokwzgl=9 i lp=660 | O76: rokwzgl=10 i lp=660 | P76: rokwzgl=11 i lp=660 | Q76: rokwzgl=12 i lp=660 | R76: rokwzgl=13 i lp=660 | S76: rokwzgl=14 i lp=660 | T76: rokwzgl=15 i lp=660 | U76: rokwzgl=16 i lp=660 | V76: rokwzgl=17 i lp=660 | W76: rokwzgl=18 i lp=660 | X76: rokwzgl=19 i lp=660 | Y76: rokwzgl=20 i lp=660 | Z76: rokwzgl=21 i lp=660 | AA76: rokwzgl=22 i lp=660 | AB76: rokwzgl=23 i lp=660 | AC76: rokwzgl=24 i lp=660 | AD76: rokwzgl=25 i lp=660 | AE76: rokwzgl=26 i lp=660 | AF76: rokwzgl=27 i lp=660 | AG76: rokwzgl=28 i lp=660 | AH76: rokwzgl=29 i lp=660
A77: 670 | B77: 12.1 | C77: Dochody bieżące na programy, projekty lub zadania finansowane z udziałem środków, o których mowa w art. 5 ust. 1 pkt 2 i 3 ustawy | D77: rokwzgl=0 i lp=670 | E77: rokwzgl=0 i lp=670 | F77: rokwzgl=1 i lp=670 | G77: rokwzgl=2 i lp=670 | H77: rokwzgl=3 i lp=670 | I77: rokwzgl=4 i lp=670 | J77: rokwzgl=5 i lp=670 | K77: rokwzgl=6 i lp=670 | L77: rokwzgl=7 i lp=670 | M77: rokwzgl=8 i lp=670 | N77: rokwzgl=9 i lp=670 | O77: rokwzgl=10 i lp=670 | P77: rokwzgl=11 i lp=670 | Q77: rokwzgl=12 i lp=670 | R77: rokwzgl=13 i lp=670 | S77: rokwzgl=14 i lp=670 | T77: rokwzgl=15 i lp=670 | U77: rokwzgl=16 i lp=670 | V77: rokwzgl=17 i lp=670 | W77: rokwzgl=18 i lp=670 | X77: rokwzgl=19 i lp=670 | Y77: rokwzgl=20 i lp=670 | Z77: rokwzgl=21 i lp=670 | AA77: rokwzgl=22 i lp=670 | AB77: rokwzgl=23 i lp=670 | AC77: rokwzgl=24 i lp=670 | AD77: rokwzgl=25 i lp=670 | AE77: rokwzgl=26 i lp=670 | AF77: rokwzgl=27 i lp=670 | AG77: rokwzgl=28 i lp=670 | AH77: rokwzgl=29 i lp=670
A78: 680 | B78: 12.1.1 | C78: - w tym środki określone w art. 5 ust. 1 pkt 2 ustawy | D78: rokwzgl=0 i lp=680 | E78: rokwzgl=0 i lp=680 | F78: rokwzgl=1 i lp=680 | G78: rokwzgl=2 i lp=680 | H78: rokwzgl=3 i lp=680 | I78: rokwzgl=4 i lp=680 | J78: rokwzgl=5 i lp=680 | K78: rokwzgl=6 i lp=680 | L78: rokwzgl=7 i lp=680 | M78: rokwzgl=8 i lp=680 | N78: rokwzgl=9 i lp=680 | O78: rokwzgl=10 i lp=680 | P78: rokwzgl=11 i lp=680 | Q78: rokwzgl=12 i lp=680 | R78: rokwzgl=13 i lp=680 | S78: rokwzgl=14 i lp=680 | T78: rokwzgl=15 i lp=680 | U78: rokwzgl=16 i lp=680 | V78: rokwzgl=17 i lp=680 | W78: rokwzgl=18 i lp=680 | X78: rokwzgl=19 i lp=680 | Y78: rokwzgl=20 i lp=680 | Z78: rokwzgl=21 i lp=680 | AA78: rokwzgl=22 i lp=680 | AB78: rokwzgl=23 i lp=680 | AC78: rokwzgl=24 i lp=680 | AD78: rokwzgl=25 i lp=680 | AE78: rokwzgl=26 i lp=680 | AF78: rokwzgl=27 i lp=680 | AG78: rokwzgl=28 i lp=680 | AH78: rokwzgl=29 i lp=680
A79: 690 | B79: 12.1.1.1 | C79: - w tym środki określone w art. 5 ust. 1 pkt 2 ustawy wynikające wyłącznie z zawartych umów na realizację programu, projektu lub zadania | D79: rokwzgl=0 i lp=690 | E79: rokwzgl=0 i lp=690 | F79: rokwzgl=1 i lp=690 | G79: rokwzgl=2 i lp=690 | H79: rokwzgl=3 i lp=690 | I79: rokwzgl=4 i lp=690 | J79: rokwzgl=5 i lp=690 | K79: rokwzgl=6 i lp=690 | L79: rokwzgl=7 i lp=690 | M79: rokwzgl=8 i lp=690 | N79: rokwzgl=9 i lp=690 | O79: rokwzgl=10 i lp=690 | P79: rokwzgl=11 i lp=690 | Q79: rokwzgl=12 i lp=690 | R79: rokwzgl=13 i lp=690 | S79: rokwzgl=14 i lp=690 | T79: rokwzgl=15 i lp=690 | U79: rokwzgl=16 i lp=690 | V79: rokwzgl=17 i lp=690 | W79: rokwzgl=18 i lp=690 | X79: rokwzgl=19 i lp=690 | Y79: rokwzgl=20 i lp=690 | Z79: rokwzgl=21 i lp=690 | AA79: rokwzgl=22 i lp=690 | AB79: rokwzgl=23 i lp=690 | AC79: rokwzgl=24 i lp=690 | AD79: rokwzgl=25 i lp=690 | AE79: rokwzgl=26 i lp=690 | AF79: rokwzgl=27 i lp=690 | AG79: rokwzgl=28 i lp=690 | AH79: rokwzgl=29 i lp=690
A80: 700 | B80: 12.2 | C80: Dochody majątkowe na programy, projekty lub zadania finansowane z udziałem środków, o których mowa w art. 5 ust. 1 pkt 2 i 3 ustawy | D80: =+"rokwzgl="&D$9&" i lp="&$A80 -> rokwzgl=0 i lp=700 | E80: rokwzgl=0 i lp=700 | F80: rokwzgl=1 i lp=700 | G80: rokwzgl=2 i lp=700 | H80: rokwzgl=3 i lp=700 | I80: rokwzgl=4 i lp=700 | J80: rokwzgl=5 i lp=700 | K80: rokwzgl=6 i lp=700 | L80: rokwzgl=7 i lp=700 | M80: rokwzgl=8 i lp=700 | N80: =+"rokwzgl="&N$9&" i lp="&$A80 -> rokwzgl=9 i lp=700 | O80: rokwzgl=10 i lp=700 | P80: rokwzgl=11 i lp=700 | Q80: rokwzgl=12 i lp=700 | R80: rokwzgl=13 i lp=700 | S80: rokwzgl=14 i lp=700 | T80: rokwzgl=15 i lp=700 | U80: rokwzgl=16 i lp=700 | V80: rokwzgl=17 i lp=700 | W80: rokwzgl=18 i lp=700 | X80: =+"rokwzgl="&X$9&" i lp="&$A80 -> rokwzgl=19 i lp=700 | Y80: rokwzgl=20 i lp=700 | Z80: rokwzgl=21 i lp=700 | AA80: rokwzgl=22 i lp=700 | AB80: rokwzgl=23 i lp=700 | AC80: rokwzgl=24 i lp=700 | AD80: rokwzgl=25 i lp=700 | AE80: rokwzgl=26 i lp=700 | AF80: rokwzgl=27 i lp=700 | AG80: rokwzgl=28 i lp=700 | AH80: rokwzgl=29 i lp=700
A81: 710 | B81: 12.2.1 | C81: - w tym środki określone w art. 5 ust. 1 pkt 2 ustawy | D81: rokwzgl=0 i lp=710 | E81: rokwzgl=0 i lp=710 | F81: rokwzgl=1 i lp=710 | G81: rokwzgl=2 i lp=710 | H81: rokwzgl=3 i lp=710 | I81: rokwzgl=4 i lp=710 | J81: rokwzgl=5 i lp=710 | K81: rokwzgl=6 i lp=710 | L81: rokwzgl=7 i lp=710 | M81: rokwzgl=8 i lp=710 | N81: rokwzgl=9 i lp=710 | O81: rokwzgl=10 i lp=710 | P81: rokwzgl=11 i lp=710 | Q81: rokwzgl=12 i lp=710 | R81: rokwzgl=13 i lp=710 | S81: rokwzgl=14 i lp=710 | T81: rokwzgl=15 i lp=710 | U81: rokwzgl=16 i lp=710 | V81: rokwzgl=17 i lp=710 | W81: rokwzgl=18 i lp=710 | X81: rokwzgl=19 i lp=710 | Y81: rokwzgl=20 i lp=710 | Z81: rokwzgl=21 i lp=710 | AA81: rokwzgl=22 i lp=710 | AB81: rokwzgl=23 i lp=710 | AC81: rokwzgl=24 i lp=710 | AD81: rokwzgl=25 i lp=710 | AE81: rokwzgl=26 i lp=710 | AF81: rokwzgl=27 i lp=710 | AG81: rokwzgl=28 i lp=710 | AH81: rokwzgl=29 i lp=710
A82: 720 | B82: 12.2.1.1 | C82: - w tym środki określone w art. 5 ust. 1 pkt 2 ustawy wynikające wyłącznie z zawartych umów na realizację programu, projektu lub zadania | D82: rokwzgl=0 i lp=720 | E82: rokwzgl=0 i lp=720 | F82: rokwzgl=1 i lp=720 | G82: rokwzgl=2 i lp=720 | H82: rokwzgl=3 i lp=720 | I82: rokwzgl=4 i lp=720 | J82: rokwzgl=5 i lp=720 | K82: rokwzgl=6 i lp=720 | L82: rokwzgl=7 i lp=720 | M82: rokwzgl=8 i lp=720 | N82: rokwzgl=9 i lp=720 | O82: rokwzgl=10 i lp=720 | P82: rokwzgl=11 i lp=720 | Q82: rokwzgl=12 i lp=720 | R82: rokwzgl=13 i lp=720 | S82: rokwzgl=14 i lp=720 | T82: rokwzgl=15 i lp=720 | U82: rokwzgl=16 i lp=720 | V82: rokwzgl=17 i lp=720 | W82: rokwzgl=18 i lp=720 | X82: rokwzgl=19 i lp=720 | Y82: rokwzgl=20 i lp=720 | Z82: rokwzgl=21 i lp=720 | AA82: rokwzgl=22 i lp=720 | AB82: rokwzgl=23 i lp=720 | AC82: rokwzgl=24 i lp=720 | AD82: rokwzgl=25 i lp=720 | AE82: rokwzgl=26 i lp=720 | AF82: rokwzgl=27 i lp=720 | AG82: rokwzgl=28 i lp=720 | AH82: rokwzgl=29 i lp=720
A83: 730 | B83: 12.3 | C83: Wydatki bieżące na programy, projekty lub zadania finansowane z udziałem środków, o których mowa w art. 5 ust. 1 pkt 2 i 3 ustawy | D83: rokwzgl=0 i lp=730 | E83: rokwzgl=0 i lp=730 | F83: rokwzgl=1 i lp=730 | G83: rokwzgl=2 i lp=730 | H83: rokwzgl=3 i lp=730 | I83: rokwzgl=4 i lp=730 | J83: rokwzgl=5 i lp=730 | K83: rokwzgl=6 i lp=730 | L83: rokwzgl=7 i lp=730 | M83: rokwzgl=8 i lp=730 | N83: rokwzgl=9 i lp=730 | O83: rokwzgl=10 i lp=730 | P83: rokwzgl=11 i lp=730 | Q83: rokwzgl=12 i lp=730 | R83: rokwzgl=13 i lp=730 | S83: rokwzgl=14 i lp=730 | T83: rokwzgl=15 i lp=730 | U83: rokwzgl=16 i lp=730 | V83: rokwzgl=17 i lp=730 | W83: rokwzgl=18 i lp=730 | X83: rokwzgl=19 i lp=730 | Y83: rokwzgl=20 i lp=730 | Z83: rokwzgl=21 i lp=730 | AA83: rokwzgl=22 i lp=730 | AB83: rokwzgl=23 i lp=730 | AC83: rokwzgl=24 i lp=730 | AD83: rokwzgl=25 i lp=730 | AE83: rokwzgl=26 i lp=730 | AF83: rokwzgl=27 i lp=730 | AG83: rokwzgl=28 i lp=730 | AH83: rokwzgl=29 i lp=730
A84: 740 | B84: 12.3.1 | C84: - w tym finansowane środkami określonymi w art. 5 ust. 1 pkt 2 ustawy | D84: rokwzgl=0 i lp=740 | E84: rokwzgl=0 i lp=740 | F84: rokwzgl=1 i lp=740 | G84: rokwzgl=2 i lp=740 | H84: rokwzgl=3 i lp=740 | I84: rokwzgl=4 i lp=740 | J84: rokwzgl=5 i lp=740 | K84: rokwzgl=6 i lp=740 | L84: rokwzgl=7 i lp=740 | M84: rokwzgl=8 i lp=740 | N84: rokwzgl=9 i lp=740 | O84: rokwzgl=10 i lp=740 | P84: rokwzgl=11 i lp=740 | Q84: rokwzgl=12 i lp=740 | R84: rokwzgl=13 i lp=740 | S84: rokwzgl=14 i lp=740 | T84: rokwzgl=15 i lp=740 | U84: rokwzgl=16 i lp=740 | V84: rokwzgl=17 i lp=740 | W84: rokwzgl=18 i lp=740 | X84: rokwzgl=19 i lp=740 | Y84: rokwzgl=20 i lp=740 | Z84: rokwzgl=21 i lp=740 | AA84: rokwzgl=22 i lp=740 | AB84: rokwzgl=23 i lp=740 | AC84: rokwzgl=24 i lp=740 | AD84: rokwzgl=25 i lp=740 | AE84: rokwzgl=26 i lp=740 | AF84: rokwzgl=27 i lp=740 | AG84: rokwzgl=28 i lp=740 | AH84: rokwzgl=29 i lp=740
A85: 750 | B85: 12.3.2 | C85: Wydatki bieżące na realizację programu, projektu lub zadania wynikające wyłącznie z zawartych umów z podmiotem dysponującym środkami, o których mowa w art. 5 ust. 1 pkt 2 ustawy | D85: rokwzgl=0 i lp=750 | E85: rokwzgl=0 i lp=750 | F85: rokwzgl=1 i lp=750 | G85: rokwzgl=2 i lp=750 | H85: rokwzgl=3 i lp=750 | I85: rokwzgl=4 i lp=750 | J85: rokwzgl=5 i lp=750 | K85: rokwzgl=6 i lp=750 | L85: rokwzgl=7 i lp=750 | M85: rokwzgl=8 i lp=750 | N85: rokwzgl=9 i lp=750 | O85: rokwzgl=10 i lp=750 | P85: rokwzgl=11 i lp=750 | Q85: rokwzgl=12 i lp=750 | R85: rokwzgl=13 i lp=750 | S85: rokwzgl=14 i lp=750 | T85: rokwzgl=15 i lp=750 | U85: rokwzgl=16 i lp=750 | V85: rokwzgl=17 i lp=750 | W85: rokwzgl=18 i lp=750 | X85: rokwzgl=19 i lp=750 | Y85: rokwzgl=20 i lp=750 | Z85: rokwzgl=21 i lp=750 | AA85: rokwzgl=22 i lp=750 | AB85: rokwzgl=23 i lp=750 | AC85: rokwzgl=24 i lp=750 | AD85: rokwzgl=25 i lp=750 | AE85: rokwzgl=26 i lp=750 | AF85: rokwzgl=27 i lp=750 | AG85: rokwzgl=28 i lp=750 | AH85: rokwzgl=29 i lp=750
A86: 760 | B86: 12.4 | C86: Wydatki majątkowe na programy, projekty lub zadania finansowane z udziałem środków, o których mowa w art. 5 ust. 1 pkt 2 i 3 ustawy | D86: rokwzgl=0 i lp=760 | E86: rokwzgl=0 i lp=760 | F86: rokwzgl=1 i lp=760 | G86: rokwzgl=2 i lp=760 | H86: rokwzgl=3 i lp=760 | I86: rokwzgl=4 i lp=760 | J86: rokwzgl=5 i lp=760 | K86: rokwzgl=6 i lp=760 | L86: rokwzgl=7 i lp=760 | M86: rokwzgl=8 i lp=760 | N86: rokwzgl=9 i lp=760 | O86: rokwzgl=10 i lp=760 | P86: rokwzgl=11 i lp=760 | Q86: rokwzgl=12 i lp=760 | R86: rokwzgl=13 i lp=760 | S86: rokwzgl=14 i lp=760 | T86: rokwzgl=15 i lp=760 | U86: rokwzgl=16 i lp=760 | V86: rokwzgl=17 i lp=760 | W86: rokwzgl=18 i lp=760 | X86: rokwzgl=19 i lp=760 | Y86: rokwzgl=20 i lp=760 | Z86: rokwzgl=21 i lp=760 | AA86: rokwzgl=22 i lp=760 | AB86: rokwzgl=23 i lp=760 | AC86: rokwzgl=24 i lp=760 | AD86: rokwzgl=25 i lp=760 | AE86: rokwzgl=26 i lp=760 | AF86: rokwzgl=27 i lp=760 | AG86: rokwzgl=28 i lp=760 | AH86: rokwzgl=29 i lp=760
A87: 770 | B87: 12.4.1 | C87: - w tym finansowane środkami określonymi w art. 5 ust. 1 pkt 2 ustawy | D87: rokwzgl=0 i lp=770 | E87: rokwzgl=0 i lp=770 | F87: rokwzgl=1 i lp=770 | G87: rokwzgl=2 i lp=770 | H87: rokwzgl=3 i lp=770 | I87: rokwzgl=4 i lp=770 | J87: rokwzgl=5 i lp=770 | K87: rokwzgl=6 i lp=770 | L87: rokwzgl=7 i lp=770 | M87: rokwzgl=8 i lp=770 | N87: rokwzgl=9 i lp=770 | O87: rokwzgl=10 i lp=770 | P87: rokwzgl=11 i lp=770 | Q87: rokwzgl=12 i lp=770 | R87: rokwzgl=13 i lp=770 | S87: rokwzgl=14 i lp=770 | T87: rokwzgl=15 i lp=770 | U87: rokwzgl=16 i lp=770 | V87: rokwzgl=17 i lp=770 | W87: rokwzgl=18 i lp=770 | X87: rokwzgl=19 i lp=770 | Y87: rokwzgl=20 i lp=770 | Z87: rokwzgl=21 i lp=770 | AA87: rokwzgl=22 i lp=770 | AB87: rokwzgl=23 i lp=770 | AC87: rokwzgl=24 i lp=770 | AD87: rokwzgl=25 i lp=770 | AE87: rokwzgl=26 i lp=770 | AF87: rokwzgl=27 i lp=770 | AG87: rokwzgl=28 i lp=770 | AH87: rokwzgl=29 i lp=770
A88: 780 | B88: 12.4.2 | C88: Wydatki majątkowe na realizację programu, projektu lub zadania wynikające wyłącznie z zawartych umów z podmiotem dysponującym środkami, o których mowa w art. 5 ust. 1 pkt 2 ustawy | D88: rokwzgl=0 i lp=780 | E88: rokwzgl=0 i lp=780 | F88: rokwzgl=1 i lp=780 | G88: rokwzgl=2 i lp=780 | H88: rokwzgl=3 i lp=780 | I88: rokwzgl=4 i lp=780 | J88: rokwzgl=5 i lp=780 | K88: rokwzgl=6 i lp=780 | L88: rokwzgl=7 i lp=780 | M88: rokwzgl=8 i lp=780 | N88: rokwzgl=9 i lp=780 | O88: rokwzgl=10 i lp=780 | P88: rokwzgl=11 i lp=780 | Q88: rokwzgl=12 i lp=780 | R88: rokwzgl=13 i lp=780 | S88: rokwzgl=14 i lp=780 | T88: rokwzgl=15 i lp=780 | U88: rokwzgl=16 i lp=780 | V88: rokwzgl=17 i lp=780 | W88: rokwzgl=18 i lp=780 | X88: rokwzgl=19 i lp=780 | Y88: rokwzgl=20 i lp=780 | Z88: rokwzgl=21 i lp=780 | AA88: rokwzgl=22 i lp=780 | AB88: rokwzgl=23 i lp=780 | AC88: rokwzgl=24 i lp=780 | AD88: rokwzgl=25 i lp=780 | AE88: rokwzgl=26 i lp=780 | AF88: rokwzgl=27 i lp=780 | AG88: rokwzgl=28 i lp=780 | AH88: rokwzgl=29 i lp=780
A89: 790 | B89: 13 | C89: Kwoty dotyczące przejęcia i spłaty zobowiązań po samodzielnych publicznych zakładach opieki zdrowotnej oraz pokrycia ujemnego wyniku | D89: rokwzgl=0 i lp=790 | E89: rokwzgl=0 i lp=790 | F89: rokwzgl=1 i lp=790 | G89: rokwzgl=2 i lp=790 | H89: rokwzgl=3 i lp=790 | I89: rokwzgl=4 i lp=790 | J89: rokwzgl=5 i lp=790 | K89: rokwzgl=6 i lp=790 | L89: rokwzgl=7 i lp=790 | M89: rokwzgl=8 i lp=790 | N89: rokwzgl=9 i lp=790 | O89: rokwzgl=10 i lp=790 | P89: rokwzgl=11 i lp=790 | Q89: rokwzgl=12 i lp=790 | R89: rokwzgl=13 i lp=790 | S89: rokwzgl=14 i lp=790 | T89: rokwzgl=15 i lp=790 | U89: rokwzgl=16 i lp=790 | V89: rokwzgl=17 i lp=790 | W89: rokwzgl=18 i lp=790 | X89: rokwzgl=19 i lp=790 | Y89: rokwzgl=20 i lp=790 | Z89: rokwzgl=21 i lp=790 | AA89: rokwzgl=22 i lp=790 | AB89: rokwzgl=23 i lp=790 | AC89: rokwzgl=24 i lp=790 | AD89: rokwzgl=25 i lp=790 | AE89: rokwzgl=26 i lp=790 | AF89: rokwzgl=27 i lp=790 | AG89: rokwzgl=28 i lp=790 | AH89: rokwzgl=29 i lp=790
A90: 800 | B90: 13.1 | C90: Kwota zobowiązań wynikających z przejęcia przez jednostkę samorządu terytorialnego zobowiązań po likwidowanych i przekształcanych samodzielnych zakładach opieki zdrowotnej | D90: =+"rokwzgl="&D$9&" i lp="&$A90 -> rokwzgl=0 i lp=800 | E90: rokwzgl=0 i lp=800 | F90: rokwzgl=1 i lp=800 | G90: rokwzgl=2 i lp=800 | H90: rokwzgl=3 i lp=800 | I90: rokwzgl=4 i lp=800 | J90: rokwzgl=5 i lp=800 | K90: rokwzgl=6 i lp=800 | L90: rokwzgl=7 i lp=800 | M90: rokwzgl=8 i lp=800 | N90: =+"rokwzgl="&N$9&" i lp="&$A90 -> rokwzgl=9 i lp=800 | O90: rokwzgl=10 i lp=800 | P90: rokwzgl=11 i lp=800 | Q90: rokwzgl=12 i lp=800 | R90: rokwzgl=13 i lp=800 | S90: rokwzgl=14 i lp=800 | T90: rokwzgl=15 i lp=800 | U90: rokwzgl=16 i lp=800 | V90: rokwzgl=17 i lp=800 | W90: rokwzgl=18 i lp=800 | X90: =+"rokwzgl="&X$9&" i lp="&$A90 -> rokwzgl=19 i lp=800 | Y90: rokwzgl=20 i lp=800 | Z90: rokwzgl=21 i lp=800 | AA90: rokwzgl=22 i lp=800 | AB90: rokwzgl=23 i lp=800 | AC90: rokwzgl=24 i lp=800 | AD90: rokwzgl=25 i lp=800 | AE90: rokwzgl=26 i lp=800 | AF90: rokwzgl=27 i lp=800 | AG90: rokwzgl=28 i lp=800 | AH90: rokwzgl=29 i lp=800
A91: 810 | B91: 13.2 | C91: Dochody budżetowe z tytułu dotacji celowej z budżetu państwa, o której mowa w art. 196 ustawy z dnia 15 kwietnia 2011 r. o działalności leczniczej (Dz.U. Nr 112, poz. 654, z późn. zm.) | D91: rokwzgl=0 i lp=810 | E91: rokwzgl=0 i lp=810 | F91: rokwzgl=1 i lp=810 | G91: rokwzgl=2 i lp=810 | H91: rokwzgl=3 i lp=810 | I91: rokwzgl=4 i lp=810 | J91: rokwzgl=5 i lp=810 | K91: rokwzgl=6 i lp=810 | L91: rokwzgl=7 i lp=810 | M91: rokwzgl=8 i lp=810 | N91: rokwzgl=9 i lp=810 | O91: rokwzgl=10 i lp=810 | P91: rokwzgl=11 i lp=810 | Q91: rokwzgl=12 i lp=810 | R91: rokwzgl=13 i lp=810 | S91: rokwzgl=14 i lp=810 | T91: rokwzgl=15 i lp=810 | U91: rokwzgl=16 i lp=810 | V91: rokwzgl=17 i lp=810 | W91: rokwzgl=18 i lp=810 | X91: rokwzgl=19 i lp=810 | Y91: rokwzgl=20 i lp=810 | Z91: rokwzgl=21 i lp=810 | AA91: rokwzgl=22 i lp=810 | AB91: rokwzgl=23 i lp=810 | AC91: rokwzgl=24 i lp=810 | AD91: rokwzgl=25 i lp=810 | AE91: rokwzgl=26 i lp=810 | AF91: rokwzgl=27 i lp=810 | AG91: rokwzgl=28 i lp=810 | AH91: rokwzgl=29 i lp=810
A92: 820 | B92: 13.3 | C92: Wysokość zobowiązań podlegających umorzeniu, o którym mowa w art. 190 ustawy o działalności leczniczej | D92: rokwzgl=0 i lp=820 | E92: rokwzgl=0 i lp=820 | F92: rokwzgl=1 i lp=820 | G92: rokwzgl=2 i lp=820 | H92: rokwzgl=3 i lp=820 | I92: rokwzgl=4 i lp=820 | J92: rokwzgl=5 i lp=820 | K92: rokwzgl=6 i lp=820 | L92: rokwzgl=7 i lp=820 | M92: rokwzgl=8 i lp=820 | N92: rokwzgl=9 i lp=820 | O92: rokwzgl=10 i lp=820 | P92: rokwzgl=11 i lp=820 | Q92: rokwzgl=12 i lp=820 | R92: rokwzgl=13 i lp=820 | S92: rokwzgl=14 i lp=820 | T92: rokwzgl=15 i lp=820 | U92: rokwzgl=16 i lp=820 | V92: rokwzgl=17 i lp=820 | W92: rokwzgl=18 i lp=820 | X92: rokwzgl=19 i lp=820 | Y92: rokwzgl=20 i lp=820 | Z92: rokwzgl=21 i lp=820 | AA92: rokwzgl=22 i lp=820 | AB92: rokwzgl=23 i lp=820 | AC92: rokwzgl=24 i lp=820 | AD92: rokwzgl=25 i lp=820 | AE92: rokwzgl=26 i lp=820 | AF92: rokwzgl=27 i lp=820 | AG92: rokwzgl=28 i lp=820 | AH92: rokwzgl=29 i lp=820
A93: 830 | B93: 13.4 | C93: Wydatki na spłatę przejętych zobowiązań samodzielnego publicznego zakładu opieki zdrowotnej przekształconego na zasadach określonych w przepisach o działalności leczniczej | D93: rokwzgl=0 i lp=830 | E93: rokwzgl=0 i lp=830 | F93: rokwzgl=1 i lp=830 | G93: rokwzgl=2 i lp=830 | H93: rokwzgl=3 i lp=830 | I93: rokwzgl=4 i lp=830 | J93: rokwzgl=5 i lp=830 | K93: rokwzgl=6 i lp=830 | L93: rokwzgl=7 i lp=830 | M93: rokwzgl=8 i lp=830 | N93: rokwzgl=9 i lp=830 | O93: rokwzgl=10 i lp=830 | P93: rokwzgl=11 i lp=830 | Q93: rokwzgl=12 i lp=830 | R93: rokwzgl=13 i lp=830 | S93: rokwzgl=14 i lp=830 | T93: rokwzgl=15 i lp=830 | U93: rokwzgl=16 i lp=830 | V93: rokwzgl=17 i lp=830 | W93: rokwzgl=18 i lp=830 | X93: rokwzgl=19 i lp=830 | Y93: rokwzgl=20 i lp=830 | Z93: rokwzgl=21 i lp=830 | AA93: rokwzgl=22 i lp=830 | AB93: rokwzgl=23 i lp=830 | AC93: rokwzgl=24 i lp=830 | AD93: rokwzgl=25 i lp=830 | AE93: rokwzgl=26 i lp=830 | AF93: rokwzgl=27 i lp=830 | AG93: rokwzgl=28 i lp=830 | AH93: rokwzgl=29 i lp=830
A94: 840 | B94: 13.5 | C94: Wydatki na spłatę przejętych zobowiązań samodzielnego publicznego zakładu opieki zdrowotnej likwidowanego na zasadach określonych w przepisach o działalności leczniczej | D94: rokwzgl=0 i lp=840 | E94: rokwzgl=0 i lp=840 | F94: rokwzgl=1 i lp=840 | G94: rokwzgl=2 i lp=840 | H94: rokwzgl=3 i lp=840 | I94: rokwzgl=4 i lp=840 | J94: rokwzgl=5 i lp=840 | K94: rokwzgl=6 i lp=840 | L94: rokwzgl=7 i lp=840 | M94: rokwzgl=8 i lp=840 | N94: rokwzgl=9 i lp=840 | O94: rokwzgl=10 i lp=840 | P94: rokwzgl=11 i lp=840 | Q94: rokwzgl=12 i lp=840 | R94: rokwzgl=13 i lp=840 | S94: rokwzgl=14 i lp=840 | T94: rokwzgl=15 i lp=840 | U94: rokwzgl=16 i lp=840 | V94: rokwzgl=17 i lp=840 | W94: rokwzgl=18 i lp=840 | X94: rokwzgl=19 i lp=840 | Y94: rokwzgl=20 i lp=840 | Z94: rokwzgl=21 i lp=840 | AA94: rokwzgl=22 i lp=840 | AB94: rokwzgl=23 i lp=840 | AC94: rokwzgl=24 i lp=840 | AD94: rokwzgl=25 i lp=840 | AE94: rokwzgl=26 i lp=840 | AF94: rokwzgl=27 i lp=840 | AG94: rokwzgl=28 i lp=840 | AH94: rokwzgl=29 i lp=840
A95: 850 | B95: 13.6 | C95: Wydatki na spłatę zobowiązań samodzielnego publicznego zakładu opieki zdrowotnej przejętych do końca 2011 r. na podstawie przepisów o zakładach opieki zdrowotnej | D95: rokwzgl=0 i lp=850 | E95: rokwzgl=0 i lp=850 | F95: rokwzgl=1 i lp=850 | G95: rokwzgl=2 i lp=850 | H95: rokwzgl=3 i lp=850 | I95: rokwzgl=4 i lp=850 | J95: rokwzgl=5 i lp=850 | K95: rokwzgl=6 i lp=850 | L95: rokwzgl=7 i lp=850 | M95: rokwzgl=8 i lp=850 | N95: rokwzgl=9 i lp=850 | O95: rokwzgl=10 i lp=850 | P95: rokwzgl=11 i lp=850 | Q95: rokwzgl=12 i lp=850 | R95: rokwzgl=13 i lp=850 | S95: rokwzgl=14 i lp=850 | T95: rokwzgl=15 i lp=850 | U95: rokwzgl=16 i lp=850 | V95: rokwzgl=17 i lp=850 | W95: rokwzgl=18 i lp=850 | X95: rokwzgl=19 i lp=850 | Y95: rokwzgl=20 i lp=850 | Z95: rokwzgl=21 i lp=850 | AA95: rokwzgl=22 i lp=850 | AB95: rokwzgl=23 i lp=850 | AC95: rokwzgl=24 i lp=850 | AD95: rokwzgl=25 i lp=850 | AE95: rokwzgl=26 i lp=850 | AF95: rokwzgl=27 i lp=850 | AG95: rokwzgl=28 i lp=850 | AH95: rokwzgl=29 i lp=850
A96: 860 | B96: 13.7 | C96: Wydatki bieżące na pokrycie ujemnego wyniku finansowego samodzielnego publicznego zakładu opieki zdrowotnej | D96: rokwzgl=0 i lp=860 | E96: rokwzgl=0 i lp=860 | F96: rokwzgl=1 i lp=860 | G96: rokwzgl=2 i lp=860 | H96: rokwzgl=3 i lp=860 | I96: rokwzgl=4 i lp=860 | J96: rokwzgl=5 i lp=860 | K96: rokwzgl=6 i lp=860 | L96: rokwzgl=7 i lp=860 | M96: rokwzgl=8 i lp=860 | N96: rokwzgl=9 i lp=860 | O96: rokwzgl=10 i lp=860 | P96: rokwzgl=11 i lp=860 | Q96: rokwzgl=12 i lp=860 | R96: rokwzgl=13 i lp=860 | S96: rokwzgl=14 i lp=860 | T96: rokwzgl=15 i lp=860 | U96: rokwzgl=16 i lp=860 | V96: rokwzgl=17 i lp=860 | W96: rokwzgl=18 i lp=860 | X96: rokwzgl=19 i lp=860 | Y96: rokwzgl=20 i lp=860 | Z96: rokwzgl=21 i lp=860 | AA96: rokwzgl=22 i lp=860 | AB96: rokwzgl=23 i lp=860 | AC96: rokwzgl=24 i lp=860 | AD96: rokwzgl=25 i lp=860 | AE96: rokwzgl=26 i lp=860 | AF96: rokwzgl=27 i lp=860 | AG96: rokwzgl=28 i lp=860 | AH96: rokwzgl=29 i lp=860
A97: 870 | B97: 14 | C97: Dane uzupełniające o długu i jego spłacie | D97: rokwzgl=0 i lp=870 | E97: rokwzgl=0 i lp=870 | F97: rokwzgl=1 i lp=870 | G97: rokwzgl=2 i lp=870 | H97: rokwzgl=3 i lp=870 | I97: rokwzgl=4 i lp=870 | J97: rokwzgl=5 i lp=870 | K97: rokwzgl=6 i lp=870 | L97: rokwzgl=7 i lp=870 | M97: rokwzgl=8 i lp=870 | N97: rokwzgl=9 i lp=870 | O97: rokwzgl=10 i lp=870 | P97: rokwzgl=11 i lp=870 | Q97: rokwzgl=12 i lp=870 | R97: rokwzgl=13 i lp=870 | S97: rokwzgl=14 i lp=870 | T97: rokwzgl=15 i lp=870 | U97: rokwzgl=16 i lp=870 | V97: rokwzgl=17 i lp=870 | W97: rokwzgl=18 i lp=870 | X97: rokwzgl=19 i lp=870 | Y97: rokwzgl=20 i lp=870 | Z97: rokwzgl=21 i lp=870 | AA97: rokwzgl=22 i lp=870 | AB97: rokwzgl=23 i lp=870 | AC97: rokwzgl=24 i lp=870 | AD97: rokwzgl=25 i lp=870 | AE97: rokwzgl=26 i lp=870 | AF97: rokwzgl=27 i lp=870 | AG97: rokwzgl=28 i lp=870 | AH97: rokwzgl=29 i lp=870
A98: 880 | B98: 14.1 | C98: Spłaty rat kapitałowych oraz wykup papierów wartościowych, o których mowa w pkt. 5.1., wynikające wyłącznie z tytułu zobowiązań już zaciągniętych | D98: rokwzgl=0 i lp=880 | E98: rokwzgl=0 i lp=880 | F98: rokwzgl=1 i lp=880 | G98: rokwzgl=2 i lp=880 | H98: rokwzgl=3 i lp=880 | I98: rokwzgl=4 i lp=880 | J98: rokwzgl=5 i lp=880 | K98: rokwzgl=6 i lp=880 | L98: rokwzgl=7 i lp=880 | M98: rokwzgl=8 i lp=880 | N98: rokwzgl=9 i lp=880 | O98: rokwzgl=10 i lp=880 | P98: rokwzgl=11 i lp=880 | Q98: rokwzgl=12 i lp=880 | R98: rokwzgl=13 i lp=880 | S98: rokwzgl=14 i lp=880 | T98: rokwzgl=15 i lp=880 | U98: rokwzgl=16 i lp=880 | V98: rokwzgl=17 i lp=880 | W98: rokwzgl=18 i lp=880 | X98: rokwzgl=19 i lp=880 | Y98: rokwzgl=20 i lp=880 | Z98: rokwzgl=21 i lp=880 | AA98: rokwzgl=22 i lp=880 | AB98: rokwzgl=23 i lp=880 | AC98: rokwzgl=24 i lp=880 | AD98: rokwzgl=25 i lp=880 | AE98: rokwzgl=26 i lp=880 | AF98: rokwzgl=27 i lp=880 | AG98: rokwzgl=28 i lp=880 | AH98: rokwzgl=29 i lp=880
A99: 890 | B99: 14.2 | C99: Kwota długu, którego planowana spłata dokona się z wydatków budżetu | D99: rokwzgl=0 i lp=890 | E99: rokwzgl=0 i lp=890 | F99: rokwzgl=1 i lp=890 | G99: rokwzgl=2 i lp=890 | H99: rokwzgl=3 i lp=890 | I99: rokwzgl=4 i lp=890 | J99: rokwzgl=5 i lp=890 | K99: rokwzgl=6 i lp=890 | L99: rokwzgl=7 i lp=890 | M99: rokwzgl=8 i lp=890 | N99: rokwzgl=9 i lp=890 | O99: rokwzgl=10 i lp=890 | P99: rokwzgl=11 i lp=890 | Q99: rokwzgl=12 i lp=890 | R99: rokwzgl=13 i lp=890 | S99: rokwzgl=14 i lp=890 | T99: rokwzgl=15 i lp=890 | U99: rokwzgl=16 i lp=890 | V99: rokwzgl=17 i lp=890 | W99: rokwzgl=18 i lp=890 | X99: rokwzgl=19 i lp=890 | Y99: rokwzgl=20 i lp=890 | Z99: rokwzgl=21 i lp=890 | AA99: rokwzgl=22 i lp=890 | AB99: rokwzgl=23 i lp=890 | AC99: rokwzgl=24 i lp=890 | AD99: rokwzgl=25 i lp=890 | AE99: rokwzgl=26 i lp=890 | AF99: rokwzgl=27 i lp=890 | AG99: rokwzgl=28 i lp=890 | AH99: rokwzgl=29 i lp=890
A100: 900 | B100: 14.3 | C100: Wydatki zmniejszające dług, w tym | D100: rokwzgl=0 i lp=900 | E100: rokwzgl=0 i lp=900 | F100: rokwzgl=1 i lp=900 | G100: rokwzgl=2 i lp=900 | H100: rokwzgl=3 i lp=900 | I100: rokwzgl=4 i lp=900 | J100: rokwzgl=5 i lp=900 | K100: rokwzgl=6 i lp=900 | L100: rokwzgl=7 i lp=900 | M100: rokwzgl=8 i lp=900 | N100: rokwzgl=9 i lp=900 | O100: rokwzgl=10 i lp=900 | P100: rokwzgl=11 i lp=900 | Q100: rokwzgl=12 i lp=900 | R100: rokwzgl=13 i lp=900 | S100: rokwzgl=14 i lp=900 | T100: rokwzgl=15 i lp=900 | U100: rokwzgl=16 i lp=900 | V100: rokwzgl=17 i lp=900 | W100: rokwzgl=18 i lp=900 | X100: rokwzgl=19 i lp=900 | Y100: rokwzgl=20 i lp=900 | Z100: rokwzgl=21 i lp=900 | AA100: rokwzgl=22 i lp=900 | AB100: rokwzgl=23 i lp=900 | AC100: rokwzgl=24 i lp=900 | AD100: rokwzgl=25 i lp=900 | AE100: rokwzgl=26 i lp=900 | AF100: rokwzgl=27 i lp=900 | AG100: rokwzgl=28 i lp=900 | AH100: rokwzgl=29 i lp=900
A101: 910 | B101: 14.3.1 | C101: spłata zobowiązań wymagalnych z lat poprzednich, innych niż w pkt 14.3.3 | D101: rokwzgl=0 i lp=910 | E101: rokwzgl=0 i lp=910 | F101: rokwzgl=1 i lp=910 | G101: rokwzgl=2 i lp=910 | H101: rokwzgl=3 i lp=910 | I101: rokwzgl=4 i lp=910 | J101: rokwzgl=5 i lp=910 | K101: rokwzgl=6 i lp=910 | L101: rokwzgl=7 i lp=910 | M101: rokwzgl=8 i lp=910 | N101: rokwzgl=9 i lp=910 | O101: rokwzgl=10 i lp=910 | P101: rokwzgl=11 i lp=910 | Q101: rokwzgl=12 i lp=910 | R101: rokwzgl=13 i lp=910 | S101: rokwzgl=14 i lp=910 | T101: rokwzgl=15 i lp=910 | U101: rokwzgl=16 i lp=910 | V101: rokwzgl=17 i lp=910 | W101: rokwzgl=18 i lp=910 | X101: rokwzgl=19 i lp=910 | Y101: rokwzgl=20 i lp=910 | Z101: rokwzgl=21 i lp=910 | AA101: rokwzgl=22 i lp=910 | AB101: rokwzgl=23 i lp=910 | AC101: rokwzgl=24 i lp=910 | AD101: rokwzgl=25 i lp=910 | AE101: rokwzgl=26 i lp=910 | AF101: rokwzgl=27 i lp=910 | AG101: rokwzgl=28 i lp=910 | AH101: rokwzgl=29 i lp=910
A102: 920 | B102: 14.3.2 | C102: związane z umowami zaliczanymi do tytułów dłużnych wliczanych w państwowy dług publiczny | D102: rokwzgl=0 i lp=920 | E102: rokwzgl=0 i lp=920 | F102: rokwzgl=1 i lp=920 | G102: rokwzgl=2 i lp=920 | H102: rokwzgl=3 i lp=920 | I102: rokwzgl=4 i lp=920 | J102: rokwzgl=5 i lp=920 | K102: rokwzgl=6 i lp=920 | L102: rokwzgl=7 i lp=920 | M102: rokwzgl=8 i lp=920 | N102: rokwzgl=9 i lp=920 | O102: rokwzgl=10 i lp=920 | P102: rokwzgl=11 i lp=920 | Q102: rokwzgl=12 i lp=920 | R102: rokwzgl=13 i lp=920 | S102: rokwzgl=14 i lp=920 | T102: rokwzgl=15 i lp=920 | U102: rokwzgl=16 i lp=920 | V102: rokwzgl=17 i lp=920 | W102: rokwzgl=18 i lp=920 | X102: rokwzgl=19 i lp=920 | Y102: rokwzgl=20 i lp=920 | Z102: rokwzgl=21 i lp=920 | AA102: rokwzgl=22 i lp=920 | AB102: rokwzgl=23 i lp=920 | AC102: rokwzgl=24 i lp=920 | AD102: rokwzgl=25 i lp=920 | AE102: rokwzgl=26 i lp=920 | AF102: rokwzgl=27 i lp=920 | AG102: rokwzgl=28 i lp=920 | AH102: rokwzgl=29 i lp=920
A103: 930 | B103: 14.3.3 | C103: wypłaty z tytułu wymagalnych poręczeń i gwarancji | D103: rokwzgl=0 i lp=930 | E103: rokwzgl=0 i lp=930 | F103: rokwzgl=1 i lp=930 | G103: rokwzgl=2 i lp=930 | H103: rokwzgl=3 i lp=930 | I103: rokwzgl=4 i lp=930 | J103: rokwzgl=5 i lp=930 | K103: rokwzgl=6 i lp=930 | L103: rokwzgl=7 i lp=930 | M103: rokwzgl=8 i lp=930 | N103: rokwzgl=9 i lp=930 | O103: rokwzgl=10 i lp=930 | P103: rokwzgl=11 i lp=930 | Q103: rokwzgl=12 i lp=930 | R103: rokwzgl=13 i lp=930 | S103: rokwzgl=14 i lp=930 | T103: rokwzgl=15 i lp=930 | U103: rokwzgl=16 i lp=930 | V103: rokwzgl=17 i lp=930 | W103: rokwzgl=18 i lp=930 | X103: rokwzgl=19 i lp=930 | Y103: rokwzgl=20 i lp=930 | Z103: rokwzgl=21 i lp=930 | AA103: rokwzgl=22 i lp=930 | AB103: rokwzgl=23 i lp=930 | AC103: rokwzgl=24 i lp=930 | AD103: rokwzgl=25 i lp=930 | AE103: rokwzgl=26 i lp=930 | AF103: rokwzgl=27 i lp=930 | AG103: rokwzgl=28 i lp=930 | AH103: rokwzgl=29 i lp=930
A104: 940 | B104: 14.4 | C104: Wynik operacji niekasowych wpływających na kwotę długu ( m.in. umorzenia, różnice kursowe) | D104: rokwzgl=0 i lp=940 | E104: rokwzgl=0 i lp=940 | F104: rokwzgl=1 i lp=940 | G104: rokwzgl=2 i lp=940 | H104: rokwzgl=3 i lp=940 | I104: rokwzgl=4 i lp=940 | J104: rokwzgl=5 i lp=940 | K104: rokwzgl=6 i lp=940 | L104: rokwzgl=7 i lp=940 | M104: rokwzgl=8 i lp=940 | N104: rokwzgl=9 i lp=940 | O104: rokwzgl=10 i lp=940 | P104: rokwzgl=11 i lp=940 | Q104: rokwzgl=12 i lp=940 | R104: rokwzgl=13 i lp=940 | S104: rokwzgl=14 i lp=940 | T104: rokwzgl=15 i lp=940 | U104: rokwzgl=16 i lp=940 | V104: rokwzgl=17 i lp=940 | W104: rokwzgl=18 i lp=940 | X104: rokwzgl=19 i lp=940 | Y104: rokwzgl=20 i lp=940 | Z104: rokwzgl=21 i lp=940 | AA104: rokwzgl=22 i lp=940 | AB104: rokwzgl=23 i lp=940 | AC104: rokwzgl=24 i lp=940 | AD104: rokwzgl=25 i lp=940 | AE104: rokwzgl=26 i lp=940 | AF104: rokwzgl=27 i lp=940 | AG104: rokwzgl=28 i lp=940 | AH104: rokwzgl=29 i lp=940

Sheet DaneZrodlowe (hidden)
A1: Wyciąg danych z tabeli "Wieloletnia prognoza finansowa" wprowadzonych do systemu BESTI@ z wybranej uchwały | M1: Rok bazowy: | N1: =MIN(M:M) -> 2013 | P1: Rok max | Q1: =MAX(M:M) -> 2023
A3: budzet | B3: numer | C3: nazwajst | D3: kodgus | E3: gt | F3: mswia | G3: lp | H3: symbol | I3: formula | J3: wyszczegolnienie | K3: wsk243 | L3: rokwzgl | M3: rokprognozy | N3: prognoza | O3: DataPodjecia | P3: DataWejscia
A4: 2013 | B4: Uchwała z 31.10.2013r. | C4: BRZEZINY | D4: 1021011 | E4: 1 | G4: 670 | H4: 12.1 | J4: Dochody bieżące na programy, projekty lub zadania finansowane z udziałem środków, o których mowa w art. 5 ust. 1 pkt 2 i 3 ustawy | K4: TRUE | L4: 1 | M4: 2014 | N4: 222594.71 | O4: 2013-10-31 | P4: 2013-10-31
A5: 2013 | B5: Uchwała z 31.10.2013r. | C5: BRZEZINY | D5: 1021011 | E5: 1 | G5: 670 | H5: 12.1 | J5: Dochody bieżące na programy, projekty lub zadania finansowane z udziałem środków, o których mowa w art. 5 ust. 1 pkt 2 i 3 ustawy | K5: TRUE | L5: 0 | M5: 2013 | N5: 1959769.75 | O5: 2013-10-31 | P5: 2013-10-31
A6: 2013 | B6: Uchwała z 31.10.2013r. | C6: BRZEZINY | D6: 1021011 | E6: 1 | G6: 610 | H6: 11.3.1 | J6: bieżące | K6: TRUE | L6: 6 | M6: 2019 | N6: 56 | O6: 2013-10-31 | P6: 2013-10-31
A7: 2013 | B7: Uchwała z 31.10.2013r. | C7: BRZEZINY | D7: 1021011 | E7: 1 | G7: 610 | H7: 11.3.1 | J7: bieżące | K7: TRUE | L7: 4 | M7: 2017 | N7: 56 | O7: 2013-10-31 | P7: 2013-10-31
A8: 2013 | B8: Uchwała z 31.10.2013r. | C8: BRZEZINY | D8: 1021011 | E8: 1 | G8: 610 | H8: 11.3.1 | J8: bieżące | K8: TRUE | L8: 3 | M8: 2016 | N8: 56 | O8: 2013-10-31 | P8: 2013-10-31
A9: 2013 | B9: Uchwała z 31.10.2013r. | C9: BRZEZINY | D9: 1021011 | E9: 1 | G9: 610 | H9: 11.3.1 | J9: bieżące | K9: TRUE | L9: 7 | M9: 2020 | N9: 20 | O9: 2013-10-31 | P9: 2013-10-31
A10: 2013 | B10: Uchwała z 31.10.2013r. | C10: BRZEZINY | D10: 1021011 | E10: 1 | G10: 610 | H10: 11.3.1 | J10: bieżące | K10: TRUE | L10: 2 | M10: 2015 | N10: 449902.82 | O10: 2013-10-31 | P10: 2013-10-31
A11: 2013 | B11: Uchwała z 31.10.2013r. | C11: BRZEZINY | D11: 1021011 | E11: 1 | G11: 610 | H11: 11.3.1 | J11: bieżące | K11: TRUE | L11: 5 | M11: 2018 | N11: 56 | O11: 2013-10-31 | P11: 2013-10-31
A12: 2013 | B12: Uchwała z 31.10.2013r. | C12: BRZEZINY | D12: 1021011 | E12: 1 | G12: 610 | H12: 11.3.1 | J12: bieżące | K12: TRUE | L12: 0 | M12: 2013 | N12: 1322372.51 | O12: 2013-10-31 | P12: 2013-10-31
A13: 2013 | B13: Uchwała z 31.10.2013r. | C13: BRZEZINY | D13: 1021011 | E13: 1 | G13: 610 | H13: 11.3.1 | J13: bieżące | K13: TRUE | L13: 1 | M13: 2014 | N13: 2157115.13 | O13: 2013-10-31 | P13: 2013-10-31
A14: 2013 | B14: Uchwała z 31.10.2013r. | C14: BRZEZINY | D14: 1021011 | E14: 1 | G14: 750 | H14: 12.3.2 | J14: Wydatki bieżące na realizację programu, projektu lub zadania wynikające wyłącznie z zawartych umów z podmiotem dysponującym środkami, o których mowa w art. 5 ust. 1 pkt 2 ustawy | K14: FALSE | L14: 0 | M14: 2013 | N14: 1974899.23 | O14: 2013-10-31 | P14: 2013-10-31
A15: 2013 | B15: Uchwała z 31.10.2013r. | C15: BRZEZINY | D15: 1021011 | E15: 1 | G15: 310 | H15: 5.1 | J15: Spłaty rat kapitałowych kredytów i pożyczek oraz wykup papierów wartościowych | K15: TRUE | L15: 0 | M15: 2013 | N15: 4710000 | O15: 2013-10-31 | P15: 2013-10-31
A16: 2013 | B16: Uchwała z 31.10.2013r. | C16: BRZEZINY | D16: 1021011 | E16: 1 | G16: 310 | H16: 5.1 | J16: Spłaty rat kapitałowych kredytów i pożyczek oraz wykup papierów wartościowych | K16: TRUE | L16: 1 | M16: 2014 | N16: 938060.16 | O16: 2013-10-31 | P16: 2013-10-31
A17: 2013 | B17: Uchwała z 31.10.2013r. | C17: BRZEZINY | D17: 1021011 | E17: 1 | G17: 310 | H17: 5.1 | J17: Spłaty rat kapitałowych kredytów i pożyczek oraz wykup papierów wartościowych | K17: TRUE | L17: 6 | M17: 2019 | N17: 1610004 | O17: 2013-10-31 | P17: 2013-10-31
A18: 2013 | B18: Uchwała z 31.10.2013r. | C18: BRZEZINY | D18: 1021011 | E18: 1 | G18: 310 | H18: 5.1 | J18: Spłaty rat kapitałowych kredytów i pożyczek oraz wykup papierów wartościowych | K18: TRUE | L18: 3 | M18: 2016 | N18: 1565696 | O18: 2013-10-31 | P18: 2013-10-31
A19: 2013 | B19: Uchwała z 31.10.2013r. | C19: BRZEZINY | D19: 1021011 | E19: 1 | G19: 310 | H19: 5.1 | J19: Spłaty rat kapitałowych kredytów i pożyczek oraz wykup papierów wartościowych | K19: TRUE | L19: 8 | M19: 2021 | N19: 1610004 | O19: 2013-10-31 | P19: 2013-10-31
A20: 2013 | B20: Uchwała z 31.10.2013r. | C20: BRZEZINY | D20: 1021011 | E20: 1 | G20: 310 | H20: 5.1 | J20: Spłaty rat kapitałowych kredytów i pożyczek oraz wykup papierów wartościowych | K20: TRUE | L20: 10 | M20: 2023 | N20: 1710000 | O20: 2013-10-31 | P20: 2013-10-31
A21: 2013 | B21: Uchwała z 31.10.2013r. | C21: BRZEZINY | D21: 1021011 | E21: 1 | G21: 310 | H21: 5.1 | J21: Spłaty rat kapitałowych kredytów i pożyczek oraz wykup papierów wartościowych | K21: TRUE | L21: 7 | M21: 2020 | N21: 1610004 | O21: 2013-10-31 | P21: 2013-10-31
A22: 2013 | B22: Uchwała z 31.10.2013r. | C22: BRZEZINY | D22: 1021011 | E22: 1 | G22: 310 | H22: 5.1 | J22: Spłaty rat kapitałowych kredytów i pożyczek oraz wykup papierów wartościowych | K22: TRUE | L22: 5 | M22: 2018 | N22: 1678204 | O22: 2013-10-31 | P22: 2013-10-31
A23: 2013 | B23: Uchwała z 31.10.2013r. | C23: BRZEZINY | D23: 1021011 | E23: 1 | G23: 310 | H23: 5.1 | J23: Spłaty rat kapitałowych kredytów i pożyczek oraz wykup papierów wartościowych | K23: TRUE | L23: 2 | M23: 2015 | N23: 1215692 | O23: 2013-10-31 | P23: 2013-10-31
A24: 2013 | B24: Uchwała z 31.10.2013r. | C24: BRZEZINY | D24: 1021011 | E24: 1 | G24: 310 | H24: 5.1 | J24: Spłaty rat kapitałowych kredytów i pożyczek oraz wykup papierów wartościowych | K24: TRUE | L24: 4 | M24: 2017 | N24: 1915700 | O24: 2013-10-31 | P24: 2013-10-31
A25: 2013 | B25: Uchwała z 31.10.2013r. | C25: BRZEZINY | D25: 1021011 | E25: 1 | G25: 310 | H25: 5.1 | J25: Spłaty rat kapitałowych kredytów i pożyczek oraz wykup papierów wartościowych | K25: TRUE | L25: 9 | M25: 2022 | N25: 1650004 | O25: 2013-10-31 | P25: 2013-10-31
A26: 2013 | B26: Uchwała z 31.10.2013r. | C26: BRZEZINY | D26: 1021011 | E26: 1 | G26: 90 | H26: 1.2 | J26: Dochody majątkowe, w tym | K26: TRUE | L26: 0 | M26: 2013 | N26: 4674343.36 | O26: 2013-10-31 | P26: 2013-10-31
A27: 2013 | B27: Uchwała z 31.10.2013r. | C27: BRZEZINY | D27: 1021011 | E27: 1 | G27: 500 | H27: 9.6 | I27: ([2.1.1]+[2.1.3.1] + [5.1]+[9.5]-[5.1.1]- [2.1.1.1] )/[1] | J27: Wskaźnik planowanej łącznej kwoty spłaty zobowiązań, o której mowa w art. 243 ust. 1 ustawy do dochodów ogółem, po uwzględnieniu zobowiązań związku współtworzonego przez jednostkę samorządu terytorialnego oraz po uwzględnieniu wyłączeń przypadających na dany rok określonych w pkt 5.1.1. | K27: FALSE | L27: 10 | M27: 2023 | N27: 0.0525 | O27: 2013-10-31 | P27: 2013-10-31
A28: 2013 | B28: Uchwała z 31.10.2013r. | C28: BRZEZINY | D28: 1021011 | E28: 1 | G28: 260 | H28: 4.3 | J28: Kredyty, pożyczki, emisja papierów wartościowych | K28: TRUE | L28: 0 | M28: 2013 | N28: 4710000 | O28: 2013-10-31 | P28: 2013-10-31
A29: 2013 | B29: Uchwała z 31.10.2013r. | C29: BRZEZINY | D29: 1021011 | E29: 1 | G29: 600 | H29: 11.3 | I29: [11.3.1] + [11.3.2] | J29: Wydatki objęte limitem art. 226 ust. 3 ustawy | K29: TRUE | L29: 1 | M29: 2014 | N29: 5777805.43 | O29: 2013-10-31 | P29: 2013-10-31
A30: 2013 | B30: Uchwała z 31.10.2013r. | C30: BRZEZINY | D30: 1021011 | E30: 1 | G30: 500 | H30: 9.6 | I30: ([2.1.1]+[2.1.3.1] + [5.1]+[9.5]-[5.1.1]- [2.1.1.1] )/[1] | J30: Wskaźnik planowanej łącznej kwoty spłaty zobowiązań, o której mowa w art. 243 ust. 1 ustawy do dochodów ogółem, po uwzględnieniu zobowiązań związku współtworzonego przez jednostkę samorządu terytorialnego oraz po uwzględnieniu wyłączeń przypadających na dany rok określonych w pkt 5.1.1. | K30: FALSE | L30: 4 | M30: 2017 | N30: 0.0769 | O30: 2013-10-31 | P30: 2013-10-31
A31: 2013 | B31: Uchwała z 31.10.2013r. | C31: BRZEZINY | D31: 1021011 | E31: 1 | G31: 500 | H31: 9.6 | I31: ([2.1.1]+[2.1.3.1] + [5.1]+[9.5]-[5.1.1]- [2.1.1.1] )/[1] | J31: Wskaźnik planowanej łącznej kwoty spłaty zobowiązań, o której mowa w art. 243 ust. 1 ustawy do dochodów ogółem, po uwzględnieniu zobowiązań związku współtworzonego przez jednostkę samorządu terytorialnego oraz po uwzględnieniu wyłączeń przypadających na dany rok określonych w pkt 5.1.1. | K31: FALSE | L31: 6 | M31: 2019 | N31: 0.0613 | O31: 2013-10-31 | P31: 2013-10-31
A32: 2013 | B32: Uchwała z 31.10.2013r. | C32: BRZEZINY | D32: 1021011 | E32: 1 | G32: 500 | H32: 9.6 | I32: ([2.1.1]+[2.1.3.1] + [5.1]+[9.5]-[5.1.1]- [2.1.1.1] )/[1] | J32: Wskaźnik planowanej łącznej kwoty spłaty zobowiązań, o której mowa w art. 243 ust. 1 ustawy do dochodów ogółem, po uwzględnieniu zobowiązań związku współtworzonego przez jednostkę samorządu terytorialnego oraz po uwzględnieniu wyłączeń przypadających na dany rok określonych w pkt 5.1.1. | K32: FALSE | L32: 9 | M32: 2022 | N32: 0.0532 | O32: 2013-10-31 | P32: 2013-10-31
A33: 2013 | B33: Uchwała z 31.10.2013r. | C33: BRZEZINY | D33: 1021011 | E33: 1 | G33: 500 | H33: 9.6 | I33: ([2.1.1]+[2.1.3.1] + [5.1]+[9.5]-[5.1.1]- [2.1.1.1] )/[1] | J33: Wskaźnik planowanej łącznej kwoty spłaty zobowiązań, o której mowa w art. 243 ust. 1 ustawy do dochodów ogółem, po uwzględnieniu zobowiązań związku współtworzonego przez jednostkę samorządu terytorialnego oraz po uwzględnieniu wyłączeń przypadających na dany rok określonych w pkt 5.1.1. | K33: FALSE | L33: 2 | M33: 2015 | N33: 0.0598 | O33: 2013-10-31 | P33: 2013-10-31
A34: 2013 | B34: Uchwała z 31.10.2013r. | C34: BRZEZINY | D34: 1021011 | E34: 1 | G34: 500 | H34: 9.6 | I34: ([2.1.1]+[2.1.3.1] + [5.1]+[9.5]-[5.1.1]- [2.1.1.1] )/[1] | J34: Wskaźnik planowanej łącznej kwoty spłaty zobowiązań, o której mowa w art. 243 ust. 1 ustawy do dochodów ogółem, po uwzględnieniu zobowiązań związku współtworzonego przez jednostkę samorządu terytorialnego oraz po uwzględnieniu wyłączeń przypadających na dany rok określonych w pkt 5.1.1. | K34: FALSE | L34: 0 | M34: 2013 | N34: 0.1456 | O34: 2013-10-31 | P34: 2013-10-31
A35: 2013 | B35: Uchwała z 31.10.2013r. | C35: BRZEZINY | D35: 1021011 | E35: 1 | G35: 500 | H35: 9.6 | I35: ([2.1.1]+[2.1.3.1] + [5.1]+[9.5]-[5.1.1]- [2.1.1.1] )/[1] | J35: Wskaźnik planowanej łącznej kwoty spłaty zobowiązań, o której mowa w art. 243 ust. 1 ustawy do dochodów ogółem, po uwzględnieniu zobowiązań związku współtworzonego przez jednostkę samorządu terytorialnego oraz po uwzględnieniu wyłączeń przypadających na dany rok określonych w pkt 5.1.1. | K35: FALSE | L35: 8 | M35: 2021 | N35: 0.0558 | O35: 2013-10-31 | P35: 2013-10-31
A36: 2013 | B36: Uchwała z 31.10.2013r. | C36: BRZEZINY | D36: 1021011 | E36: 1 | G36: 500 | H36: 9.6 | I36: ([2.1.1]+[2.1.3.1] + [5.1]+[9.5]-[5.1.1]- [2.1.1.1] )/[1] | J36: Wskaźnik planowanej łącznej kwoty spłaty zobowiązań, o której mowa w art. 243 ust. 1 ustawy do dochodów ogółem, po uwzględnieniu zobowiązań związku współtworzonego przez jednostkę samorządu terytorialnego oraz po uwzględnieniu wyłączeń przypadających na dany rok określonych w pkt 5.1.1. | K36: FALSE | L36: 3 | M36: 2016 | N36: 0.0692 | O36: 2013-10-31 | P36: 2013-10-31
A37: 2013 | B37: Uchwała z 31.10.2013r. | C37: BRZEZINY | D37: 1021011 | E37: 1 | G37: 500 | H37: 9.6 | I37: ([2.1.1]+[2.1.3.1] + [5.1]+[9.5]-[5.1.1]- [2.1.1.1] )/[1] | J37: Wskaźnik planowanej łącznej kwoty spłaty zobowiązań, o której mowa w art. 243 ust. 1 ustawy do dochodów ogółem, po uwzględnieniu zobowiązań związku współtworzonego przez jednostkę samorządu terytorialnego oraz po uwzględnieniu wyłączeń przypadających na dany rok określonych w pkt 5.1.1. | K37: FALSE | L37: 5 | M37: 2018 | N37: 0.0663 | O37: 2013-10-31 | P37: 2013-10-31
A38: 2013 | B38: Uchwała z 31.10.2013r. | C38: BRZEZINY | D38: 1021011 | E38: 1 | G38: 500 | H38: 9.6 | I38: ([2.1.1]+[2.1.3.1] + [5.1]+[9.5]-[5.1.1]- [2.1.1.1] )/[1] | J38: Wskaźnik planowanej łącznej kwoty spłaty zobowiązań, o której mowa w art. 243 ust. 1 ustawy do dochodów ogółem, po uwzględnieniu zobowiązań związku współtworzonego przez jednostkę samorządu terytorialnego oraz po uwzględnieniu wyłączeń przypadających na dany rok określonych w pkt 5.1.1. | K38: FALSE | L38: 1 | M38: 2014 | N38: 0.0524 | O38: 2013-10-31 | P38: 2013-10-31
A39: 2013 | B39: Uchwała z 31.10.2013r. | C39: BRZEZINY | D39: 1021011 | E39: 1 | G39: 600 | H39: 11.3 | I39: [11.3.1] + [11.3.2] | J39: Wydatki objęte limitem art. 226 ust. 3 ustawy | K39: TRUE | L39: 0 | M39: 2013 | N39: 3754113.07 | O39: 2013-10-31 | P39: 2013-10-31
A40: 2013 | B40: Uchwała z 31.10.2013r. | C40: BRZEZINY | D40: 1021011 | E40: 1 | G40: 500 | H40: 9.6 | I40: ([2.1.1]+[2.1.3.1] + [5.1]+[9.5]-[5.1.1]- [2.1.1.1] )/[1] | J40: Wskaźnik planowanej łącznej kwoty spłaty zobowiązań, o której mowa w art. 243 ust. 1 ustawy do dochodów ogółem, po uwzględnieniu zobowiązań związku współtworzonego przez jednostkę samorządu terytorialnego oraz po uwzględnieniu wyłączeń przypadających na dany rok określonych w pkt 5.1.1. | K40: FALSE | L40: 7 | M40: 2020 | N40: 0.0584 | O40: 2013-10-31 | P40: 2013-10-31
A41: 2013 | B41: Uchwała z 31.10.2013r. | C41: BRZEZINY | D41: 1021011 | E41: 1 | G41: 710 | H41: 12.2.1 | J41: - w tym środki określone w art. 5 ust. 1 pkt 2 ustawy | K41: FALSE | L41: 0 | M41: 2013 | N41: 3052450.3 | O41: 2013-10-31 | P41: 2013-10-31
A42: 2013 | B42: Uchwała z 31.10.2013r. | C42: BRZEZINY | D42: 1021011 | E42: 1 | G42: 380 | H42: 6.2 | I42: [6] / [1] | J42: Wskaźnik zadłużenia do dochodów ogółem określony w art. 170 ufp z 2005 r., bez uwzględniania wyłączeń określonych w pkt 6.1. | K42: FALSE | L42: 1 | M42: 2014 | N42: 0.4624 | O42: 2013-10-31 | P42: 2013-10-31
A43: 2013 | B43: Uchwała z 31.10.2013r. | C43: BRZEZINY | D43: 1021011 | E43: 1 | G43: 380 | H43: 6.2 | I43: [6] / [1] | J43: Wskaźnik zadłużenia do dochodów ogółem określony w art. 170 ufp z 2005 r., bez uwzględniania wyłączeń określonych w pkt 6.1. | K43: FALSE | L43: 7 | M43: 2020 | N43: 0.1484 | O43: 2013-10-31 | P43: 2013-10-31
A44: 2013 | B44: Uchwała z 31.10.2013r. | C44: BRZEZINY | D44: 1021011 | E44: 1 | G44: 380 | H44: 6.2 | I44: [6] / [1] | J44: Wskaźnik zadłużenia do dochodów ogółem określony w art. 170 ufp z 2005 r., bez uwzględniania wyłączeń określonych w pkt 6.1. | K44: FALSE | L44: 4 | M44: 2017 | N44: 0.3084 | O44: 2013-10-31 | P44: 2013-10-31
A45: 2013 | B45: Uchwała z 31.10.2013r. | C45: BRZEZINY | D45: 1021011 | E45: 1 | G45: 380 | H45: 6.2 | I45: [6] / [1] | J45: Wskaźnik zadłużenia do dochodów ogółem określony w art. 170 ufp z 2005 r., bez uwzględniania wyłączeń określonych w pkt 6.1. | K45: FALSE | L45: 9 | M45: 2022 | N45: 0.0496 | O45: 2013-10-31 | P45: 2013-10-31
A46: 2013 | B46: Uchwała z 31.10.2013r. | C46: BRZEZINY | D46: 1021011 | E46: 1 | G46: 380 | H46: 6.2 | I46: [6] / [1] | J46: Wskaźnik zadłużenia do dochodów ogółem określony w art. 170 ufp z 2005 r., bez uwzględniania wyłączeń określonych w pkt 6.1. | K46: FALSE | L46: 0 | M46: 2013 | N46: 0.4174 | O46: 2013-10-31 | P46: 2013-10-31
A47: 2013 | B47: Uchwała z 31.10.2013r. | C47: BRZEZINY | D47: 1021011 | E47: 1 | G47: 380 | H47: 6.2 | I47: [6] / [1] | J47: Wskaźnik zadłużenia do dochodów ogółem określony w art. 170 ufp z 2005 r., bez uwzględniania wyłączeń określonych w pkt 6.1. | K47: FALSE | L47: 8 | M47: 2021 | N47: 0.0988 | O47: 2013-10-31 | P47: 2013-10-31
A48: 2013 | B48: Uchwała z 31.10.2013r. | C48: BRZEZINY | D48: 1021011 | E48: 1 | G48: 380 | H48: 6.2 | I48: [6] / [1] | J48: Wskaźnik zadłużenia do dochodów ogółem określony w art. 170 ufp z 2005 r., bez uwzględniania wyłączeń określonych w pkt 6.1. | K48: FALSE | L48: 3 | M48: 2016 | N48: 0.3741 | O48: 2013-10-31 | P48: 2013-10-31
A49: 2013 | B49: Uchwała z 31.10.2013r. | C49: BRZEZINY | D49: 1021011 | E49: 1 | G49: 380 | H49: 6.2 | I49: [6] / [1] | J49: Wskaźnik zadłużenia do dochodów ogółem określony w art. 170 ufp z 2005 r., bez uwzględniania wyłączeń określonych w pkt 6.1. | K49: FALSE | L49: 6 | M49: 2019 | N49: 0.1994 | O49: 2013-10-31 | P49: 2013-10-31
A50: 2013 | B50: Uchwała z 31.10.2013r. | C50: BRZEZINY | D50: 1021011 | E50: 1 | G50: 380 | H50: 6.2 | I50: [6] / [1] | J50: Wskaźnik zadłużenia do dochodów ogółem określony w art. 170 ufp z 2005 r., bez uwzględniania wyłączeń określonych w pkt 6.1. | K50: FALSE | L50: 2 | M50: 2015 | N50: 0.4238 | O50: 2013-10-31 | P50: 2013-10-31
A51: 2013 | B51: Uchwała z 31.10.2013r. | C51: BRZEZINY | D51: 1021011 | E51: 1 | G51: 380 | H51: 6.2 | I51: [6] / [1] | J51: Wskaźnik zadłużenia do dochodów ogółem określony w art. 170 ufp z 2005 r., bez uwzględniania wyłączeń określonych w pkt 6.1. | K51: FALSE | L51: 5 | M51: 2018 | N51: 0.252 | O51: 2013-10-31 | P51: 2013-10-31
A52: 2013 | B52: Uchwała z 31.10.2013r. | C52: BRZEZINY | D52: 1021011 | E52: 1 | G52: 20 | H52: 1.1 | J52: Dochody bieżące | K52: TRUE | L52: 6 | M52: 2019 | N52: 33000000 | O52: 2013-10-31 | P52: 2013-10-31
A53: 2013 | B53: Uchwała z 31.10.2013r. | C53: BRZEZINY | D53: 1021011 | E53: 1 | G53: 20 | H53: 1.1 | J53: Dochody bieżące | K53: TRUE | L53: 3 | M53: 2016 | N53: 31500000 | O53: 2013-10-31 | P53: 2013-10-31
A54: 2013 | B54: Uchwała z 31.10.2013r. | C54: BRZEZINY | D54: 1021011 | E54: 1 | G54: 20 | H54: 1.1 | J54: Dochody bieżące | K54: TRUE | L54: 0 | M54: 2013 | N54: 32469863.81 | O54: 2013-10-31 | P54: 2013-10-31
A55: 2013 | B55: Uchwała z 31.10.2013r. | C55: BRZEZINY | D55: 1021011 | E55: 1 | G55: 20 | H55: 1.1 | J55: Dochody bieżące | K55: TRUE | L55: 8 | M55: 2021 | N55: 34000000 | O55: 2013-10-31 | P55: 2013-10-31
A56: 2013 | B56: Uchwała z 31.10.2013r. | C56: BRZEZINY | D56: 1021011 | E56: 1 | G56: 20 | H56: 1.1 | J56: Dochody bieżące | K56: TRUE | L56: 2 | M56: 2015 | N56: 31500000 | O56: 2013-10-31 | P56: 2013-10-31
A57: 2013 | B57: Uchwała z 31.10.2013r. | C57: BRZEZINY | D57: 1021011 | E57: 1 | G57: 20 | H57: 1.1 | J57: Dochody bieżące | K57: TRUE | L57: 9 | M57: 2022 | N57: 34500000 | O57: 2013-10-31 | P57: 2013-10-31
A58: 2013 | B58: Uchwała z 31.10.2013r. | C58: BRZEZINY | D58: 1021011 | E58: 1 | G58: 20 | H58: 1.1 | J58: Dochody bieżące | K58: TRUE | L58: 1 | M58: 2014 | N58: 31500000.71 | O58: 2013-10-31 | P58: 2013-10-31
A59: 2013 | B59: Uchwała z 31.10.2013r. | C59: BRZEZINY | D59: 1021011 | E59: 1 | G59: 20 | H59: 1.1 | J59: Dochody bieżące | K59: TRUE | L59: 5 | M59: 2018 | N59: 32500000 | O59: 2013-10-31 | P59: 2013-10-31
A60: 2013 | B60: Uchwała z 31.10.2013r. | C60: BRZEZINY | D60: 1021011 | E60: 1 | G60: 20 | H60: 1.1 | J60: Dochody bieżące | K60: TRUE | L60: 4 | M60: 2017 | N60: 32000000 | O60: 2013-10-31 | P60: 2013-10-31
A61: 2013 | B61: Uchwała z 31.10.2013r. | C61: BRZEZINY | D61: 1021011 | E61: 1 | G61: 20 | H61: 1.1 | J61: Dochody bieżące | K61: TRUE | L61: 7 | M61: 2020 | N61: 33500000 | O61: 2013-10-31 | P61: 2013-10-31
A62: 2013 | B62: Uchwała z 31.10.2013r. | C62: BRZEZINY | D62: 1021011 | E62: 1 | G62: 20 | H62: 1.1 | J62: Dochody bieżące | K62: TRUE | L62: 10 | M62: 2023 | N62: 35000000 | O62: 2013-10-31 | P62: 2013-10-31
A63: 2013 | B63: Uchwała z 31.10.2013r. | C63: BRZEZINY | D63: 1021011 | E63: 1 | G63: 770 | H63: 12.4.1 | J63: - w tym finansowane środkami określonymi w art. 5 ust. 1 pkt 2 ustawy | K63: TRUE | L63: 0 | M63: 2013 | N63: 529995.71 | O63: 2013-10-31 | P63: 2013-10-31
A64: 2013 | B64: Uchwała z 31.10.2013r. | C64: BRZEZINY | D64: 1021011 | E64: 1 | G64: 600 | H64: 11.3 | I64: [11.3.1] + [11.3.2] | J64: Wydatki objęte limitem art. 226 ust. 3 ustawy | K64: TRUE | L64: 5 | M64: 2018 | N64: 56 | O64: 2013-10-31 | P64: 2013-10-31
A65: 2013 | B65: Uchwała z 31.10.2013r. | C65: BRZEZINY | D65: 1021011 | E65: 1 | G65: 600 | H65: 11.3 | I65: [11.3.1] + [11.3.2] | J65: Wydatki objęte limitem art. 226 ust. 3 ustawy | K65: TRUE | L65: 4 | M65: 2017 | N65: 56 | O65: 2013-10-31 | P65: 2013-10-31
A66: 2013 | B66: Uchwała z 31.10.2013r. | C66: BRZEZINY | D66: 1021011 | E66: 1 | G66: 600 | H66: 11.3 | I66: [11.3.1] + [11.3.2] | J66: Wydatki objęte limitem art. 226 ust. 3 ustawy | K66: TRUE | L66: 6 | M66: 2019 | N66: 56 | O66: 2013-10-31 | P66: 2013-10-31
A67: 2013 | B67: Uchwała z 31.10.2013r. | C67: BRZEZINY | D67: 1021011 | E67: 1 | G67: 600 | H67: 11.3 | I67: [11.3.1] + [11.3.2] | J67: Wydatki objęte limitem art. 226 ust. 3 ustawy | K67: TRUE | L67: 3 | M67: 2016 | N67: 56 | O67: 2013-10-31 | P67: 2013-10-31
A68: 2013 | B68: Uchwała z 31.10.2013r. | C68: BRZEZINY | D68: 1021011 | E68: 1 | G68: 600 | H68: 11.3 | I68: [11.3.1] + [11.3.2] | J68: Wydatki objęte limitem art. 226 ust. 3 ustawy | K68: TRUE | L68: 7 | M68: 2020 | N68: 20 | O68: 2013-10-31 | P68: 2013-10-31
A69: 2013 | B69: Uchwała z 31.10.2013r. | C69: BRZEZINY | D69: 1021011 | E69: 1 | G69: 600 | H69: 11.3 | I69: [11.3.1] + [11.3.2] | J69: Wydatki objęte limitem art. 226 ust. 3 ustawy | K69: TRUE | L69: 2 | M69: 2015 | N69: 449902.82 | O69: 2013-10-31 | P69: 2013-10-31
A70: 2013 | B70: Uchwała z 31.10.2013r. | C70: BRZEZINY | D70: 1021011 | E70: 1 | G70: 10 | H70: 1 | I70: [1.1] + [1.2] | J70: Dochody ogółem | K70: TRUE | L70: 7 | M70: 2020 | N70: 33500000 | O70: 2013-10-31 | P70: 2013-10-31
A71: 2013 | B71: Uchwała z 31.10.2013r. | C71: BRZEZINY | D71: 1021011 | E71: 1 | G71: 10 | H71: 1 | I71: [1.1] + [1.2] | J71: Dochody ogółem | K71: TRUE | L71: 3 | M71: 2016 | N71: 31500000 | O71: 2013-10-31 | P71: 2013-10-31
A72: 2013 | B72: Uchwała z 31.10.2013r. | C72: BRZEZINY | D72: 1021011 | E72: 1 | G72: 10 | H72: 1 | I72: [1.1] + [1.2] | J72: Dochody ogółem | K72: TRUE | L72: 4 | M72: 2017 | N72: 32000000 | O72: 2013-10-31 | P72: 2013-10-31
A73: 2013 | B73: Uchwała z 31.10.2013r. | C73: BRZEZINY | D73: 1021011 | E73: 1 | G73: 10 | H73: 1 | I73: [1.1] + [1.2] | J73: Dochody ogółem | K73: TRUE | L73: 2 | M73: 2015 | N73: 31500000 | O73: 2013-10-31 | P73: 2013-10-31
A74: 2013 | B74: Uchwała z 31.10.2013r. | C74: BRZEZINY | D74: 1021011 | E74: 1 | G74: 10 | H74: 1 | I74: [1.1] + [1.2] | J74: Dochody ogółem | K74: TRUE | L74: 10 | M74: 2023 | N74: 35000000 | O74: 2013-10-31 | P74: 2013-10-31
A75: 2013 | B75: Uchwała z 31.10.2013r. | C75: BRZEZINY | D75: 1021011 | E75: 1 | G75: 10 | H75: 1 | I75: [1.1] + [1.2] | J75: Dochody ogółem | K75: TRUE | L75: 0 | M75: 2013 | N75: 37144207.17 | O75: 2013-10-31 | P75: 2013-10-31
A76: 2013 | B76: Uchwała z 31.10.2013r. | C76: BRZEZINY | D76: 1021011 | E76: 1 | G76: 10 | H76: 1 | I76: [1.1] + [1.2] | J76: Dochody ogółem | K76: TRUE | L76: 6 | M76: 2019 | N76: 33000000 | O76: 2013-10-31 | P76: 2013-10-31
A77: 2013 | B77: Uchwała z 31.10.2013r. | C77: BRZEZINY | D77: 1021011 | E77: 1 | G77: 10 | H77: 1 | I77: [1.1] + [1.2] | J77: Dochody ogółem | K77: TRUE | L77: 5 | M77: 2018 | N77: 32500000 | O77: 2013-10-31 | P77: 2013-10-31
A78: 2013 | B78: Uchwała z 31.10.2013r. | C78: BRZEZINY | D78: 1021011 | E78: 1 | G78: 10 | H78: 1 | I78: [1.1] + [1.2] | J78: Dochody ogółem | K78: TRUE | L78: 1 | M78: 2014 | N78: 31500000.71 | O78: 2013-10-31 | P78: 2013-10-31
A79: 2013 | B79: Uchwała z 31.10.2013r. | C79: BRZEZINY | D79: 1021011 | E79: 1 | G79: 10 | H79: 1 | I79: [1.1] + [1.2] | J79: Dochody ogółem | K79: TRUE | L79: 8 | M79: 2021 | N79: 34000000 | O79: 2013-10-31 | P79: 2013-10-31
A80: 2013 | B80: Uchwała z 31.10.2013r. | C80: BRZEZINY | D80: 1021011 | E80: 1 | G80: 10 | H80: 1 | I80: [1.1] + [1.2] | J80: Dochody ogółem | K80: TRUE | L80: 9 | M80: 2022 | N80: 34500000 | O80: 2013-10-31 | P80: 2013-10-31
A81: 2013 | B81: Uchwała z 31.10.2013r. | C81: BRZEZINY | D81: 1021011 | E81: 1 | G81: 590 | H81: 11.2 | J81: Wydatki związane z funkcjonowaniem organów jednostki samorządu terytorialnego | K81: TRUE | L81: 5 | M81: 2018 | N81: 3400000 | O81: 2013-10-31 | P81: 2013-10-31
A82: 2013 | B82: Uchwała z 31.10.2013r. | C82: BRZEZINY | D82: 1021011 | E82: 1 | G82: 590 | H82: 11.2 | J82: Wydatki związane z funkcjonowaniem organów jednostki samorządu terytorialnego | K82: TRUE | L82: 3 | M82: 2016 | N82: 3200000 | O82: 2013-10-31 | P82: 2013-10-31
A83: 2013 | B83: Uchwała z 31.10.2013r. | C83: BRZEZINY | D83: 1021011 | E83: 1 | G83: 590 | H83: 11.2 | J83: Wydatki związane z funkcjonowaniem organów jednostki samorządu terytorialnego | K83: TRUE | L83: 10 | M83: 2023 | N83: 3900000 | O83: 2013-10-31 | P83: 2013-10-31
A84: 2013 | B84: Uchwała z 31.10.2013r. | C84: BRZEZINY | D84: 1021011 | E84: 1 | G84: 590 | H84: 11.2 | J84: Wydatki związane z funkcjonowaniem organów jednostki samorządu terytorialnego | K84: TRUE | L84: 4 | M84: 2017 | N84: 3300000 | O84: 2013-10-31 | P84: 2013-10-31
A85: 2013 | B85: Uchwała z 31.10.2013r. | C85: BRZEZINY | D85: 1021011 | E85: 1 | G85: 590 | H85: 11.2 | J85: Wydatki związane z funkcjonowaniem organów jednostki samorządu terytorialnego | K85: TRUE | L85: 9 | M85: 2022 | N85: 3800000 | O85: 2013-10-31 | P85: 2013-10-31
A86: 2013 | B86: Uchwała z 31.10.2013r. | C86: BRZEZINY | D86: 1021011 | E86: 1 | G86: 590 | H86: 11.2 | J86: Wydatki związane z funkcjonowaniem organów jednostki samorządu terytorialnego | K86: TRUE | L86: 6 | M86: 2019 | N86: 3500000 | O86: 2013-10-31 | P86: 2013-10-31
A87: 2013 | B87: Uchwała z 31.10.2013r. | C87: BRZEZINY | D87: 1021011 | E87: 1 | G87: 590 | H87: 11.2 | J87: Wydatki związane z funkcjonowaniem organów jednostki samorządu terytorialnego | K87: TRUE | L87: 2 | M87: 2015 | N87: 3100000 | O87: 2013-10-31 | P87: 2013-10-31
A88: 2013 | B88: Uchwała z 31.10.2013r. | C88: BRZEZINY | D88: 1021011 | E88: 1 | G88: 590 | H88: 11.2 | J88: Wydatki związane z funkcjonowaniem organów jednostki samorządu terytorialnego | K88: TRUE | L88: 0 | M88: 2013 | N88: 3136825.95 | O88: 2013-10-31 | P88: 2013-10-31
A89: 2013 | B89: Uchwała z 31.10.2013r. | C89: BRZEZINY | D89: 1021011 | E89: 1 | G89: 590 | H89: 11.2 | J89: Wydatki związane z funkcjonowaniem organów jednostki samorządu terytorialnego | K89: TRUE | L89: 8 | M89: 2021 | N89: 3700000 | O89: 2013-10-31 | P89: 2013-10-31
A90: 2013 | B90: Uchwała z 31.10.2013r. | C90: BRZEZINY | D90: 1021011 | E90: 1 | G90: 590 | H90: 11.2 | J90: Wydatki związane z funkcjonowaniem organów jednostki samorządu terytorialnego | K90: TRUE | L90: 7 | M90: 2020 | N90: 3600000 | O90: 2013-10-31 | P90: 2013-10-31
A91: 2013 | B91: Uchwała z 31.10.2013r. | C91: BRZEZINY | D91: 1021011 | E91: 1 | G91: 590 | H91: 11.2 | J91: Wydatki związane z funkcjonowaniem organów jednostki samorządu terytorialnego | K91: TRUE | L91: 1 | M91: 2014 | N91: 3000000 | O91: 2013-10-31 | P91: 2013-10-31
A92: 2013 | B92: Uchwała z 31.10.2013r. | C92: BRZEZINY | D92: 1021011 | E92: 1 | G92: 580 | H92: 11.1 | J92: Wydatki bieżące na wynagrodzenia i składki od nich naliczane | K92: FALSE | L92: 6 | M92: 2019 | N92: 13600000 | O92: 2013-10-31 | P92: 2013-10-31
A93: 2013 | B93: Uchwała z 31.10.2013r. | C93: BRZEZINY | D93: 1021011 | E93: 1 | G93: 580 | H93: 11.1 | J93: Wydatki bieżące na wynagrodzenia i składki od nich naliczane | K93: FALSE | L93: 4 | M93: 2017 | N93: 13200000 | O93: 2013-10-31 | P93: 2013-10-31
A94: 2013 | B94: Uchwała z 31.10.2013r. | C94: BRZEZINY | D94: 1021011 | E94: 1 | G94: 580 | H94: 11.1 | J94: Wydatki bieżące na wynagrodzenia i składki od nich naliczane | K94: FALSE | L94: 0 | M94: 2013 | N94: 12581224 | O94: 2013-10-31 | P94: 2013-10-31
A95: 2013 | B95: Uchwała z 31.10.2013r. | C95: BRZEZINY | D95: 1021011 | E95: 1 | G95: 580 | H95: 11.1 | J95: Wydatki bieżące na wynagrodzenia i składki od nich naliczane | K95: FALSE | L95: 7 | M95: 2020 | N95: 13800000 | O95: 2013-10-31 | P95: 2013-10-31
A96: 2013 | B96: Uchwała z 31.10.2013r. | C96: BRZEZINY | D96: 1021011 | E96: 1 | G96: 580 | H96: 11.1 | J96: Wydatki bieżące na wynagrodzenia i składki od nich naliczane | K96: FALSE | L96: 10 | M96: 2023 | N96: 14500000 | O96: 2013-10-31 | P96: 2013-10-31
A97: 2013 | B97: Uchwała z 31.10.2013r. | C97: BRZEZINY | D97: 1021011 | E97: 1 | G97: 580 | H97: 11.1 | J97: Wydatki bieżące na wynagrodzenia i składki od nich naliczane | K97: FALSE | L97: 2 | M97: 2015 | N97: 12800000 | O97: 2013-10-31 | P97: 2013-10-31
A98: 2013 | B98: Uchwała z 31.10.2013r. | C98: BRZEZINY | D98: 1021011 | E98: 1 | G98: 580 | H98: 11.1 | J98: Wydatki bieżące na wynagrodzenia i składki od nich naliczane | K98: FALSE | L98: 3 | M98: 2016 | N98: 13000000 | O98: 2013-10-31 | P98: 2013-10-31
A99: 2013 | B99: Uchwała z 31.10.2013r. | C99: BRZEZINY | D99: 1021011 | E99: 1 | G99: 580 | H99: 11.1 | J99: Wydatki bieżące na wynagrodzenia i składki od nich naliczane | K99: FALSE | L99: 5 | M99: 2018 | N99: 13400000 | O99: 2013-10-31 | P99: 2013-10-31
A100: 2013 | B100: Uchwała z 31.10.2013r. | C100: BRZEZINY | D100: 1021011 | E100: 1 | G100: 580 | H100: 11.1 | J100: Wydatki bieżące na wynagrodzenia i składki od nich naliczane | K100: FALSE | L100: 1 | M100: 2014 | N100: 12400000 | O100: 2013-10-31 | P100: 2013-10-31
A101: 2013 | B101: Uchwała z 31.10.2013r. | C101: BRZEZINY | D101: 1021011 | E101: 1 | G101: 580 | H101: 11.1 | J101: Wydatki bieżące na wynagrodzenia i składki od nich naliczane | K101: FALSE | L101: 8 | M101: 2021 | N101: 14000000 | O101: 2013-10-31 | P101: 2013-10-31
A102: 2013 | B102: Uchwała z 31.10.2013r. | C102: BRZEZINY | D102: 1021011 | E102: 1 | G102: 580 | H102: 11.1 | J102: Wydatki bieżące na wynagrodzenia i składki od nich naliczane | K102: FALSE | L102: 9 | M102: 2022 | N102: 14251000 | O102: 2013-10-31 | P102: 2013-10-31
A103: 2013 | B103: Uchwała z 31.10.2013r. | C103: BRZEZINY | D103: 1021011 | E103: 1 | G103: 170 | H103: 2.1.3 | J103: wydatki na obsługę długu | K103: TRUE | L103: 1 | M103: 2014 | N103: 602000 | O103: 2013-10-31 | P103: 2013-10-31
A104: 2013 | B104: Uchwała z 31.10.2013r. | C104: BRZEZINY | D104: 1021011 | E104: 1 | G104: 170 | H104: 2.1.3 | J104: wydatki na obsługę długu | K104: TRUE | L104: 10 | M104: 2023 | N104: 69000 | O104: 2013-10-31 | P104: 2013-10-31
A105: 2013 | B105: Uchwała z 31.10.2013r. | C105: BRZEZINY | D105: 1021011 | E105: 1 | G105: 170 | H105: 2.1.3 | J105: wydatki na obsługę długu | K105: TRUE | L105: 3 | M105: 2016 | N105: 503000 | O105: 2013-10-31 | P105: 2013-10-31
A106: 2013 | B106: Uchwała z 31.10.2013r. | C106: BRZEZINY | D106: 1021011 | E106: 1 | G106: 170 | H106: 2.1.3 | J106: wydatki na obsługę długu | K106: TRUE | L106: 9 | M106: 2022 | N106: 128000 | O106: 2013-10-31 | P106: 2013-10-31
A107: 2013 | B107: Uchwała z 31.10.2013r. | C107: BRZEZINY | D107: 1021011 | E107: 1 | G107: 170 | H107: 2.1.3 | J107: wydatki na obsługę długu | K107: TRUE | L107: 4 | M107: 2017 | N107: 434000 | O107: 2013-10-31 | P107: 2013-10-31
A108: 2013 | B108: Uchwała z 31.10.2013r. | C108: BRZEZINY | D108: 1021011 | E108: 1 | G108: 170 | H108: 2.1.3 | J108: wydatki na obsługę długu | K108: TRUE | L108: 2 | M108: 2015 | N108: 559000 | O108: 2013-10-31 | P108: 2013-10-31
A109: 2013 | B109: Uchwała z 31.10.2013r. | C109: BRZEZINY | D109: 1021011 | E109: 1 | G109: 170 | H109: 2.1.3 | J109: wydatki na obsługę długu | K109: TRUE | L109: 5 | M109: 2018 | N109: 366000 | O109: 2013-10-31 | P109: 2013-10-31
A110: 2013 | B110: Uchwała z 31.10.2013r. | C110: BRZEZINY | D110: 1021011 | E110: 1 | G110: 170 | H110: 2.1.3 | J110: wydatki na obsługę długu | K110: TRUE | L110: 6 | M110: 2019 | N110: 302000 | O110: 2013-10-31 | P110: 2013-10-31
A111: 2013 | B111: Uchwała z 31.10.2013r. | C111: BRZEZINY | D111: 1021011 | E111: 1 | G111: 170 | H111: 2.1.3 | J111: wydatki na obsługę długu | K111: TRUE | L111: 0 | M111: 2013 | N111: 700000 | O111: 2013-10-31 | P111: 2013-10-31
A112: 2013 | B112: Uchwała z 31.10.2013r. | C112: BRZEZINY | D112: 1021011 | E112: 1 | G112: 170 | H112: 2.1.3 | J112: wydatki na obsługę długu | K112: TRUE | L112: 7 | M112: 2020 | N112: 237000 | O112: 2013-10-31 | P112: 2013-10-31
A113: 2013 | B113: Uchwała z 31.10.2013r. | C113: BRZEZINY | D113: 1021011 | E113: 1 | G113: 170 | H113: 2.1.3 | J113: wydatki na obsługę długu | K113: TRUE | L113: 8 | M113: 2021 | N113: 185000 | O113: 2013-10-31 | P113: 2013-10-31
A114: 2013 | B114: Uchwała z 31.10.2013r. | C114: BRZEZINY | D114: 1021011 | E114: 1 | G114: 730 | H114: 12.3 | J114: Wydatki bieżące na programy, projekty lub zadania finansowane z udziałem środków, o których mowa w art. 5 ust. 1 pkt 2 i 3 ustawy | K114: FALSE | L114: 0 | M114: 2013 | N114: 1974899.23 | O114: 2013-10-31 | P114: 2013-10-31
A115: 2013 | B115: Uchwała z 31.10.2013r. | C115: BRZEZINY | D115: 1021011 | E115: 1 | G115: 730 | H115: 12.3 | J115: Wydatki bieżące na programy, projekty lub zadania finansowane z udziałem środków, o których mowa w art. 5 ust. 1 pkt 2 i 3 ustawy | K115: FALSE | L115: 1 | M115: 2014 | N115: 262135.15 | O115: 2013-10-31 | P115: 2013-10-31
A116: 2013 | B116: Uchwała z 31.10.2013r. | C116: BRZEZINY | D116: 1021011 | E116: 1 | G116: 880 | H116: 14.1 | J116: Spłaty rat kapitałowych oraz wykup papierów wartościowych, o których mowa w pkt. 5.1., wynikające wyłącznie z tytułu zobowiązań już zaciągniętych | K116: TRUE | L116: 6 | M116: 2019 | N116: 1310004 | O116: 2013-10-31 | P116: 2013-10-31
A117: 2013 | B117: Uchwała z 31.10.2013r. | C117: BRZEZINY | D117: 1021011 | E117: 1 | G117: 880 | H117: 14.1 | J117: Spłaty rat kapitałowych oraz wykup papierów wartościowych, o których mowa w pkt. 5.1., wynikające wyłącznie z tytułu zobowiązań już zaciągniętych | K117: TRUE | L117: 1 | M117: 2014 | N117: 938060.16 | O117: 2013-10-31 | P117: 2013-10-31
A118: 2013 | B118: Uchwała z 31.10.2013r. | C118: BRZEZINY | D118: 1021011 | E118: 1 | G118: 880 | H118: 14.1 | J118: Spłaty rat kapitałowych oraz wykup papierów wartościowych, o których mowa w pkt. 5.1., wynikające wyłącznie z tytułu zobowiązań już zaciągniętych | K118: TRUE | L118: 3 | M118: 2016 | N118: 1565696 | O118: 2013-10-31 | P118: 2013-10-31
A119: 2013 | B119: Uchwała z 31.10.2013r. | C119: BRZEZINY | D119: 1021011 | E119: 1 | G119: 880 | H119: 14.1 | J119: Spłaty rat kapitałowych oraz wykup papierów wartościowych, o których mowa w pkt. 5.1., wynikające wyłącznie z tytułu zobowiązań już zaciągniętych | K119: TRUE | L119: 2 | M119: 2015 | N119: 1215692 | O119: 2013-10-31 | P119: 2013-10-31
A120: 2013 | B120: Uchwała z 31.10.2013r. | C120: BRZEZINY | D120: 1021011 | E120: 1 | G120: 880 | H120: 14.1 | J120: Spłaty rat kapitałowych oraz wykup papierów wartościowych, o których mowa w pkt. 5.1., wynikające wyłącznie z tytułu zobowiązań już zaciągniętych | K120: TRUE | L120: 0 | M120: 2013 | N120: 4710000 | O120: 2013-10-31 | P120: 2013-10-31
A121: 2013 | B121: Uchwała z 31.10.2013r. | C121: BRZEZINY | D121: 1021011 | E121: 1 | G121: 880 | H121: 14.1 | J121: Spłaty rat kapitałowych oraz wykup papierów wartościowych, o których mowa w pkt. 5.1., wynikające wyłącznie z tytułu zobowiązań już zaciągniętych | K121: TRUE | L121: 5 | M121: 2018 | N121: 1478204 | O121: 2013-10-31 | P121: 2013-10-31
A122: 2013 | B122: Uchwała z 31.10.2013r. | C122: BRZEZINY | D122: 1021011 | E122: 1 | G122: 880 | H122: 14.1 | J122: Spłaty rat kapitałowych oraz wykup papierów wartościowych, o których mowa w pkt. 5.1., wynikające wyłącznie z tytułu zobowiązań już zaciągniętych | K122: TRUE | L122: 9 | M122: 2022 | N122: 350004 | O122: 2013-10-31 | P122: 2013-10-31
A123: 2013 | B123: Uchwała z 31.10.2013r. | C123: BRZEZINY | D123: 1021011 | E123: 1 | G123: 880 | H123: 14.1 | J123: Spłaty rat kapitałowych oraz wykup papierów wartościowych, o których mowa w pkt. 5.1., wynikające wyłącznie z tytułu zobowiązań już zaciągniętych | K123: TRUE | L123: 4 | M123: 2017 | N123: 1915700 | O123: 2013-10-31 | P123: 2013-10-31
A124: 2013 | B124: Uchwała z 31.10.2013r. | C124: BRZEZINY | D124: 1021011 | E124: 1 | G124: 880 | H124: 14.1 | J124: Spłaty rat kapitałowych oraz wykup papierów wartościowych, o których mowa w pkt. 5.1., wynikające wyłącznie z tytułu zobowiązań już zaciągniętych | K124: TRUE | L124: 8 | M124: 2021 | N124: 710004 | O124: 2013-10-31 | P124: 2013-10-31
A125: 2013 | B125: Uchwała z 31.10.2013r. | C125: BRZEZINY | D125: 1021011 | E125: 1 | G125: 880 | H125: 14.1 | J125: Spłaty rat kapitałowych oraz wykup papierów wartościowych, o których mowa w pkt. 5.1., wynikające wyłącznie z tytułu zobowiązań już zaciągniętych | K125: TRUE | L125: 7 | M125: 2020 | N125: 1310004 | O125: 2013-10-31 | P125: 2013-10-31
A126: 2013 | B126: Uchwała z 31.10.2013r. | C126: BRZEZINY | D126: 1021011 | E126: 1 | G126: 110 | H126: 1.2.2 | J126: z tytułu dotacji oraz środków przeznaczonych na inwestycje | K126: TRUE | L126: 0 | M126: 2013 | N126: 4381623.36 | O126: 2013-10-31 | P126: 2013-10-31
A127: 2013 | B127: Uchwała z 31.10.2013r. | C127: BRZEZINY | D127: 1021011 | E127: 1 | G127: 80 | H127: 1.1.5 | J127: z tytułu dotacji i środków przeznaczonych na cele bieżące | K127: TRUE | L127: 9 | M127: 2022 | N127: 6800000 | O127: 2013-10-31 | P127: 2013-10-31
A128: 2013 | B128: Uchwała z 31.10.2013r. | C128: BRZEZINY | D128: 1021011 | E128: 1 | G128: 80 | H128: 1.1.5 | J128: z tytułu dotacji i środków przeznaczonych na cele bieżące | K128: TRUE | L128: 6 | M128: 2019 | N128: 6500000 | O128: 2013-10-31 | P128: 2013-10-31
A129: 2013 | B129: Uchwała z 31.10.2013r. | C129: BRZEZINY | D129: 1021011 | E129: 1 | G129: 80 | H129: 1.1.5 | J129: z tytułu dotacji i środków przeznaczonych na cele bieżące | K129: TRUE | L129: 7 | M129: 2020 | N129: 6600000 | O129: 2013-10-31 | P129: 2013-10-31
A130: 2013 | B130: Uchwała z 31.10.2013r. | C130: BRZEZINY | D130: 1021011 | E130: 1 | G130: 80 | H130: 1.1.5 | J130: z tytułu dotacji i środków przeznaczonych na cele bieżące | K130: TRUE | L130: 1 | M130: 2014 | N130: 6000000 | O130: 2013-10-31 | P130: 2013-10-31
A131: 2013 | B131: Uchwała z 31.10.2013r. | C131: BRZEZINY | D131: 1021011 | E131: 1 | G131: 80 | H131: 1.1.5 | J131: z tytułu dotacji i środków przeznaczonych na cele bieżące | K131: TRUE | L131: 5 | M131: 2018 | N131: 6400000 | O131: 2013-10-31 | P131: 2013-10-31
A132: 2013 | B132: Uchwała z 31.10.2013r. | C132: BRZEZINY | D132: 1021011 | E132: 1 | G132: 80 | H132: 1.1.5 | J132: z tytułu dotacji i środków przeznaczonych na cele bieżące | K132: TRUE | L132: 8 | M132: 2021 | N132: 6700000 | O132: 2013-10-31 | P132: 2013-10-31
A133: 2013 | B133: Uchwała z 31.10.2013r. | C133: BRZEZINY | D133: 1021011 | E133: 1 | G133: 80 | H133: 1.1.5 | J133: z tytułu dotacji i środków przeznaczonych na cele bieżące | K133: TRUE | L133: 10 | M133: 2023 | N133: 6900000 | O133: 2013-10-31 | P133: 2013-10-31
A134: 2013 | B134: Uchwała z 31.10.2013r. | C134: BRZEZINY | D134: 1021011 | E134: 1 | G134: 80 | H134: 1.1.5 | J134: z tytułu dotacji i środków przeznaczonych na cele bieżące | K134: TRUE | L134: 3 | M134: 2016 | N134: 6200000 | O134: 2013-10-31 | P134: 2013-10-31
A135: 2013 | B135: Uchwała z 31.10.2013r. | C135: BRZEZINY | D135: 1021011 | E135: 1 | G135: 80 | H135: 1.1.5 | J135: z tytułu dotacji i środków przeznaczonych na cele bieżące | K135: TRUE | L135: 4 | M135: 2017 | N135: 6300000 | O135: 2013-10-31 | P135: 2013-10-31
A136: 2013 | B136: Uchwała z 31.10.2013r. | C136: BRZEZINY | D136: 1021011 | E136: 1 | G136: 80 | H136: 1.1.5 | J136: z tytułu dotacji i środków przeznaczonych na cele bieżące | K136: TRUE | L136: 0 | M136: 2013 | N136: 8401953.51 | O136: 2013-10-31 | P136: 2013-10-31
A137: 2013 | B137: Uchwała z 31.10.2013r. | C137: BRZEZINY | D137: 1021011 | E137: 1 | G137: 80 | H137: 1.1.5 | J137: z tytułu dotacji i środków przeznaczonych na cele bieżące | K137: TRUE | L137: 2 | M137: 2015 | N137: 6100000 | O137: 2013-10-31 | P137: 2013-10-31
A138: 2013 | B138: Uchwała z 31.10.2013r. | C138: BRZEZINY | D138: 1021011 | E138: 1 | G138: 460 | H138: 9.2 | I138: ([2.1.1] + [2.1.3.1] + [5.1] - [5.1.1]- [2.1.1.1] ) / [1] | J138: Wskaźnik planowanej łącznej kwoty spłaty zobowiązań, o której mowa w art. 169 ust. 1 ufp z 2005 r. do dochodów ogółem, po uwzględnieniu wyłączeń przypadających na dany rok określonych w pkt 5.1.1. | K138: FALSE | L138: 2 | M138: 2015 | N138: 0.0598 | O138: 2013-10-31 | P138: 2013-10-31
A139: 2013 | B139: Uchwała z 31.10.2013r. | C139: BRZEZINY | D139: 1021011 | E139: 1 | G139: 460 | H139: 9.2 | I139: ([2.1.1] + [2.1.3.1] + [5.1] - [5.1.1]- [2.1.1.1] ) / [1] | J139: Wskaźnik planowanej łącznej kwoty spłaty zobowiązań, o której mowa w art. 169 ust. 1 ufp z 2005 r. do dochodów ogółem, po uwzględnieniu wyłączeń przypadających na dany rok określonych w pkt 5.1.1. | K139: FALSE | L139: 6 | M139: 2019 | N139: 0.0613 | O139: 2013-10-31 | P139: 2013-10-31
A140: 2013 | B140: Uchwała z 31.10.2013r. | C140: BRZEZINY | D140: 1021011 | E140: 1 | G140: 300 | H140: 5 | I140: [5.1] + [5.2] | J140: Rozchody budżetu | K140: FALSE | L140: 4 | M140: 2017 | N140: 1915700 | O140: 2013-10-31 | P140: 2013-10-31
A141: 2013 | B141: Uchwała z 31.10.2013r. | C141: BRZEZINY | D141: 1021011 | E141: 1 | G141: 300 | H141: 5 | I141: [5.1] + [5.2] | J141: Rozchody budżetu | K141: FALSE | L141: 8 | M141: 2021 | N141: 1610004 | O141: 2013-10-31 | P141: 2013-10-31
A142: 2013 | B142: Uchwała z 31.10.2013r. | C142: BRZEZINY | D142: 1021011 | E142: 1 | G142: 460 | H142: 9.2 | I142: ([2.1.1] + [2.1.3.1] + [5.1] - [5.1.1]- [2.1.1.1] ) / [1] | J142: Wskaźnik planowanej łącznej kwoty spłaty zobowiązań, o której mowa w art. 169 ust. 1 ufp z 2005 r. do dochodów ogółem, po uwzględnieniu wyłączeń przypadających na dany rok określonych w pkt 5.1.1. | K142: FALSE | L142: 7 | M142: 2020 | N142: 0.0584 | O142: 2013-10-31 | P142: 2013-10-31
A143: 2013 | B143: Uchwała z 31.10.2013r. | C143: BRZEZINY | D143: 1021011 | E143: 1 | G143: 460 | H143: 9.2 | I143: ([2.1.1] + [2.1.3.1] + [5.1] - [5.1.1]- [2.1.1.1] ) / [1] | J143: Wskaźnik planowanej łącznej kwoty spłaty zobowiązań, o której mowa w art. 169 ust. 1 ufp z 2005 r. do dochodów ogółem, po uwzględnieniu wyłączeń przypadających na dany rok określonych w pkt 5.1.1. | K143: FALSE | L143: 3 | M143: 2016 | N143: 0.0692 | O143: 2013-10-31 | P143: 2013-10-31
A144: 2013 | B144: Uchwała z 31.10.2013r. | C144: BRZEZINY | D144: 1021011 | E144: 1 | G144: 460 | H144: 9.2 | I144: ([2.1.1] + [2.1.3.1] + [5.1] - [5.1.1]- [2.1.1.1] ) / [1] | J144: Wskaźnik planowanej łącznej kwoty spłaty zobowiązań, o której mowa w art. 169 ust. 1 ufp z 2005 r. do dochodów ogółem, po uwzględnieniu wyłączeń przypadających na dany rok określonych w pkt 5.1.1. | K144: FALSE | L144: 10 | M144: 2023 | N144: 0.0525 | O144: 2013-10-31 | P144: 2013-10-31
A145: 2013 | B145: Uchwała z 31.10.2013r. | C145: BRZEZINY | D145: 1021011 | E145: 1 | G145: 460 | H145: 9.2 | I145: ([2.1.1] + [2.1.3.1] + [5.1] - [5.1.1]- [2.1.1.1] ) / [1] | J145: Wskaźnik planowanej łącznej kwoty spłaty zobowiązań, o której mowa w art. 169 ust. 1 ufp z 2005 r. do dochodów ogółem, po uwzględnieniu wyłączeń przypadających na dany rok określonych w pkt 5.1.1. | K145: FALSE | L145: 5 | M145: 2018 | N145: 0.0663 | O145: 2013-10-31 | P145: 2013-10-31
A146: 2013 | B146: Uchwała z 31.10.2013r. | C146: BRZEZINY | D146: 1021011 | E146: 1 | G146: 460 | H146: 9.2 | I146: ([2.1.1] + [2.1.3.1] + [5.1] - [5.1.1]- [2.1.1.1] ) / [1] | J146: Wskaźnik planowanej łącznej kwoty spłaty zobowiązań, o której mowa w art. 169 ust. 1 ufp z 2005 r. do dochodów ogółem, po uwzględnieniu wyłączeń przypadających na dany rok określonych w pkt 5.1.1. | K146: FALSE | L146: 0 | M146: 2013 | N146: 0.1456 | O146: 2013-10-31 | P146: 2013-10-31
A147: 2013 | B147: Uchwała z 31.10.2013r. | C147: BRZEZINY | D147: 1021011 | E147: 1 | G147: 460 | H147: 9.2 | I147: ([2.1.1] + [2.1.3.1] + [5.1] - [5.1.1]- [2.1.1.1] ) / [1] | J147: Wskaźnik planowanej łącznej kwoty spłaty zobowiązań, o której mowa w art. 169 ust. 1 ufp z 2005 r. do dochodów ogółem, po uwzględnieniu wyłączeń przypadających na dany rok określonych w pkt 5.1.1. | K147: FALSE | L147: 9 | M147: 2022 | N147: 0.0532 | O147: 2013-10-31 | P147: 2013-10-31
A148: 2013 | B148: Uchwała z 31.10.2013r. | C148: BRZEZINY | D148: 1021011 | E148: 1 | G148: 460 | H148: 9.2 | I148: ([2.1.1] + [2.1.3.1] + [5.1] - [5.1.1]- [2.1.1.1] ) / [1] | J148: Wskaźnik planowanej łącznej kwoty spłaty zobowiązań, o której mowa w art. 169 ust. 1 ufp z 2005 r. do dochodów ogółem, po uwzględnieniu wyłączeń przypadających na dany rok określonych w pkt 5.1.1. | K148: FALSE | L148: 1 | M148: 2014 | N148: 0.0524 | O148: 2013-10-31 | P148: 2013-10-31
A149: 2013 | B149: Uchwała z 31.10.2013r. | C149: BRZEZINY | D149: 1021011 | E149: 1 | G149: 460 | H149: 9.2 | I149: ([2.1.1] + [2.1.3.1] + [5.1] - [5.1.1]- [2.1.1.1] ) / [1] | J149: Wskaźnik planowanej łącznej kwoty spłaty zobowiązań, o której mowa w art. 169 ust. 1 ufp z 2005 r. do dochodów ogółem, po uwzględnieniu wyłączeń przypadających na dany rok określonych w pkt 5.1.1. | K149: FALSE | L149: 8 | M149: 2021 | N149: 0.0558 | O149: 2013-10-31 | P149: 2013-10-31
A150: 2013 | B150: Uchwała z 31.10.2013r. | C150: BRZEZINY | D150: 1021011 | E150: 1 | G150: 460 | H150: 9.2 | I150: ([2.1.1] + [2.1.3.1] + [5.1] - [5.1.1]- [2.1.1.1] ) / [1] | J150: Wskaźnik planowanej łącznej kwoty spłaty zobowiązań, o której mowa w art. 169 ust. 1 ufp z 2005 r. do dochodów ogółem, po uwzględnieniu wyłączeń przypadających na dany rok określonych w pkt 5.1.1. | K150: FALSE | L150: 4 | M150: 2017 | N150: 0.0769 | O150: 2013-10-31 | P150: 2013-10-31
A151: 2013 | B151: Uchwała z 31.10.2013r. | C151: BRZEZINY | D151: 1021011 | E151: 1 | G151: 300 | H151: 5 | I151: [5.1] + [5.2] | J151: Rozchody budżetu | K151: FALSE | L151: 1 | M151: 2014 | N151: 938060.16 | O151: 2013-10-31 | P151: 2013-10-31
A152: 2013 | B152: Uchwała z 31.10.2013r. | C152: BRZEZINY | D152: 1021011 | E152: 1 | G152: 300 | H152: 5 | I152: [5.1] + [5.2] | J152: Rozchody budżetu | K152: FALSE | L152: 3 | M152: 2016 | N152: 1565696 | O152: 2013-10-31 | P152: 2013-10-31
A153: 2013 | B153: Uchwała z 31.10.2013r. | C153: BRZEZINY | D153: 1021011 | E153: 1 | G153: 300 | H153: 5 | I153: [5.1] + [5.2] | J153: Rozchody budżetu | K153: FALSE | L153: 9 | M153: 2022 | N153: 1650004 | O153: 2013-10-31 | P153: 2013-10-31
A154: 2013 | B154: Uchwała z 31.10.2013r. | C154: BRZEZINY | D154: 1021011 | E154: 1 | G154: 300 | H154: 5 | I154: [5.1] + [5.2] | J154: Rozchody budżetu | K154: FALSE | L154: 0 | M154: 2013 | N154: 4710000 | O154: 2013-10-31 | P154: 2013-10-31
A155: 2013 | B155: Uchwała z 31.10.2013r. | C155: BRZEZINY | D155: 1021011 | E155: 1 | G155: 300 | H155: 5 | I155: [5.1] + [5.2] | J155: Rozchody budżetu | K155: FALSE | L155: 6 | M155: 2019 | N155: 1610004 | O155: 2013-10-31 | P155: 2013-10-31
A156: 2013 | B156: Uchwała z 31.10.2013r. | C156: BRZEZINY | D156: 1021011 | E156: 1 | G156: 300 | H156: 5 | I156: [5.1] + [5.2] | J156: Rozchody budżetu | K156: FALSE | L156: 5 | M156: 2018 | N156: 1678204 | O156: 2013-10-31 | P156: 2013-10-31
A157: 2013 | B157: Uchwała z 31.10.2013r. | C157: BRZEZINY | D157: 1021011 | E157: 1 | G157: 300 | H157: 5 | I157: [5.1] + [5.2] | J157: Rozchody budżetu | K157: FALSE | L157: 7 | M157: 2020 | N157: 1610004 | O157: 2013-10-31 | P157: 2013-10-31
A158: 2013 | B158: Uchwała z 31.10.2013r. | C158: BRZEZINY | D158: 1021011 | E158: 1 | G158: 300 | H158: 5 | I158: [5.1] + [5.2] | J158: Rozchody budżetu | K158: FALSE | L158: 2 | M158: 2015 | N158: 1215692 | O158: 2013-10-31 | P158: 2013-10-31
A159: 2013 | B159: Uchwała z 31.10.2013r. | C159: BRZEZINY | D159: 1021011 | E159: 1 | G159: 300 | H159: 5 | I159: [5.1] + [5.2] | J159: Rozchody budżetu | K159: FALSE | L159: 10 | M159: 2023 | N159: 1710000 | O159: 2013-10-31 | P159: 2013-10-31
A160: 2013 | B160: Uchwała z 31.10.2013r. | C160: BRZEZINY | D160: 1021011 | E160: 1 | G160: 560 | H160: 10.1 | J160: Spłaty kredytów, pożyczek i wykup papierów wartościowych | K160: FALSE | L160: 10 | M160: 2023 | N160: 1710000 | O160: 2013-10-31 | P160: 2013-10-31
A161: 2013 | B161: Uchwała z 31.10.2013r. | C161: BRZEZINY | D161: 1021011 | E161: 1 | G161: 560 | H161: 10.1 | J161: Spłaty kredytów, pożyczek i wykup papierów wartościowych | K161: FALSE | L161: 7 | M161: 2020 | N161: 1610004 | O161: 2013-10-31 | P161: 2013-10-31
A162: 2013 | B162: Uchwała z 31.10.2013r. | C162: BRZEZINY | D162: 1021011 | E162: 1 | G162: 560 | H162: 10.1 | J162: Spłaty kredytów, pożyczek i wykup papierów wartościowych | K162: FALSE | L162: 2 | M162: 2015 | N162: 1215692 | O162: 2013-10-31 | P162: 2013-10-31
A163: 2013 | B163: Uchwała z 31.10.2013r. | C163: BRZEZINY | D163: 1021011 | E163: 1 | G163: 560 | H163: 10.1 | J163: Spłaty kredytów, pożyczek i wykup papierów wartościowych | K163: FALSE | L163: 6 | M163: 2019 | N163: 1610004 | O163: 2013-10-31 | P163: 2013-10-31
A164: 2013 | B164: Uchwała z 31.10.2013r. | C164: BRZEZINY | D164: 1021011 | E164: 1 | G164: 560 | H164: 10.1 | J164: Spłaty kredytów, pożyczek i wykup papierów wartościowych | K164: FALSE | L164: 5 | M164: 2018 | N164: 1678204 | O164: 2013-10-31 | P164: 2013-10-31
A165: 2013 | B165: Uchwała z 31.10.2013r. | C165: BRZEZINY | D165: 1021011 | E165: 1 | G165: 560 | H165: 10.1 | J165: Spłaty kredytów, pożyczek i wykup papierów wartościowych | K165: FALSE | L165: 8 | M165: 2021 | N165: 1610004 | O165: 2013-10-31 | P165: 2013-10-31
A166: 2013 | B166: Uchwała z 31.10.2013r. | C166: BRZEZINY | D166: 1021011 | E166: 1 | G166: 560 | H166: 10.1 | J166: Spłaty kredytów, pożyczek i wykup papierów wartościowych | K166: FALSE | L166: 3 | M166: 2016 | N166: 1565696 | O166: 2013-10-31 | P166: 2013-10-31
A167: 2013 | B167: Uchwała z 31.10.2013r. | C167: BRZEZINY | D167: 1021011 | E167: 1 | G167: 560 | H167: 10.1 | J167: Spłaty kredytów, pożyczek i wykup papierów wartościowych | K167: FALSE | L167: 4 | M167: 2017 | N167: 1915700 | O167: 2013-10-31 | P167: 2013-10-31
A168: 2013 | B168: Uchwała z 31.10.2013r. | C168: BRZEZINY | D168: 1021011 | E168: 1 | G168: 560 | H168: 10.1 | J168: Spłaty kredytów, pożyczek i wykup papierów wartościowych | K168: FALSE | L168: 1 | M168: 2014 | N168: 938060.16 | O168: 2013-10-31 | P168: 2013-10-31
A169: 2013 | B169: Uchwała z 31.10.2013r. | C169: BRZEZINY | D169: 1021011 | E169: 1 | G169: 560 | H169: 10.1 | J169: Spłaty kredytów, pożyczek i wykup papierów wartościowych | K169: FALSE | L169: 9 | M169: 2022 | N169: 1650004 | O169: 2013-10-31 | P169: 2013-10-31
A170: 2013 | B170: Uchwała z 31.10.2013r. | C170: BRZEZINY | D170: 1021011 | E170: 1 | G170: 700 | H170: 12.2 | J170: Dochody majątkowe na programy, projekty lub zadania finansowane z udziałem środków, o których mowa w art. 5 ust. 1 pkt 2 i 3 ustawy | K170: FALSE | L170: 0 | M170: 2013 | N170: 3109680.36 | O170: 2013-10-31 | P170: 2013-10-31
A171: 2013 | B171: Uchwała z 31.10.2013r. | C171: BRZEZINY | D171: 1021011 | E171: 1 | G171: 630 | H171: 11.4 | J171: Wydatki inwestycyjne kontynuowane | K171: TRUE | L171: 0 | M171: 2013 | N171: 5060975.58 | O171: 2013-10-31 | P171: 2013-10-31
A172: 2013 | B172: Uchwała z 31.10.2013r. | C172: BRZEZINY | D172: 1021011 | E172: 1 | G172: 120 | H172: 2 | I172: [2.1] + [2.2] | J172: Wydatki ogółem | K172: FALSE | L172: 8 | M172: 2021 | N172: 32389996 | O172: 2013-10-31 | P172: 2013-10-31
A173: 2013 | B173: Uchwała z 31.10.2013r. | C173: BRZEZINY | D173: 1021011 | E173: 1 | G173: 120 | H173: 2 | I173: [2.1] + [2.2] | J173: Wydatki ogółem | K173: FALSE | L173: 7 | M173: 2020 | N173: 31889996 | O173: 2013-10-31 | P173: 2013-10-31
A174: 2013 | B174: Uchwała z 31.10.2013r. | C174: BRZEZINY | D174: 1021011 | E174: 1 | G174: 120 | H174: 2 | I174: [2.1] + [2.2] | J174: Wydatki ogółem | K174: FALSE | L174: 1 | M174: 2014 | N174: 30561940.55 | O174: 2013-10-31 | P174: 2013-10-31
A175: 2013 | B175: Uchwała z 31.10.2013r. | C175: BRZEZINY | D175: 1021011 | E175: 1 | G175: 120 | H175: 2 | I175: [2.1] + [2.2] | J175: Wydatki ogółem | K175: FALSE | L175: 4 | M175: 2017 | N175: 30084300 | O175: 2013-10-31 | P175: 2013-10-31
A176: 2013 | B176: Uchwała z 31.10.2013r. | C176: BRZEZINY | D176: 1021011 | E176: 1 | G176: 120 | H176: 2 | I176: [2.1] + [2.2] | J176: Wydatki ogółem | K176: FALSE | L176: 2 | M176: 2015 | N176: 30284308 | O176: 2013-10-31 | P176: 2013-10-31
A177: 2013 | B177: Uchwała z 31.10.2013r. | C177: BRZEZINY | D177: 1021011 | E177: 1 | G177: 120 | H177: 2 | I177: [2.1] + [2.2] | J177: Wydatki ogółem | K177: FALSE | L177: 10 | M177: 2023 | N177: 33290000 | O177: 2013-10-31 | P177: 2013-10-31
A178: 2013 | B178: Uchwała z 31.10.2013r. | C178: BRZEZINY | D178: 1021011 | E178: 1 | G178: 120 | H178: 2 | I178: [2.1] + [2.2] | J178: Wydatki ogółem | K178: FALSE | L178: 9 | M178: 2022 | N178: 32849996 | O178: 2013-10-31 | P178: 2013-10-31
A179: 2013 | B179: Uchwała z 31.10.2013r. | C179: BRZEZINY | D179: 1021011 | E179: 1 | G179: 120 | H179: 2 | I179: [2.1] + [2.2] | J179: Wydatki ogółem | K179: FALSE | L179: 0 | M179: 2013 | N179: 39751618.39 | O179: 2013-10-31 | P179: 2013-10-31
A180: 2013 | B180: Uchwała z 31.10.2013r. | C180: BRZEZINY | D180: 1021011 | E180: 1 | G180: 120 | H180: 2 | I180: [2.1] + [2.2] | J180: Wydatki ogółem | K180: FALSE | L180: 5 | M180: 2018 | N180: 30821796 | O180: 2013-10-31 | P180: 2013-10-31
A181: 2013 | B181: Uchwała z 31.10.2013r. | C181: BRZEZINY | D181: 1021011 | E181: 1 | G181: 120 | H181: 2 | I181: [2.1] + [2.2] | J181: Wydatki ogółem | K181: FALSE | L181: 6 | M181: 2019 | N181: 31389996 | O181: 2013-10-31 | P181: 2013-10-31
A182: 2013 | B182: Uchwała z 31.10.2013r. | C182: BRZEZINY | D182: 1021011 | E182: 1 | G182: 120 | H182: 2 | I182: [2.1] + [2.2] | J182: Wydatki ogółem | K182: FALSE | L182: 3 | M182: 2016 | N182: 29934304 | O182: 2013-10-31 | P182: 2013-10-31
A183: 2013 | B183: Uchwała z 31.10.2013r. | C183: BRZEZINY | D183: 1021011 | E183: 1 | G183: 530 | H183: 9.8 | I183: [9.6] - [9.7] | J183: Informacja o spełnieniu wskaźnika spłaty zobowiązań określonego w art. 243 ustawy, po uwzględnieniu zobowiązań związku współtworzonego przez jednostkę samorządu terytorialnego oraz po uwzględnieniu wyłączeń określonych w pkt 5.1.1., obliczonego w oparciu o plan 3 kwartałów roku poprzedzającego rok budżetowy | K183: FALSE | L183: 2 | M183: 2015 | N183: 78 | O183: 2013-10-31 | P183: 2013-10-31
A184: 2013 | B184: Uchwała z 31.10.2013r. | C184: BRZEZINY | D184: 1021011 | E184: 1 | G184: 530 | H184: 9.8 | I184: [9.6] - [9.7] | J184: Informacja o spełnieniu wskaźnika spłaty zobowiązań określonego w art. 243 ustawy, po uwzględnieniu zobowiązań związku współtworzonego przez jednostkę samorządu terytorialnego oraz po uwzględnieniu wyłączeń określonych w pkt 5.1.1., obliczonego w oparciu o plan 3 kwartałów roku poprzedzającego rok budżetowy | K184: FALSE | L184: 1 | M184: 2014 | N184: -89 | O184: 2013-10-31 | P184: 2013-10-31
A185: 2013 | B185: Uchwała z 31.10.2013r. | C185: BRZEZINY | D185: 1021011 | E185: 1 | G185: 350 | H185: 6 | J185: Kwota długu | K185: TRUE | L185: 1 | M185: 2014 | N185: 14565308 | O185: 2013-10-31 | P185: 2013-10-31
A186: 2013 | B186: Uchwała z 31.10.2013r. | C186: BRZEZINY | D186: 1021011 | E186: 1 | G186: 350 | H186: 6 | J186: Kwota długu | K186: TRUE | L186: 6 | M186: 2019 | N186: 6580012 | O186: 2013-10-31 | P186: 2013-10-31
A187: 2013 | B187: Uchwała z 31.10.2013r. | C187: BRZEZINY | D187: 1021011 | E187: 1 | G187: 350 | H187: 6 | J187: Kwota długu | K187: TRUE | L187: 0 | M187: 2013 | N187: 15503368.16 | O187: 2013-10-31 | P187: 2013-10-31
A188: 2013 | B188: Uchwała z 31.10.2013r. | C188: BRZEZINY | D188: 1021011 | E188: 1 | G188: 530 | H188: 9.8 | I188: [9.6] - [9.7] | J188: Informacja o spełnieniu wskaźnika spłaty zobowiązań określonego w art. 243 ustawy, po uwzględnieniu zobowiązań związku współtworzonego przez jednostkę samorządu terytorialnego oraz po uwzględnieniu wyłączeń określonych w pkt 5.1.1., obliczonego w oparciu o plan 3 kwartałów roku poprzedzającego rok budżetowy | K188: FALSE | L188: 10 | M188: 2023 | N188: 768 | O188: 2013-10-31 | P188: 2013-10-31
A189: 2013 | B189: Uchwała z 31.10.2013r. | C189: BRZEZINY | D189: 1021011 | E189: 1 | G189: 530 | H189: 9.8 | I189: [9.6] - [9.7] | J189: Informacja o spełnieniu wskaźnika spłaty zobowiązań określonego w art. 243 ustawy, po uwzględnieniu zobowiązań związku współtworzonego przez jednostkę samorządu terytorialnego oraz po uwzględnieniu wyłączeń określonych w pkt 5.1.1., obliczonego w oparciu o plan 3 kwartałów roku poprzedzającego rok budżetowy | K189: FALSE | L189: 3 | M189: 2016 | N189: 370 | O189: 2013-10-31 | P189: 2013-10-31
A190: 2013 | B190: Uchwała z 31.10.2013r. | C190: BRZEZINY | D190: 1021011 | E190: 1 | G190: 530 | H190: 9.8 | I190: [9.6] - [9.7] | J190: Informacja o spełnieniu wskaźnika spłaty zobowiązań określonego w art. 243 ustawy, po uwzględnieniu zobowiązań związku współtworzonego przez jednostkę samorządu terytorialnego oraz po uwzględnieniu wyłączeń określonych w pkt 5.1.1., obliczonego w oparciu o plan 3 kwartałów roku poprzedzającego rok budżetowy | K190: FALSE | L190: 9 | M190: 2022 | N190: 769 | O190: 2013-10-31 | P190: 2013-10-31
A191: 2013 | B191: Uchwała z 31.10.2013r. | C191: BRZEZINY | D191: 1021011 | E191: 1 | G191: 530 | H191: 9.8 | I191: [9.6] - [9.7] | J191: Informacja o spełnieniu wskaźnika spłaty zobowiązań określonego w art. 243 ustawy, po uwzględnieniu zobowiązań związku współtworzonego przez jednostkę samorządu terytorialnego oraz po uwzględnieniu wyłączeń określonych w pkt 5.1.1., obliczonego w oparciu o plan 3 kwartałów roku poprzedzającego rok budżetowy | K191: FALSE | L191: 4 | M191: 2017 | N191: 612 | O191: 2013-10-31 | P191: 2013-10-31
A192: 2013 | B192: Uchwała z 31.10.2013r. | C192: BRZEZINY | D192: 1021011 | E192: 1 | G192: 530 | H192: 9.8 | I192: [9.6] - [9.7] | J192: Informacja o spełnieniu wskaźnika spłaty zobowiązań określonego w art. 243 ustawy, po uwzględnieniu zobowiązań związku współtworzonego przez jednostkę samorządu terytorialnego oraz po uwzględnieniu wyłączeń określonych w pkt 5.1.1., obliczonego w oparciu o plan 3 kwartałów roku poprzedzającego rok budżetowy | K192: FALSE | L192: 6 | M192: 2019 | N192: 695 | O192: 2013-10-31 | P192: 2013-10-31
A193: 2013 | B193: Uchwała z 31.10.2013r. | C193: BRZEZINY | D193: 1021011 | E193: 1 | G193: 530 | H193: 9.8 | I193: [9.6] - [9.7] | J193: Informacja o spełnieniu wskaźnika spłaty zobowiązań określonego w art. 243 ustawy, po uwzględnieniu zobowiązań związku współtworzonego przez jednostkę samorządu terytorialnego oraz po uwzględnieniu wyłączeń określonych w pkt 5.1.1., obliczonego w oparciu o plan 3 kwartałów roku poprzedzającego rok budżetowy | K193: FALSE | L193: 5 | M193: 2018 | N193: 668 | O193: 2013-10-31 | P193: 2013-10-31
A194: 2013 | B194: Uchwała z 31.10.2013r. | C194: BRZEZINY | D194: 1021011 | E194: 1 | G194: 530 | H194: 9.8 | I194: [9.6] - [9.7] | J194: Informacja o spełnieniu wskaźnika spłaty zobowiązań określonego w art. 243 ustawy, po uwzględnieniu zobowiązań związku współtworzonego przez jednostkę samorządu terytorialnego oraz po uwzględnieniu wyłączeń określonych w pkt 5.1.1., obliczonego w oparciu o plan 3 kwartałów roku poprzedzającego rok budżetowy | K194: FALSE | L194: 8 | M194: 2021 | N194: 751 | O194: 2013-10-31 | P194: 2013-10-31
A195: 2013 | B195: Uchwała z 31.10.2013r. | C195: BRZEZINY | D195: 1021011 | E195: 1 | G195: 530 | H195: 9.8 | I195: [9.6] - [9.7] | J195: Informacja o spełnieniu wskaźnika spłaty zobowiązań określonego w art. 243 ustawy, po uwzględnieniu zobowiązań związku współtworzonego przez jednostkę samorządu terytorialnego oraz po uwzględnieniu wyłączeń określonych w pkt 5.1.1., obliczonego w oparciu o plan 3 kwartałów roku poprzedzającego rok budżetowy | K195: FALSE | L195: 7 | M195: 2020 | N195: 730 | O195: 2013-10-31 | P195: 2013-10-31
A196: 2013 | B196: Uchwała z 31.10.2013r. | C196: BRZEZINY | D196: 1021011 | E196: 1 | G196: 530 | H196: 9.8 | I196: [9.6] - [9.7] | J196: Informacja o spełnieniu wskaźnika spłaty zobowiązań określonego w art. 243 ustawy, po uwzględnieniu zobowiązań związku współtworzonego przez jednostkę samorządu terytorialnego oraz po uwzględnieniu wyłączeń określonych w pkt 5.1.1., obliczonego w oparciu o plan 3 kwartałów roku poprzedzającego rok budżetowy | K196: FALSE | L196: 0 | M196: 2013 | N196: -919 | O196: 2013-10-31 | P196: 2013-10-31
A197: 2013 | B197: Uchwała z 31.10.2013r. | C197: BRZEZINY | D197: 1021011 | E197: 1 | G197: 350 | H197: 6 | J197: Kwota długu | K197: TRUE | L197: 2 | M197: 2015 | N197: 13349616 | O197: 2013-10-31 | P197: 2013-10-31
A198: 2013 | B198: Uchwała z 31.10.2013r. | C198: BRZEZINY | D198: 1021011 | E198: 1 | G198: 350 | H198: 6 | J198: Kwota długu | K198: TRUE | L198: 4 | M198: 2017 | N198: 9868220 | O198: 2013-10-31 | P198: 2013-10-31
A199: 2013 | B199: Uchwała z 31.10.2013r. | C199: BRZEZINY | D199: 1021011 | E199: 1 | G199: 350 | H199: 6 | J199: Kwota długu | K199: TRUE | L199: 8 | M199: 2021 | N199: 3360004 | O199: 2013-10-31 | P199: 2013-10-31
A200: 2013 | B200: Uchwała z 31.10.2013r. | C200: BRZEZINY | D200: 1021011 | E200: 1 | G200: 350 | H200: 6 | J200: Kwota długu | K200: TRUE | L200: 7 | M200: 2020 | N200: 4970008 | O200: 2013-10-31 | P200: 2013-10-31
A201: 2013 | B201: Uchwała z 31.10.2013r. | C201: BRZEZINY | D201: 1021011 | E201: 1 | G201: 350 | H201: 6 | J201: Kwota długu | K201: TRUE | L201: 5 | M201: 2018 | N201: 8190016 | O201: 2013-10-31 | P201: 2013-10-31
... 247 more rows

Sheet DaneZrodloweDoWsk (hidden)
A1: Wyciąg danych z tabeli "Wieloletnia prognoza finansowa" wprowadzonych do systemu BESTI@ z wybranej uchwały | L1: Rok bazowy: | M1: =MIN(L:L) -> 2013
A3: budzet | B3: numer | C3: nazwajst | D3: kodgus | E3: gt | F3: mswia | G3: lp | H3: symbol | I3: formula | J3: wyszczegolnienie | K3: wsk243 | L3: rokprognozy | M3: WYK_N_3 | N3: WYK_N_2 | O3: PLN_N_1 | P3: WYK_N_1 | Q3: DataPodjecia | R3: DataWejscia
A4: 2013 | B4: Uchwała z 31.10.2013r. | C4: BRZEZINY | D4: 1021011 | E4: 1 | G4: 670 | H4: 12.1 | J4: Dochody bieżące na programy, projekty lub zadania finansowane z udziałem środków, o których mowa w art. 5 ust. 1 pkt 2 i 3 ustawy | K4: TRUE | L4: 2013 | M4: 0 | N4: 0 | O4: 0 | P4: 931390.39 | Q4: 2013-10-31 | R4: 2013-10-31
A5: 2013 | B5: Uchwała z 31.10.2013r. | C5: BRZEZINY | D5: 1021011 | E5: 1 | G5: 610 | H5: 11.3.1 | J5: bieżące | K5: TRUE | L5: 2013 | M5: 0 | N5: 0 | O5: 994525 | P5: 0 | Q5: 2013-10-31 | R5: 2013-10-31
A6: 2013 | B6: Uchwała z 31.10.2013r. | C6: BRZEZINY | D6: 1021011 | E6: 1 | G6: 750 | H6: 12.3.2 | J6: Wydatki bieżące na realizację programu, projektu lub zadania wynikające wyłącznie z zawartych umów z podmiotem dysponującym środkami, o których mowa w art. 5 ust. 1 pkt 2 ustawy | K6: FALSE | L6: 2013 | M6: 0 | N6: 0 | O6: 0 | P6: 0 | Q6: 2013-10-31 | R6: 2013-10-31
A7: 2013 | B7: Uchwała z 31.10.2013r. | C7: BRZEZINY | D7: 1021011 | E7: 1 | G7: 310 | H7: 5.1 | J7: Spłaty rat kapitałowych kredytów i pożyczek oraz wykup papierów wartościowych | K7: TRUE | L7: 2013 | M7: 1916539.28 | N7: 2541577.28 | O7: 1904000 | P7: 1903176.7 | Q7: 2013-10-31 | R7: 2013-10-31
A8: 2013 | B8: Uchwała z 31.10.2013r. | C8: BRZEZINY | D8: 1021011 | E8: 1 | G8: 90 | H8: 1.2 | J8: Dochody majątkowe, w tym | K8: TRUE | L8: 2013 | M8: 5591089.83 | N8: 2650951.14 | O8: 5708395.48 | P8: 5020533.81 | Q8: 2013-10-31 | R8: 2013-10-31
A9: 2013 | B9: Uchwała z 31.10.2013r. | C9: BRZEZINY | D9: 1021011 | E9: 1 | G9: 500 | H9: 9.6 | I9: ([2.1.1]+[2.1.3.1] + [5.1]+[9.5]-[5.1.1]- [2.1.1.1] )/[1] | J9: Wskaźnik planowanej łącznej kwoty spłaty zobowiązań, o której mowa w art. 243 ust. 1 ustawy do dochodów ogółem, po uwzględnieniu zobowiązań związku współtworzonego przez jednostkę samorządu terytorialnego oraz po uwzględnieniu wyłączeń przypadających na dany rok określonych w pkt 5.1.1. | K9: FALSE | L9: 2013 | M9: 0.0756 | N9: 0.1061 | O9: 0.0797 | P9: 0.0782 | Q9: 2013-10-31 | R9: 2013-10-31
A10: 2013 | B10: Uchwała z 31.10.2013r. | C10: BRZEZINY | D10: 1021011 | E10: 1 | G10: 710 | H10: 12.2.1 | J10: - w tym środki określone w art. 5 ust. 1 pkt 2 ustawy | K10: FALSE | L10: 2013 | M10: 3773685.71 | N10: 0 | O10: 3830155.48 | P10: 3113726.16 | Q10: 2013-10-31 | R10: 2013-10-31
A11: 2013 | B11: Uchwała z 31.10.2013r. | C11: BRZEZINY | D11: 1021011 | E11: 1 | G11: 380 | H11: 6.2 | I11: [6] / [1] | J11: Wskaźnik zadłużenia do dochodów ogółem określony w art. 170 ufp z 2005 r., bez uwzględniania wyłączeń określonych w pkt 6.1. | K11: FALSE | L11: 2013 | M11: 0.4081 | N11: 0.4477 | O11: 0.4441 | P11: 0.4502 | Q11: 2013-10-31 | R11: 2013-10-31
A12: 2013 | B12: Uchwała z 31.10.2013r. | C12: BRZEZINY | D12: 1021011 | E12: 1 | G12: 20 | H12: 1.1 | J12: Dochody bieżące | K12: TRUE | L12: 2013 | M12: 25893786.18 | N12: 28412491.19 | O12: 29915724.45 | P12: 29417886.46 | Q12: 2013-10-31 | R12: 2013-10-31
A13: 2013 | B13: Uchwała z 31.10.2013r. | C13: BRZEZINY | D13: 1021011 | E13: 1 | G13: 770 | H13: 12.4.1 | J13: - w tym finansowane środkami określonymi w art. 5 ust. 1 pkt 2 ustawy | K13: TRUE | L13: 2013 | M13: 0 | N13: 0 | O13: 3830155.48 | P13: 3360023.79 | Q13: 2013-10-31 | R13: 2013-10-31
A14: 2013 | B14: Uchwała z 31.10.2013r. | C14: BRZEZINY | D14: 1021011 | E14: 1 | G14: 260 | H14: 4.3 | J14: Kredyty, pożyczki, emisja papierów wartościowych | K14: TRUE | L14: 2013 | M14: 6000000 | N14: 3600000 | O14: 3818747.09 | P14: 3500000 | Q14: 2013-10-31 | R14: 2013-10-31
A15: 2013 | B15: Uchwała z 31.10.2013r. | C15: BRZEZINY | D15: 1021011 | E15: 1 | G15: 600 | H15: 11.3 | I15: [11.3.1] + [11.3.2] | J15: Wydatki objęte limitem art. 226 ust. 3 ustawy | K15: TRUE | L15: 2013 | M15: 0 | N15: 0 | O15: 1841325 | P15: 0 | Q15: 2013-10-31 | R15: 2013-10-31
A16: 2013 | B16: Uchwała z 31.10.2013r. | C16: BRZEZINY | D16: 1021011 | E16: 1 | G16: 10 | H16: 1 | I16: [1.1] + [1.2] | J16: Dochody ogółem | K16: TRUE | L16: 2013 | M16: 31484876.01 | N16: 31063442.33 | O16: 35624119.93 | P16: 34438420.27 | Q16: 2013-10-31 | R16: 2013-10-31
A17: 2013 | B17: Uchwała z 31.10.2013r. | C17: BRZEZINY | D17: 1021011 | E17: 1 | G17: 590 | H17: 11.2 | J17: Wydatki związane z funkcjonowaniem organów jednostki samorządu terytorialnego | K17: TRUE | L17: 2013 | M17: 0 | N17: 0 | O17: 0 | P17: 0 | Q17: 2013-10-31 | R17: 2013-10-31
A18: 2013 | B18: Uchwała z 31.10.2013r. | C18: BRZEZINY | D18: 1021011 | E18: 1 | G18: 580 | H18: 11.1 | J18: Wydatki bieżące na wynagrodzenia i składki od nich naliczane | K18: FALSE | L18: 2013 | M18: 10915139.42 | N18: 0 | O18: 12203062 | P18: 12006826.01 | Q18: 2013-10-31 | R18: 2013-10-31
A19: 2013 | B19: Uchwała z 31.10.2013r. | C19: BRZEZINY | D19: 1021011 | E19: 1 | G19: 170 | H19: 2.1.3 | J19: wydatki na obsługę długu | K19: TRUE | L19: 2013 | M19: 464051.55 | N19: 755389.64 | O19: 884400 | P19: 791159.57 | Q19: 2013-10-31 | R19: 2013-10-31
A20: 2013 | B20: Uchwała z 31.10.2013r. | C20: BRZEZINY | D20: 1021011 | E20: 1 | G20: 730 | H20: 12.3 | J20: Wydatki bieżące na programy, projekty lub zadania finansowane z udziałem środków, o których mowa w art. 5 ust. 1 pkt 2 i 3 ustawy | K20: FALSE | L20: 2013 | M20: 0 | N20: 0 | O20: 0 | P20: 0 | Q20: 2013-10-31 | R20: 2013-10-31
A21: 2013 | B21: Uchwała z 31.10.2013r. | C21: BRZEZINY | D21: 1021011 | E21: 1 | G21: 880 | H21: 14.1 | J21: Spłaty rat kapitałowych oraz wykup papierów wartościowych, o których mowa w pkt. 5.1., wynikające wyłącznie z tytułu zobowiązań już zaciągniętych | K21: TRUE | L21: 2013 | M21: 0 | N21: 0 | O21: 0 | P21: 0 | Q21: 2013-10-31 | R21: 2013-10-31
A22: 2013 | B22: Uchwała z 31.10.2013r. | C22: BRZEZINY | D22: 1021011 | E22: 1 | G22: 110 | H22: 1.2.2 | J22: z tytułu dotacji oraz środków przeznaczonych na inwestycje | K22: TRUE | L22: 2013 | M22: 0 | N22: 0 | O22: 0 | P22: 0 | Q22: 2013-10-31 | R22: 2013-10-31
A23: 2013 | B23: Uchwała z 31.10.2013r. | C23: BRZEZINY | D23: 1021011 | E23: 1 | G23: 80 | H23: 1.1.5 | J23: z tytułu dotacji i środków przeznaczonych na cele bieżące | K23: TRUE | L23: 2013 | M23: 0 | N23: 0 | O23: 0 | P23: 0 | Q23: 2013-10-31 | R23: 2013-10-31
A24: 2013 | B24: Uchwała z 31.10.2013r. | C24: BRZEZINY | D24: 1021011 | E24: 1 | G24: 460 | H24: 9.2 | I24: ([2.1.1] + [2.1.3.1] + [5.1] - [5.1.1]- [2.1.1.1] ) / [1] | J24: Wskaźnik planowanej łącznej kwoty spłaty zobowiązań, o której mowa w art. 169 ust. 1 ufp z 2005 r. do dochodów ogółem, po uwzględnieniu wyłączeń przypadających na dany rok określonych w pkt 5.1.1. | K24: FALSE | L24: 2013 | M24: 0.0756 | N24: 0.1061 | O24: 0.0797 | P24: 0.0782 | Q24: 2013-10-31 | R24: 2013-10-31
A25: 2013 | B25: Uchwała z 31.10.2013r. | C25: BRZEZINY | D25: 1021011 | E25: 1 | G25: 300 | H25: 5 | I25: [5.1] + [5.2] | J25: Rozchody budżetu | K25: FALSE | L25: 2013 | M25: 1916539.28 | N25: 2541577.28 | O25: 1904000 | P25: 1903176.7 | Q25: 2013-10-31 | R25: 2013-10-31
A26: 2013 | B26: Uchwała z 31.10.2013r. | C26: BRZEZINY | D26: 1021011 | E26: 1 | G26: 700 | H26: 12.2 | J26: Dochody majątkowe na programy, projekty lub zadania finansowane z udziałem środków, o których mowa w art. 5 ust. 1 pkt 2 i 3 ustawy | K26: FALSE | L26: 2013 | M26: 0 | N26: 0 | O26: 0 | P26: 0 | Q26: 2013-10-31 | R26: 2013-10-31
A27: 2013 | B27: Uchwała z 31.10.2013r. | C27: BRZEZINY | D27: 1021011 | E27: 1 | G27: 630 | H27: 11.4 | J27: Wydatki inwestycyjne kontynuowane | K27: TRUE | L27: 2013 | M27: 0 | N27: 0 | O27: 0 | P27: 0 | Q27: 2013-10-31 | R27: 2013-10-31
A28: 2013 | B28: Uchwała z 31.10.2013r. | C28: BRZEZINY | D28: 1021011 | E28: 1 | G28: 120 | H28: 2 | I28: [2.1] + [2.2] | J28: Wydatki ogółem | K28: FALSE | L28: 2013 | M28: 34609335.7 | N28: 31037203.93 | O28: 40495660.86 | P28: 36384626.19 | Q28: 2013-10-31 | R28: 2013-10-31
A29: 2013 | B29: Uchwała z 31.10.2013r. | C29: BRZEZINY | D29: 1021011 | E29: 1 | G29: 530 | H29: 9.8 | I29: [9.6] - [9.7] | J29: Informacja o spełnieniu wskaźnika spłaty zobowiązań określonego w art. 243 ustawy, po uwzględnieniu zobowiązań związku współtworzonego przez jednostkę samorządu terytorialnego oraz po uwzględnieniu wyłączeń określonych w pkt 5.1.1., obliczonego w oparciu o plan 3 kwartałów roku poprzedzającego rok budżetowy | K29: FALSE | L29: 2013 | M29: 0.0756 | N29: 0.1061 | O29: 0.0797 | P29: 0.0782 | Q29: 2013-10-31 | R29: 2013-10-31
A30: 2013 | B30: Uchwała z 31.10.2013r. | C30: BRZEZINY | D30: 1021011 | E30: 1 | G30: 350 | H30: 6 | J30: Kwota długu | K30: TRUE | L30: 2013 | M30: 12848122.14 | N30: 13906544.86 | O30: 15821291.95 | P30: 15503368.16 | Q30: 2013-10-31 | R30: 2013-10-31
A31: 2013 | B31: Uchwała z 31.10.2013r. | C31: BRZEZINY | D31: 1021011 | E31: 1 | G31: 210 | H31: 4 | I31: [4.1] + [4.2] + [4.3] + [4.4] | J31: Przychody budżetu | K31: FALSE | L31: 2013 | M31: 6000000 | N31: 3600000 | O31: 6775540.93 | P31: 6456793.84 | Q31: 2013-10-31 | R31: 2013-10-31
A32: 2013 | B32: Uchwała z 31.10.2013r. | C32: BRZEZINY | D32: 1021011 | E32: 1 | G32: 60 | H32: 1.1.3.1 | J32: z podatku od nieruchomości | K32: TRUE | L32: 2013 | M32: 0 | N32: 0 | O32: 0 | P32: 0 | Q32: 2013-10-31 | R32: 2013-10-31
A33: 2013 | B33: Uchwała z 31.10.2013r. | C33: BRZEZINY | D33: 1021011 | E33: 1 | G33: 740 | H33: 12.3.1 | J33: - w tym finansowane środkami określonymi w art. 5 ust. 1 pkt 2 ustawy | K33: FALSE | L33: 2013 | M33: 0 | N33: 0 | O33: 1221877.52 | P33: 1128926.89 | Q33: 2013-10-31 | R33: 2013-10-31
A34: 2013 | B34: Uchwała z 31.10.2013r. | C34: BRZEZINY | D34: 1021011 | E34: 1 | G34: 470 | H34: 9.3 | I34: ([2.1.1] + [2.1.3.1] + [5.1] ) / [1] | J34: Wskaźnik planowanej łącznej kwoty spłaty zobowiązań, o której mowa w art. 243 ust. 1 ustawy do dochodów ogółem, bez uwzględnienia zobowiązań związku współtworzonego przez jednostkę samorządu terytorialnego i bez uwzględniania wyłączeń przypadających na dany rok określonych w pkt 5.1.1. | K34: TRUE | L34: 2013 | M34: 0.0756 | N34: 0.1061 | O34: 0.0797 | P34: 0.0782 | Q34: 2013-10-31 | R34: 2013-10-31
A35: 2013 | B35: Uchwała z 31.10.2013r. | C35: BRZEZINY | D35: 1021011 | E35: 1 | G35: 620 | H35: 11.3.2 | J35: majątkowe | K35: TRUE | L35: 2013 | M35: 0 | N35: 0 | O35: 846800 | P35: 0 | Q35: 2013-10-31 | R35: 2013-10-31
A36: 2013 | B36: Uchwała z 31.10.2013r. | C36: BRZEZINY | D36: 1021011 | E36: 1 | G36: 540 | H36: 9.8.1 | I36: [9.6] - [9.7.1] | J36: Informacja o spełnieniu wskaźnika spłaty zobowiązań określonego w art. 243 ustawy, po uwzględnieniu zobowiązań związku współtworzonego przez jednostkę samorządu terytorialnego oraz po uwzględnieniu wyłączeń określonych w pkt 5.1.1., obliczonego w oparciu o wykonanie roku poprzedzającego rok budżetowy | K36: FALSE | L36: 2013 | M36: 0.0756 | N36: 0.1061 | O36: 0.0797 | P36: 0.0782 | Q36: 2013-10-31 | R36: 2013-10-31
A37: 2013 | B37: Uchwała z 31.10.2013r. | C37: BRZEZINY | D37: 1021011 | E37: 1 | G37: 240 | H37: 4.2 | J37: Wolne środki, o których mowa w art. 217 ust.2 pkt 6 ustawy | K37: FALSE | L37: 2013 | M37: 0 | N37: 0 | O37: 2956793.84 | P37: 2956793.84 | Q37: 2013-10-31 | R37: 2013-10-31
A38: 2013 | B38: Uchwała z 31.10.2013r. | C38: BRZEZINY | D38: 1021011 | E38: 1 | G38: 450 | H38: 9.1 | I38: ([2.1.1] + [2.1.3.1] + [5.1] ) / [1] | J38: Wskaźnik planowanej łącznej kwoty spłaty zobowiązań, o której mowa w art. 169 ust. 1 ufp z 2005 r. do dochodów ogółem, bez uwzględnienia wyłączeń określonych w pkt 5.1.1. | K38: TRUE | L38: 2013 | M38: 0.0756 | N38: 0.1061 | O38: 0.0797 | P38: 0.0782 | Q38: 2013-10-31 | R38: 2013-10-31
A39: 2013 | B39: Uchwała z 31.10.2013r. | C39: BRZEZINY | D39: 1021011 | E39: 1 | G39: 250 | H39: 4.2.1 | J39: w tym na pokrycie deficytu budżetu | K39: FALSE | L39: 2013 | M39: 0 | N39: 0 | O39: 1052793.84 | P39: 1052793.84 | Q39: 2013-10-31 | R39: 2013-10-31
A40: 2013 | B40: Uchwała z 31.10.2013r. | C40: BRZEZINY | D40: 1021011 | E40: 1 | G40: 690 | H40: 12.1.1.1 | J40: - w tym środki określone w art. 5 ust. 1 pkt 2 ustawy wynikające wyłącznie z zawartych umów na realizację programu, projektu lub zadania | K40: TRUE | L40: 2013 | M40: 0 | N40: 0 | O40: 0 | P40: 0 | Q40: 2013-10-31 | R40: 2013-10-31
A41: 2013 | B41: Uchwała z 31.10.2013r. | C41: BRZEZINY | D41: 1021011 | E41: 1 | G41: 480 | H41: 9.4 | I41: ([2.1.1] + [2.1.3.1] + [5.1] - [5.1.1]- [2.1.1.1] ) / [1] | J41: Wskaźnik planowanej łącznej kwoty spłaty zobowiązań, o której mowa w art. 243 ust. 1 ustawy do dochodów ogółem, bez uwzględnienia zobowiązań związku współtworzonego przez jednostkę samorządu terytorialnego, po uwzględnieniu wyłączeń przypadających na dany rok określonych w pkt 5.1.1. | K41: FALSE | L41: 2013 | M41: 0.0756 | N41: 0.1061 | O41: 0.0797 | P41: 0.0782 | Q41: 2013-10-31 | R41: 2013-10-31
A42: 2013 | B42: Uchwała z 31.10.2013r. | C42: BRZEZINY | D42: 1021011 | E42: 1 | G42: 390 | H42: 6.3 | I42: ([6] - [6.1]) / [1] | J42: Wskaźnik zadłużenia do dochodów ogółem, o którym mowa w art. 170 ufp z 2005 r., po uwzględnieniu wyłączeń określonych w pkt 6.1. | K42: FALSE | L42: 2013 | M42: 0.4081 | N42: 0.4477 | O42: 0.4441 | P42: 0.4502 | Q42: 2013-10-31 | R42: 2013-10-31
A43: 2013 | B43: Uchwała z 31.10.2013r. | C43: BRZEZINY | D43: 1021011 | E43: 1 | G43: 520 | H43: 9.7.1 | J43: Dopuszczalny wskaźnik spłaty zobowiązań określony w art. 243 ustawy, po uwzględnieniu wyłączeń określonych w art. 36 ustawy z dnia 7 grudnia 2012 r. o zmianie niektórych ustaw w związku z realizacją ustawy budżetowej, obliczony w oparciu o wykonanie roku poprzedzającego rok budżetowy | K43: TRUE | L43: 2013 | M43: 0 | N43: 0 | O43: 0 | P43: 0 | Q43: 2013-10-31 | R43: 2013-10-31
A44: 2013 | B44: Uchwała z 31.10.2013r. | C44: BRZEZINY | D44: 1021011 | E44: 1 | G44: 780 | H44: 12.4.2 | J44: Wydatki majątkowe na realizację programu, projektu lub zadania wynikające wyłącznie z zawartych umów z podmiotem dysponującym środkami, o których mowa w art. 5 ust. 1 pkt 2 ustawy | K44: TRUE | L44: 2013 | M44: 0 | N44: 0 | O44: 0 | P44: 0 | Q44: 2013-10-31 | R44: 2013-10-31
A45: 2013 | B45: Uchwała z 31.10.2013r. | C45: BRZEZINY | D45: 1021011 | E45: 1 | G45: 190 | H45: 2.2 | J45: Wydatki majątkowe | K45: FALSE | L45: 2013 | M45: 9401653.73 | N45: 4907950.29 | O45: 11277160.42 | P45: 9599595.89 | Q45: 2013-10-31 | R45: 2013-10-31
A46: 2013 | B46: Uchwała z 31.10.2013r. | C46: BRZEZINY | D46: 1021011 | E46: 1 | G46: 420 | H46: 8.1 | I46: [1.1] - [2.1] | J46: Różnica między dochodami bieżącymi a wydatkami bieżącymi | K46: FALSE | L46: 2013 | M46: 686104.21 | N46: 2283237.55 | O46: 697224.01 | P46: 2632856.16 | Q46: 2013-10-31 | R46: 2013-10-31
A47: 2013 | B47: Uchwała z 31.10.2013r. | C47: BRZEZINY | D47: 1021011 | E47: 1 | G47: 720 | H47: 12.2.1.1 | J47: - w tym środki określone w art. 5 ust. 1 pkt 2 ustawy wynikające wyłącznie z zawartych umów na realizację programu, projektu lub zadania | K47: FALSE | L47: 2013 | M47: 0 | N47: 0 | O47: 0 | P47: 0 | Q47: 2013-10-31 | R47: 2013-10-31
A48: 2013 | B48: Uchwała z 31.10.2013r. | C48: BRZEZINY | D48: 1021011 | E48: 1 | G48: 70 | H48: 1.1.4 | J48: z subwencji ogólnej | K48: TRUE | L48: 2013 | M48: 0 | N48: 0 | O48: 0 | P48: 0 | Q48: 2013-10-31 | R48: 2013-10-31
A49: 2013 | B49: Uchwała z 31.10.2013r. | C49: BRZEZINY | D49: 1021011 | E49: 1 | G49: 50 | H49: 1.1.3 | J49: podatki i opłaty | K49: TRUE | L49: 2013 | M49: 0 | N49: 0 | O49: 0 | P49: 0 | Q49: 2013-10-31 | R49: 2013-10-31
A50: 2013 | B50: Uchwała z 31.10.2013r. | C50: BRZEZINY | D50: 1021011 | E50: 1 | G50: 130 | H50: 2.1 | J50: Wydatki bieżące, w tym: | K50: TRUE | L50: 2013 | M50: 25207681.97 | N50: 26129253.64 | O50: 29218500.44 | P50: 26785030.3 | Q50: 2013-10-31 | R50: 2013-10-31
A51: 2013 | B51: Uchwała z 31.10.2013r. | C51: BRZEZINY | D51: 1021011 | E51: 1 | G51: 180 | H51: 2.1.3.1 | J51: w tym odsetki i dyskonto określone w art. 243 ust. 1 ustawy lub art. 169 ust. 1 ufp z 2005 r.. | K51: FALSE | L51: 2013 | M51: 464051.55 | N51: 755389.64 | O51: 884400 | P51: 791159.57 | Q51: 2013-10-31 | R51: 2013-10-31
A52: 2013 | B52: Uchwała z 31.10.2013r. | C52: BRZEZINY | D52: 1021011 | E52: 1 | G52: 510 | H52: 9.7 | J52: Dopuszczalny wskaźnik spłaty zobowiązań określony w art. 243 ustawy, po uwzględnieniu wyłączeń określonych w art. 36 ustawy z dnia 7 grudnia 2012 r. o zmianie niektórych ustaw w związku z realizacją ustawy budżetowej, obliczony w oparciu o plan 3 kwartałów roku poprzedzającego rok budżetowy | K52: TRUE | L52: 2013 | M52: 0 | N52: 0 | O52: 0 | P52: 0 | Q52: 2013-10-31 | R52: 2013-10-31
A53: 2013 | B53: Uchwała z 31.10.2013r. | C53: BRZEZINY | D53: 1021011 | E53: 1 | G53: 680 | H53: 12.1.1 | J53: - w tym środki określone w art. 5 ust. 1 pkt 2 ustawy | K53: TRUE | L53: 2013 | M53: 965905.76 | N53: 0 | O53: 0 | P53: 931390.39 | Q53: 2013-10-31 | R53: 2013-10-31
A54: 2013 | B54: Uchwała z 31.10.2013r. | C54: BRZEZINY | D54: 1021011 | E54: 1 | G54: 40 | H54: 1.1.2 | J54: dochody z tytułu udziału we wpływach z podatku dochodowego od osób prawnych | K54: TRUE | L54: 2013 | M54: 0 | N54: 0 | O54: 0 | P54: 0 | Q54: 2013-10-31 | R54: 2013-10-31
A55: 2013 | B55: Uchwała z 31.10.2013r. | C55: BRZEZINY | D55: 1021011 | E55: 1 | G55: 100 | H55: 1.2.1 | J55: ze sprzedaży majątku | K55: TRUE | L55: 2013 | M55: 1337141.05 | N55: 26005.76 | O55: 100000 | P55: 159888.32 | Q55: 2013-10-31 | R55: 2013-10-31
A56: 2013 | B56: Uchwała z 31.10.2013r. | C56: BRZEZINY | D56: 1021011 | E56: 1 | G56: 200 | H56: 3 | I56: [1] -[2] | J56: Wynik budżetu | K56: FALSE | L56: 2013 | M56: -3124459.69 | N56: 26238.4 | O56: -4871540.93 | P56: -1946205.92 | Q56: 2013-10-31 | R56: 2013-10-31
A57: 2013 | B57: Uchwała z 31.10.2013r. | C57: BRZEZINY | D57: 1021011 | E57: 1 | G57: 640 | H57: 11.5 | J57: Nowe wydatki inwestycyjne | K57: TRUE | L57: 2013 | M57: 0 | N57: 0 | O57: 0 | P57: 0 | Q57: 2013-10-31 | R57: 2013-10-31
A58: 2013 | B58: Uchwała z 31.10.2013r. | C58: BRZEZINY | D58: 1021011 | E58: 1 | G58: 650 | H58: 11.6 | J58: Wydatki majątkowe w formie dotacji | K58: TRUE | L58: 2013 | M58: 0 | N58: 0 | O58: 0 | P58: 0 | Q58: 2013-10-31 | R58: 2013-10-31
A59: 2013 | B59: Uchwała z 31.10.2013r. | C59: BRZEZINY | D59: 1021011 | E59: 1 | G59: 430 | H59: 8.2 | I59: [1.1] + [4.1] + [4.2] - ( [2.1] - [2.1.2] ) | J59: Różnica między dochodami bieżącymi, powiększonymi o nadwyżkę budżetową określoną w pkt 4.1. i wolne środki określone w pkt 4.2. a wydatkami bieżącymi, pomniejszonym o wydatki określone w pkt 2.1.2. | K59: FALSE | L59: 2013 | M59: 686104.21 | N59: 2283237.55 | O59: 3654017.85 | P59: 5589650 | Q59: 2013-10-31 | R59: 2013-10-31
A60: 2013 | B60: Uchwała z 31.10.2013r. | C60: BRZEZINY | D60: 1021011 | E60: 1 | G60: 30 | H60: 1.1.1 | J60: dochody z tytułu udziału we wpływach z podatku dochodowego od osób fizycznych | K60: TRUE | L60: 2013 | M60: 0 | N60: 0 | O60: 0 | P60: 0 | Q60: 2013-10-31 | R60: 2013-10-31
A61: 2013 | B61: Uchwała z 31.10.2013r. | C61: BRZEZINY | D61: 1021011 | E61: 1 | G61: 760 | H61: 12.4 | J61: Wydatki majątkowe na programy, projekty lub zadania finansowane z udziałem środków, o których mowa w art. 5 ust. 1 pkt 2 i 3 ustawy | K61: TRUE | L61: 2013 | M61: 0 | N61: 0 | O61: 0 | P61: 0 | Q61: 2013-10-31 | R61: 2013-10-31
A62: 2013 | B62: Uchwała z 31.10.2013r. | C62: BRZEZINY | D62: 1021011 | E62: 1 | G62: 505 | H62: 9.6.1 | I62: ( [1.1] - ( [2.1] - [2.1.2] ) + [1.2.1] ) / [1] | J62: Wskaźnik jednoroczny | K62: FALSE | L62: 2013 | M62: 0.0643 | N62: 0.0743 | O62: 0.0224 | P62: 0.0811 | Q62: 2013-10-31 | R62: 2013-10-31
